Service Delivery Area(T),Service Delivery Team(T),ExpenditureGroup(T),Account(T),Supplier Name(T),Trans Date,Amount
Neighbourhood & Enforcement Services,"Highways, Engineering & Project Delivery",Third Party Payments,Highways Contract - BBLP,Balfour Beatty Civils Limited,27/09/2023,"1,536,050.45"
Corporate Items,Corporate Codes,Capital Financing Costs,Unitary Charge,PYRAMID SCHOOLS  LTD,12/09/2023,"1,005,653.64"
Prosperity & Investment,Regeneration & Investment,Capital Expenditure,Payments to Contractor,W D Construction Ltd,29/09/2023,"635,449.22"
Prosperity & Investment,Regeneration & Investment,Capital Expenditure,Other Capital Expenditure,NUPLACE LTD,22/09/2023,"603,733.00"
Neighbourhood & Enforcement Services,Neighbourhood & Environmental Services,Third Party Payments,Contractor Recharge,Id verde,27/09/2023,"498,141.72"
Prosperity & Investment,Regeneration & Investment,Capital Expenditure,External Professional Fees,M Property Ltd,29/09/2023,"266,859.70"
Education & Skills,Education & Skills,Capital Expenditure,Payments to Contractor,C & W LTD,22/09/2023,"238,970.00"
Education & Skills,Education & Skills,Capital Expenditure,Payments to Contractor,C & W LTD,12/09/2023,"150,291.50"
Neighbourhood & Enforcement Services,Strategic Transport & Highway Network Management,Supplies & Services,Concessionary Travel,ARRIVA MIDLANDS LTD ,01/09/2023,"147,340.44"
Adult Social Care,My Options,Capital Expenditure,Payments to Contractor,PAVE AWAYS LTD,11/09/2023,"135,942.72"
"Communities, Customer & Commercial Services",ICT,Supplies & Services,Comp Software (Purch / Hire),Brightly Software Limited,27/09/2023,"133,255.20"
"Housing, Employment & Infrastructure",Private Sector Housing & Enforcement,Capital Expenditure,Acquisition of land & existing buildings,D Law,05/09/2023,"120,000.00"
Prosperity & Investment,BiT,Premises-Related Expenditure,General Rents,COMBINED PROPERTY CONTROL,01/09/2023,"118,150.13"
Education & Skills,Education & Skills,Capital Expenditure,Payments to Contractor,TDR Heating & Ventilation Engineers,22/09/2023,"116,344.00"
Neighbourhood & Enforcement Services,Strategic Transport & Highway Network Management,Supplies & Services,Concessionary Travel,ARRIVA MIDLANDS LTD ,01/09/2023,"112,606.56"
Children�s Safeguarding & Family Support,"Family Placements, Children in Care, Leaving Care & Emergency Duty Team",Third Party Payments,Residential Expenditure,NHS Shropshire Telford & Wrekin ICB QOC Receivables N209,18/09/2023,"111,848.33"
Prosperity & Investment,Regeneration & Investment,Capital Expenditure,External Professional Fees,PERFECT CIRCLE JV LTD,22/09/2023,"106,652.45"
Education & Skills,Education & Skills,Capital Expenditure,Payments to Contractor,P LTD,20/09/2023,"76,000.00"
Neighbourhood & Enforcement Services,"Highways, Engineering & Project Delivery",Premises-Related Expenditure,Electricity,West Mercia Energy (WME),20/09/2023,"75,459.85"
Education & Skills,Education & Skills,Capital Expenditure,Payments to Contractor,PAVE AWAYS LTD,20/09/2023,"71,484.12"
Health & Wellbeing,Consultant in Public Health,Supplies & Services,Sub Contractors,Midlands Partnership NHS Foundation Trust,05/09/2023,"63,440.22"
Education & Skills,SEND (0-25),Third Party Payments,DSG - High Needs Block,LANDAU LTD,20/09/2023,"58,666.67"
Education & Skills,Education & Skills,Capital Expenditure,Payments to Contractor,P LTD,20/09/2023,"57,321.22"
Prosperity & Investment,Regeneration & Investment,Third Party Payments,Voluntary Bodies,SEVERN GORGE COUNTRYSIDE TRUST,25/09/2023,"56,582.69"
"Communities, Customer & Commercial Services",ICT,Capital Expenditure,Computer Software,Trustmarque Solutions Limited,21/09/2023,"54,917.66"
Prosperity & Investment,Regeneration & Investment,Capital Expenditure,External Professional Fees,Kajima Partnerships Ltd,08/09/2023,"52,504.84"
Education & Skills,Education & Skills,Capital Expenditure,Payments to Contractor,PAVE AWAYS LTD,20/09/2023,"51,648.00"
Education & Skills,Education & Skills,Capital Expenditure,Payments to Contractor,W and P Building Contractors Ltd,26/09/2023,"49,396.90"
Prosperity & Investment,Regeneration & Investment,Capital Expenditure,External Professional Fees,Kajima Partnerships Ltd,14/09/2023,"48,989.89"
"Communities, Customer & Commercial Services",ICT,Supplies & Services,Computer Software (Maint),CIVICA UK LIMITED ,01/09/2023,"48,193.00"
Education & Skills,SEND (0-25),Third Party Payments,DSG - High Needs Block,THE EDUCATION DEVELOPMENT SERVICE LTD,27/09/2023,"47,500.00"
Education & Skills,SEND (0-25),Third Party Payments,DSG - High Needs Block,Queensway HLC,25/09/2023,"47,356.50"
Education & Skills,SEND (0-25),Third Party Payments,DSG - High Needs Block,Charlton Academy,27/09/2023,"46,491.53"
Education & Skills,SEND (0-25),Third Party Payments,DSG - High Needs Block,Queensway HLC,25/09/2023,"45,718.50"
Education & Skills,SEND (0-25),Third Party Payments,DSG - High Needs Block,Queensway HLC,25/09/2023,"43,726.75"
Prosperity & Investment,Regeneration & Investment,Supplies & Services,Payment Of Income Collected,HSBC EQUIPMENT FINANCE LIMITED,19/09/2023,"40,677.12"
Neighbourhood & Enforcement Services,Strategic Transport & Highway Network Management,Transport-Related Expenditure,Subsidised Routes,D&G Bus,21/09/2023,"40,460.53"
Education & Skills,SEND (0-25),Third Party Payments,DSG - High Needs Block,ROYAL MENCAP SOCIETY,27/09/2023,"40,000.14"
Neighbourhood & Enforcement Services,Strategic Transport & Highway Network Management,Premises-Related Expenditure,Signal Maintenance,SWARCO UK & IRELAND LTD,20/09/2023,"39,480.00"
Prosperity & Investment,Regeneration & Investment,Capital Expenditure,Payments to Contractor,L Partnerships Limited,19/09/2023,"39,277.08"
Education & Skills,Education & Skills,Capital Expenditure,Payments to Contractor,Badnell Heating Services Ltd,27/09/2023,"37,652.80"
Education & Skills,SEND (0-25),Third Party Payments,DSG - High Needs Block,Acorn Education & Care Ltd,15/09/2023,"36,011.00"
Corporate Items,Corporate Codes,Employees,Agency Supply Costs,Matrix SCM,25/09/2023,"35,186.15"
Corporate Items,Corporate Codes,Employees,Agency Supply Costs,Matrix SCM,22/09/2023,"35,186.15"
Children�s Safeguarding & Family Support,Child Protection & Family Support,Third Party Payments,Joint Financing,Barnardo�s,05/09/2023,"33,871.00"
Health & Wellbeing,Consultant in Public Health,Supplies & Services,Service Contracts,TACT,21/09/2023,"33,750.00"
Corporate Items,Corporate Codes,Employees,Agency Supply Costs,Matrix SCM,11/09/2023,"33,162.75"
"Housing, Employment & Infrastructure",Inward Investment & Business Support,Capital Expenditure,Payments to Contractor,P LTD,05/09/2023,"32,347.50"
Corporate Items,Corporate Codes,Employees,Agency Supply Costs,Matrix SCM,01/09/2023,"32,283.37"
Corporate Items,Corporate Codes,Employees,Agency Supply Costs,Matrix SCM,25/09/2023,"31,317.53"
Children�s Safeguarding & Family Support,Child Protection & Family Support,Supplies & Services,Other Grants (Expenses),Midlands Partnership NHS Foundation Trust,12/09/2023,"31,187.00"
Children�s Safeguarding & Family Support,Child Protection & Family Support,Supplies & Services,Other Grants (Expenses),Midlands Partnership NHS Foundation Trust,06/09/2023,"31,187.00"
Education & Skills,Education & Skills,Capital Expenditure,Payments to Contractor,GRANVILLE CONSTRUCTION & MAINTENANCE LTD,27/09/2023,"30,103.64"
Education & Skills,Education & Skills,Capital Expenditure,Payments to Contractor,GRANVILLE CONSTRUCTION & MAINTENANCE LTD,08/09/2023,"30,000.00"
Education & Skills,SEND (0-25),Third Party Payments,DSG - High Needs Block,Hadley Learning Community Academy,27/09/2023,"28,454.55"
Neighbourhood & Enforcement Services,"Highways, Engineering & Project Delivery",Capital Expenditure,Payments to Contractor,SWARCO UK & IRELAND LTD,12/09/2023,"28,259.01"
Education & Skills,SEND (0-25),Third Party Payments,DSG - High Needs Block,Bryn Melyn Care Ltd,15/09/2023,"27,653.34"
Education & Skills,SEND (0-25),Third Party Payments,DSG - High Needs Block,Queensway HLC,25/09/2023,"27,549.25"
Education & Skills,SEND (0-25),Third Party Payments,DSG - High Needs Block,R M Trust,15/09/2023,"27,498.33"
Education & Skills,SEND (0-25),Third Party Payments,DSG - High Needs Block,Westbury School,27/09/2023,"27,408.00"
Education & Skills,SEND (0-25),Third Party Payments,DSG - High Needs Block,Aspris Telford School,27/09/2023,"27,294.66"
Education & Skills,SEND (0-25),Third Party Payments,DSG - High Needs Block,Aspris Telford School,27/09/2023,"27,294.66"
"Communities, Customer & Commercial Services",Community Services,Supplies & Services,Grants To Voluntary Organis,TELFORD & WREKIN CITIZENS ADVICE BUREAU,14/09/2023,"27,000.00"
Adult Social Care,"Commissioning, Procurement & Brokerage",Supplies & Services,Other Grants (Expenses),SHROPSHIRE COMMUNITY HEALTH NHS TRUST,19/09/2023,"24,907.83"
Education & Skills,SEND (0-25),Third Party Payments,DSG - High Needs Block,Acorn Education & Care Ltd,15/09/2023,"24,578.66"
Prosperity & Investment,Regeneration & Investment,Capital Expenditure,Payments to Contractor,L Partnerships Limited,05/09/2023,"23,073.84"
Education & Skills,Education & Skills,Capital Expenditure,Payments to Contractor,GRANVILLE CONSTRUCTION & MAINTENANCE LTD,08/09/2023,"22,405.86"
Education & Skills,SEND (0-25),Third Party Payments,DSG - High Needs Block,CAT - Telford Priory School,27/09/2023,"21,402.52"
Education & Skills,SEND (0-25),Supplies & Services,Computer Software (Maint),BRIGHT SYSTEMS LIMITED,27/09/2023,"21,082.00"
Prosperity & Investment,Regeneration & Investment,Capital Expenditure,Payments to Contractor,W and P Building Contractors Ltd,13/09/2023,"20,765.71"
Education & Skills,Education & Skills,Capital Expenditure,Payments to Contractor,W and P Building Contractors Ltd,27/09/2023,"20,757.19"
Education & Skills,SEND (0-25),Third Party Payments,DSG - High Needs Block,Acorn Education & Care Ltd,15/09/2023,"20,075.00"
Children�s Safeguarding & Family Support,Child Protection & Family Support,Supplies & Services,Grants To Voluntary Organis,YMCA,13/09/2023,"19,876.40"
Neighbourhood & Enforcement Services,Strategic Transport & Highway Network Management,Supplies & Services,Consultancy,ATKINS LIMITED,11/09/2023,"19,810.00"
"Communities, Customer & Commercial Services",Customer Relationships & Welfare Services,Supplies & Services,Other Grants (Expenses),Hawk Incentives Ltd ,13/09/2023,"19,744.00"
Neighbourhood & Enforcement Services,Strategic Transport & Highway Network Management,Transport-Related Expenditure,Subsidised Routes,D&G Bus,21/09/2023,"19,617.35"
Education & Skills,Education & Skills,Capital Expenditure,Payments to Contractor,GRANVILLE CONSTRUCTION & MAINTENANCE LTD,27/09/2023,"19,240.00"
Education & Skills,SEND (0-25),Third Party Payments,DSG - High Needs Block,Westbury School,27/09/2023,"18,732.00"
Education & Skills,Education & Skills,Capital Expenditure,Payments to Contractor,W and P Building Contractors Ltd,15/09/2023,"18,400.20"
Prosperity & Investment,BiT,Premises-Related Expenditure,Gas,West Mercia Energy (WME),20/09/2023,"18,077.70"
Prosperity & Investment,BiT,Capital Expenditure,Computer Hardware,CCS MEDIA LIMITED,04/09/2023,"17,748.36"
Education & Skills,Education & Skills,Capital Expenditure,Payments to Contractor,GRANVILLE CONSTRUCTION & MAINTENANCE LTD,25/09/2023,"17,171.98"
Education & Skills,SEND (0-25),Third Party Payments,DSG - High Needs Block,Aspris Telford School,22/09/2023,"17,098.33"
Education & Skills,Consultancy & Advisory Services,Supplies & Services,Other Grants (Expenses),Charlton Academy,19/09/2023,"16,875.00"
Prosperity & Investment,Regeneration & Investment,Premises-Related Expenditure,Electricity,West Mercia Energy (WME),20/09/2023,"16,366.40"
Education & Skills,SEND (0-25),Third Party Payments,DSG - High Needs Block,Bredon School Ltd,15/09/2023,"15,750.00"
Education & Skills,SEND (0-25),Third Party Payments,DSG - High Needs Block,St David�s College,22/09/2023,"15,596.40"
Neighbourhood & Enforcement Services,Strategic Transport & Highway Network Management,Transport-Related Expenditure,Subsidised Routes,D&G Bus,21/09/2023,"15,449.70"
Prosperity & Investment,Regeneration & Investment,Capital Expenditure,Payments to Contractor,SWG Construction,26/09/2023,"15,411.36"
Education & Skills,SEND (0-25),Third Party Payments,DSG - High Needs Block,Acorn Education & Care Ltd,15/09/2023,"15,341.87"
Prosperity & Investment,Regeneration & Investment,Supplies & Services,Payment Of Income Collected,HSBC EQUIPMENT FINANCE LIMITED,19/09/2023,"14,681.67"
Education & Skills,SEND (0-25),Third Party Payments,DSG - High Needs Block,Bettws Lifehouse Ltd,27/09/2023,"14,666.67"
Education & Skills,SEND (0-25),Third Party Payments,DSG - High Needs Block,Bredon School Ltd,15/09/2023,"14,425.00"
"Communities, Customer & Commercial Services",ICT,Supplies & Services,Comp Hardware (Purch / Hire),Getech Ltd,25/09/2023,"14,340.00"
"Communities, Customer & Commercial Services",ICT,Capital Expenditure,Payments to Contractor,B Hub Limited,05/09/2023,"14,333.33"
Education & Skills,Education & Skills,Capital Expenditure,Payments to Contractor,GRANVILLE CONSTRUCTION & MAINTENANCE LTD,25/09/2023,"13,638.00"
"Communities, Customer & Commercial Services",ICT,Supplies & Services,Mobile Phones,EE LTD AIRTIME ,12/09/2023,"13,588.58"
Prosperity & Investment,BiT,Premises-Related Expenditure,Electricity,West Mercia Energy (WME),20/09/2023,"13,496.66"
Education & Skills,Education & Skills,Capital Expenditure,Payments to Contractor,P LTD,11/09/2023,"13,339.00"
Prosperity & Investment,Regeneration & Investment,Capital Expenditure,Compensation,B J LLP,05/09/2023,"13,272.60"
Education & Skills,SEND (0-25),Third Party Payments,DSG - High Needs Block,Haberdashers Adams,22/09/2023,"13,197.65"
Neighbourhood & Enforcement Services,Safer & Stronger Communities,Supplies & Services,Other Services,Shropshire Youth Association,13/09/2023,"13,014.00"
Neighbourhood & Enforcement Services,"Highways, Engineering & Project Delivery",Capital Expenditure,Payments to Contractor,Pavegen Systems Ltd,07/09/2023,"12,892.86"
Education & Skills,Education & Skills,Capital Expenditure,Payments to Contractor,Badnell Heating Services Ltd,26/09/2023,"12,500.00"
Health & Wellbeing,Consultant in Public Health,Premises-Related Expenditure,Other,SHREWSBURY & TELFORD HOSPITAL NHS TRUST,21/09/2023,"12,443.58"
Education & Skills,SEND (0-25),Third Party Payments,DSG - High Needs Block,NOVA TRAINING LTD,15/09/2023,"12,436.30"
"Communities, Customer & Commercial Services",ICT,Capital Expenditure,Payments to Contractor,B Hub Limited,21/09/2023,"12,166.67"
Education & Skills,Education & Skills,Capital Expenditure,Payments to Contractor,W and P Building Contractors Ltd,15/09/2023,"12,072.87"
Prosperity & Investment,BiT,Capital Expenditure,Payments to Contractor,Ideal Access Ltd,26/09/2023,"11,937.00"
Prosperity & Investment,BiT,Capital Expenditure,Computer Software,CCS MEDIA LIMITED,04/09/2023,"11,902.52"
"Communities, Customer & Commercial Services",ICT,Supplies & Services,Comp Software (Purch / Hire),PHOENIX SOFTWARE LTD,11/09/2023,"11,698.56"
"Communities, Customer & Commercial Services",ICT,Supplies & Services,Comp Software (Purch / Hire),PHOENIX SOFTWARE LTD,26/09/2023,"11,491.69"
Education & Skills,SEND (0-25),Third Party Payments,DSG - High Needs Block,Ercall Wood Academy,22/09/2023,"11,233.79"
Education & Skills,SEND (0-25),Third Party Payments,DSG - High Needs Block,Wrekin View Primary School,22/09/2023,"11,154.58"
Prosperity & Investment,Regeneration & Investment,Capital Expenditure,External Professional Fees,PERFECT CIRCLE JV LTD,25/09/2023,"10,880.16"
Health & Wellbeing,Consultant in Public Health,Supplies & Services,Sub Contractors,Midlands Partnership NHS Foundation Trust,05/09/2023,"10,682.00"
Adult Social Care,"Commissioning, Procurement & Brokerage",Supplies & Services,Other Grants (Expenses),TACT,19/09/2023,"10,450.00"
Children�s Safeguarding & Family Support,Child Protection & Family Support,Supplies & Services,Other Grants (Expenses),Midlands Partnership NHS Foundation Trust,12/09/2023,"10,395.67"
Children�s Safeguarding & Family Support,Child Protection & Family Support,Supplies & Services,Other Grants (Expenses),Midlands Partnership NHS Foundation Trust,06/09/2023,"10,395.67"
Prosperity & Investment,Regeneration & Investment,Premises-Related Expenditure,R&M -Building Other,Liftsafe LTD,12/09/2023,"10,100.00"
Prosperity & Investment,Regeneration & Investment,Third Party Payments,Contractor Recharge,Liftsafe LTD,12/09/2023,"10,100.00"
Prosperity & Investment,BiT,Capital Expenditure,Payments to Contractor,Pumpforce Ltd,13/09/2023,"10,080.74"
Education & Skills,SEND (0-25),Third Party Payments,Health Funded Services,SHROPSHIRE COMMUNITY HEALTH NHS TRUST,22/09/2023,"10,024.50"
Education & Skills,SEND (0-25),Third Party Payments,DSG - High Needs Block,Bettws Lifehouse Ltd,15/09/2023,"10,000.00"
Education & Skills,SEND (0-25),Third Party Payments,DSG - High Needs Block,Bettws Lifehouse Ltd,27/09/2023,"10,000.00"
Neighbourhood & Enforcement Services,"Highways, Engineering & Project Delivery",Capital Expenditure,External Professional Fees,XAIS Asset Management Ltd,05/09/2023,"10,000.00"
Adult Social Care,My Options,Employees,Agency Supply Costs,Safehands Recruitment,12/09/2023,"9,643.70"
Finance & Human Resources,Revenues,Supplies & Services,Consultancy,Inform CPI Ltd,01/09/2023,"9,500.00"
Prosperity & Investment,BiT,Premises-Related Expenditure,Electricity,West Mercia Energy (WME),20/09/2023,"9,264.95"
"Communities, Customer & Commercial Services",ICT,Supplies & Services,Mobile Phones,CCS MEDIA LIMITED,22/09/2023,"8,928.00"
"Communities, Customer & Commercial Services",ICT,Supplies & Services,Telephones,BRITISH TELECOMMUNICATIONS PLC ,21/09/2023,"8,757.60"
Adult Social Care,"Assurance, Transformation & Financial Management",Supplies & Services,Computer Software (Maint),LIQUIDLOGIC LIMITED,14/09/2023,"8,712.00"
Children�s Safeguarding & Family Support,Child Protection & Family Support,Supplies & Services,Other Services,Signis Limited,08/09/2023,"8,600.00"
"Communities, Customer & Commercial Services",ICT,Capital Expenditure,Payments to Contractor,B Hub Limited,05/09/2023,"8,491.50"
Adult Social Care,My Options,Employees,Agency Supply Costs,Safehands Recruitment,19/09/2023,"8,423.25"
Education & Skills,SEND (0-25),Third Party Payments,DSG - High Needs Block,Lawley Village Academy,22/09/2023,"8,358.80"
Prosperity & Investment,Regeneration & Investment,Capital Expenditure,Payments to Contractor,National Grid Electricity Distribution plc,27/09/2023,"8,339.64"
Education & Skills,Education & Skills,Capital Expenditure,Payments to Contractor,R G S LTD,27/09/2023,"8,220.00"
Prosperity & Investment,BiT,Premises-Related Expenditure,Electricity,West Mercia Energy (WME),20/09/2023,"8,171.39"
"Communities, Customer & Commercial Services",Culture & Events,Supplies & Services,Artistes Fees,Stage and Studios Services Limited,12/09/2023,"7,930.00"
Prosperity & Investment,BiT,Capital Expenditure,Computer Hardware,CCS MEDIA LIMITED,04/09/2023,"7,910.76"
Education & Skills,SEND (0-25),Third Party Payments,DSG - High Needs Block,Bettws Lifehouse Ltd,15/09/2023,"7,833.33"
Education & Skills,SEND (0-25),Third Party Payments,DSG - High Needs Block,Bettws Lifehouse Ltd,22/09/2023,"7,833.33"
Education & Skills,Consultancy & Advisory Services,Supplies & Services,Other Grants (Expenses),AFC Telford United Foundation CIC,11/09/2023,"7,630.00"
Education & Skills,SEND (0-25),Third Party Payments,DSG - High Needs Block,Bettws Lifehouse Ltd,27/09/2023,"7,500.00"
Education & Skills,SEND (0-25),Third Party Payments,DSG - High Needs Block,Bettws Lifehouse Ltd,27/09/2023,"7,500.00"
Education & Skills,Consultancy & Advisory Services,Supplies & Services,Other Grants (Expenses),Shropshire Youth Association,19/09/2023,"7,500.00"
Education & Skills,SEND (0-25),Third Party Payments,DSG - High Needs Block,Redhill Primary Academy,22/09/2023,"7,400.13"
Education & Skills,SEND (0-25),Third Party Payments,DSG - High Needs Block,St Peter�s Bratton C of E Academy,22/09/2023,"7,314.66"
Prosperity & Investment,BiT,Premises-Related Expenditure,Gas,West Mercia Energy (WME),20/09/2023,"7,060.43"
Adult Social Care,My Options,Employees,Agency Supply Costs,Safehands Recruitment,21/09/2023,"7,055.95"
"Communities, Customer & Commercial Services",ICT,Supplies & Services,Telecomms,CCS MEDIA LIMITED,01/09/2023,"7,030.00"
Education & Skills,SEND (0-25),Third Party Payments,DSG - High Needs Block,Dawley C of E Primary Academy,27/09/2023,"7,020.62"
Education & Skills,Skills,Supplies & Services,Advertising,THE MIDLAND NEWS ASSOCIATION LTD,11/09/2023,"6,995.00"
Education & Skills,SEND (0-25),Third Party Payments,DSG - High Needs Block,MADELEY ACADEMY TRUST LTD,27/09/2023,"6,930.22"
Prosperity & Investment,BiT,Premises-Related Expenditure,Electricity,West Mercia Energy (WME),20/09/2023,"6,886.30"
Neighbourhood & Enforcement Services,"Highways, Engineering & Project Delivery",Capital Expenditure,Payments to Contractor,Amey OW Ltd,07/09/2023,"6,840.58"
Education & Skills,SEND (0-25),Third Party Payments,DSG - High Needs Block,Crudgington Primary School,22/09/2023,"6,696.36"
Prosperity & Investment,Development Management,Capital Expenditure,Payments to Contractor,GROUND INVESTIGATION & PILING LTD,26/09/2023,"6,691.30"
Policy & Governance,Governance & Legal Services,Supplies & Services,Miscellaneous Insurance,Alphatec Software Limited,06/09/2023,"6,689.00"
Prosperity & Investment,Regeneration & Investment,Premises-Related Expenditure,Grounds Maintenance - L&CS,GRANVILLE CONSTRUCTION & MAINTENANCE LTD,13/09/2023,"6,529.00"
Neighbourhood & Enforcement Services,Strategic Transport & Highway Network Management,Transport-Related Expenditure,Fuel,ALLSTAR BUSINESS SOLUTIONS LTD,22/09/2023,"6,473.80"
Neighbourhood & Enforcement Services,"Highways, Engineering & Project Delivery",Capital Expenditure,External Professional Fees,XAIS Asset Management Ltd,01/09/2023,"6,400.00"
Education & Skills,SEND (0-25),Third Party Payments,DSG - High Needs Block,Telford Park School,22/09/2023,"6,368.07"
Neighbourhood & Enforcement Services,Strategic Transport & Highway Network Management,Supplies & Services,Consultancy,W Aspen,19/09/2023,"6,358.40"
Adult Social Care,Prevention & Independence - Older Adults & Disability,Supplies & Services,Equipment - Repair,STANNAH LIFT SERVICES LTD,20/09/2023,"6,327.25"
Adult Social Care,Prevention & Independence - Older Adults & Disability,Supplies & Services,Aids & Appliances,SHROPSHIRE COMMUNITY HEALTH NHS TRUST,25/09/2023,"6,301.66"
Adult Social Care,My Options,Employees,Agency Supply Costs,Safehands Recruitment,12/09/2023,"6,293.65"
Neighbourhood & Enforcement Services,"Highways, Engineering & Project Delivery",Supplies & Services,Consultancy,W Aspen,05/09/2023,"6,284.16"
Neighbourhood & Enforcement Services,Enforcement,Supplies & Services,Security Services,Security Wise Ltd,11/09/2023,"6,210.00"
Adult Social Care,Prevention & Independence - Older Adults & Disability,Supplies & Services,Equipment - Repair,STANNAH LIFT SERVICES LTD,26/09/2023,"6,120.75"
Adult Social Care,My Options,Employees,Agency Supply Costs,Safehands Recruitment,19/09/2023,"5,856.95"
Neighbourhood & Enforcement Services,Enforcement,Supplies & Services,Security Services,Security Wise Ltd,11/09/2023,"5,760.00"
Prosperity & Investment,Regeneration & Investment,Supplies & Services,Payment Of Income Collected,HSBC EQUIPMENT FINANCE LIMITED,19/09/2023,"5,668.87"
Prosperity & Investment,Regeneration & Investment,Capital Expenditure,External Professional Fees,Kajima Partnerships Ltd,14/09/2023,"5,665.00"
"Communities, Customer & Commercial Services",ICT,Supplies & Services,Comp Software (Purch / Hire),PHOENIX SOFTWARE LTD,13/09/2023,"5,588.00"
Adult Social Care,Community Social Work (Principal Social Worker),Transport-Related Expenditure,Transport,More Than Care Telford,20/09/2023,"5,547.65"
"Communities, Customer & Commercial Services",Sport & Leisure,Supplies & Services,Payment Of Income Collected,Telford Tigers Limited,18/09/2023,"5,538.72"
Prosperity & Investment,BiT,Premises-Related Expenditure,R&M -Buildings DLO Charge,Cubic FM Ltd,26/09/2023,"5,530.00"
Education & Skills,SEND (0-25),Third Party Payments,DSG - High Needs Block,Grange Park Primary School - Community Academies Trust,22/09/2023,"5,526.14"
"Communities, Customer & Commercial Services",Culture & Events,Supplies & Services,Artistes Fees,T W Testimonials,05/09/2023,"5,516.70"
Education & Skills,SEND (0-25),Third Party Payments,DSG - High Needs Block,Charlton Academy,27/09/2023,"5,479.29"
Health & Wellbeing,Health Improvement,Supplies & Services,Plastics,PROQUEST INFORMATION AND LEARNING LTD,05/09/2023,"5,457.34"
Prosperity & Investment,Regeneration & Investment,Premises-Related Expenditure,Electricity,West Mercia Energy (WME),20/09/2023,"5,414.74"
Prosperity & Investment,BiT,Premises-Related Expenditure,R&M -Buildings DLO Charge,Pumpforce Ltd,13/09/2023,"5,408.00"
Adult Social Care,"Commissioning, Procurement & Brokerage",Third Party Payments,Interpreters Fees,EXPRESS INTERPRETING & TRANSLATION,19/09/2023,"5,317.66"
Education & Skills,Pupil Support Services,Supplies & Services,Instructors Fees,Entrust Support Services Ltd,04/09/2023,"5,280.00"
Adult Social Care,Prevention & Independence - Older Adults & Disability,Supplies & Services,Other Grants (Expenses),Doro Care Uk,07/09/2023,"5,217.17"
Prosperity & Investment,Regeneration & Investment,Premises-Related Expenditure,R&M -Building Other,H W Limited,15/09/2023,"5,200.00"
Prosperity & Investment,Regeneration & Investment,Capital Expenditure,External Professional Fees,PERFECT CIRCLE JV LTD,25/09/2023,"5,195.73"
Education & Skills,Pupil Support Services,Third Party Payments,Misc. Education Payments to T&W Schools (incl Academies),Kickstart Academy,25/09/2023,"5,164.93"
Prosperity & Investment,BiT,Premises-Related Expenditure,Gas,West Mercia Energy (WME),20/09/2023,"5,110.33"
"Housing, Employment & Infrastructure",Inward Investment & Business Support,Supplies & Services,Other Grants (Expenses),European Innovation Limited,20/09/2023,"5,096.00"
Education & Skills,Education & Skills,Capital Expenditure,Payments to Contractor,GRANVILLE CONSTRUCTION & MAINTENANCE LTD,27/09/2023,"5,065.00"
Education & Skills,Pupil Support Services,Third Party Payments,Misc. Education Payments to T&W Schools (incl Academies),Kickstart Academy,25/09/2023,"5,040.29"
Prosperity & Investment,Regeneration & Investment,Capital Expenditure,Payments to Contractor,Security Wise Ltd,21/09/2023,"5,036.00"
Education & Skills,SEND (0-25),Third Party Payments,Health Funded Services,SHROPSHIRE COMMUNITY HEALTH NHS TRUST,27/09/2023,"5,012.25"
"Housing, Employment & Infrastructure",Inward Investment & Business Support,Capital Expenditure,Payments to Contractor,Mid West Planning Ltd,01/09/2023,"5,000.00"
Prosperity & Investment,BiT,Premises-Related Expenditure,Electricity,West Mercia Energy (WME),20/09/2023,"4,961.65"
"Communities, Customer & Commercial Services",ICT,Supplies & Services,Comp Software (Purch / Hire),PHOENIX SOFTWARE LTD,14/09/2023,"4,880.64"
Prosperity & Investment,BiT,Capital Expenditure,Payments to Contractor,CCS MEDIA LIMITED,06/09/2023,"4,875.00"
"Communities, Customer & Commercial Services",Sport & Leisure,Supplies & Services,Payment Of Income Collected,Telford Tigers Limited,26/09/2023,"4,814.88"
Education & Skills,SEND (0-25),Third Party Payments,DSG - High Needs Block,Windmill Primary School Academy,22/09/2023,"4,805.31"
Education & Skills,Education & Skills,Capital Expenditure,Payments to Contractor,M M LIMITED,21/09/2023,"4,775.00"
Education & Skills,Skills,Supplies & Services,Advertising,Bauer Radio Ltd,11/09/2023,"4,747.04"
Prosperity & Investment,BiT,Capital Expenditure,Computer Hardware,CCS MEDIA LIMITED,18/09/2023,"4,728.71"
"Communities, Customer & Commercial Services",Culture & Events,Supplies & Services,Equipment - Hire,TELFORD TOILET HIRE,28/09/2023,"4,726.00"
Prosperity & Investment,Regeneration & Investment,Premises-Related Expenditure,Grounds Maintenance - L&CS,GRANVILLE CONSTRUCTION & MAINTENANCE LTD,13/09/2023,"4,685.00"
Education & Skills,Pupil Support Services,Supplies & Services,Instructors Fees,Entrust Support Services Ltd,04/09/2023,"4,608.00"
Prosperity & Investment,BiT,Premises-Related Expenditure,R&M -Buildings DLO Charge,WB Building Services Limited,26/09/2023,"4,557.91"
Education & Skills,SEND (0-25),Third Party Payments,DSG - High Needs Block,CROSSBAR COACHING,22/09/2023,"4,550.00"
Children�s Safeguarding & Family Support,Family Connect & Childrens Centres,Employees,Course Fees,AMITY RELATIONSHIP SOLUTIONS,13/09/2023,"4,550.00"
"Communities, Customer & Commercial Services",Culture & Events,Supplies & Services,Artistes Fees,Spirit Operations Ltd,11/09/2023,"4,500.00"
Prosperity & Investment,Regeneration & Investment,Capital Expenditure,External Professional Fees,SIGNS EXPRESS ,19/09/2023,"4,470.00"
Education & Skills,SEND (0-25),Third Party Payments,DSG - High Needs Block,ABRAHAM DARBY ACADEMY ,27/09/2023,"4,469.64"
Children�s Safeguarding & Family Support,Family Connect & Childrens Centres,Employees,Staff Training,TRIPLE P UK LIMITED,11/09/2023,"4,440.00"
"Communities, Customer & Commercial Services",ICT,Capital Expenditure,Payments to Contractor,FarrPoint Ltd,12/09/2023,"4,437.50"
Education & Skills,Education & Skills,Capital Expenditure,Payments to Contractor,ARJO UK LTD,26/09/2023,"4,423.13"
Neighbourhood & Enforcement Services,"Highways, Engineering & Project Delivery",Capital Expenditure,External Professional Fees,Amey OW Ltd,28/09/2023,"4,409.50"
Neighbourhood & Enforcement Services,"Highways, Engineering & Project Delivery",Supplies & Services,Other Services,VEOLIA ES LTD ,07/09/2023,"4,403.69"
Neighbourhood & Enforcement Services,Safer & Stronger Communities,Supplies & Services,Furniture - Purchase,DK Furniture Limited,04/09/2023,"4,375.00"
Education & Skills,SEND (0-25),Transport-Related Expenditure,Taxi Costs,24X7 Ltd,15/09/2023,"4,370.10"
Education & Skills,SEND (0-25),Third Party Payments,DSG - High Needs Block,Dawley C of E Primary Academy,22/09/2023,"4,280.74"
Health & Wellbeing,Consultant in Public Health,Employees,Professional Subs,Association of Directors of Public Health,21/09/2023,"4,250.00"
Prosperity & Investment,Regeneration & Investment,Premises-Related Expenditure,Electricity,NPOWER ELECTRICITY,08/09/2023,"4,248.28"
Prosperity & Investment,BiT,Premises-Related Expenditure,Electricity,West Mercia Energy (WME),20/09/2023,"4,159.62"
Education & Skills,Education & Skills,Capital Expenditure,Payments to Contractor,R Maintenance Services Ltd,26/09/2023,"4,150.00"
Health & Wellbeing,Health Protection,Supplies & Services,Other Services,West Mercia Police & Crime Commissioner,07/09/2023,"4,145.73"
Adult Social Care,My Options,Employees,Agency Supply Costs,Safehands Recruitment,28/09/2023,"4,139.85"
Education & Skills,SEND (0-25),Third Party Payments,DSG - High Needs Block,Church Street Day Nursery,22/09/2023,"4,075.20"
Neighbourhood & Enforcement Services,"Highways, Engineering & Project Delivery",Supplies & Services,Consultancy,W Aspen,05/09/2023,"4,063.84"
Prosperity & Investment,Regeneration & Investment,Premises-Related Expenditure,Electricity,West Mercia Energy (WME),20/09/2023,"4,047.95"
Education & Skills,Education & Skills,Capital Expenditure,Payments to Contractor,PP ELECTRICAL SERVICES Ltd,13/09/2023,"4,040.00"
"Communities, Customer & Commercial Services",ICT,Supplies & Services,Comp Hardware (Purch / Hire),CCS MEDIA LIMITED,22/09/2023,"4,025.00"
Prosperity & Investment,BiT,Premises-Related Expenditure,Water Rates,DWR CYMRU WELSH WATER,21/09/2023,"4,009.09"
Neighbourhood & Enforcement Services,"Highways, Engineering & Project Delivery",Capital Expenditure,Payments to Contractor,Amey OW Ltd,27/09/2023,"3,979.65"
Prosperity & Investment,Regeneration & Investment,Capital Expenditure,External Professional Fees,WREKIN DRAIN SERVICES LTD,27/09/2023,"3,974.22"
Neighbourhood & Enforcement Services,Strategic Transport & Highway Network Management,Capital Expenditure,Payments to Contractor,ATKINS LIMITED,19/09/2023,"3,924.63"
Adult Social Care,My Options,Employees,Agency Supply Costs,Safehands Recruitment,21/09/2023,"3,903.35"
Education & Skills,Education & Skills,Capital Expenditure,Payments to Contractor,E N CATERING EQUIPMENT AND SERVICES LTD,26/09/2023,"3,887.11"
Education & Skills,SEND (0-25),Third Party Payments,DSG - High Needs Block,Wrekin View Primary School,27/09/2023,"3,767.84"
Neighbourhood & Enforcement Services,"Highways, Engineering & Project Delivery",Capital Expenditure,Payments to Contractor,Smart Video & Sensing Ltd,14/09/2023,"3,749.00"
Neighbourhood & Enforcement Services,"Highways, Engineering & Project Delivery",Capital Expenditure,Payments to Contractor,Smart Video & Sensing Ltd,14/09/2023,"3,749.00"
"Communities, Customer & Commercial Services",Culture & Events,Supplies & Services,Artistes Fees,Lipstick On Your Collar Ltd,06/09/2023,"3,704.56"
"Communities, Customer & Commercial Services",ICT,Premises-Related Expenditure,R&M -Buildings DLO Charge,Churches Fire Security Ltd,27/09/2023,"3,698.50"
Education & Skills,Education & Skills,Capital Expenditure,Payments to Contractor,ARJO UK LTD,26/09/2023,"3,694.87"
Education & Skills,SEND (0-25),Third Party Payments,DSG - High Needs Block,Lantern Academy,22/09/2023,"3,664.11"
Education & Skills,Education & Skills,Capital Expenditure,Payments to Contractor,Services in Design Ltd,11/09/2023,"3,652.91"
Prosperity & Investment,BiT,Capital Expenditure,Payments to Contractor,Services in Design Ltd,11/09/2023,"3,652.91"
Prosperity & Investment,Development Management,Capital Expenditure,Payments to Contractor,AJB CONTRACTING LTD,28/09/2023,"3,628.00"
Education & Skills,Education & Skills,Capital Expenditure,Payments to Contractor,GRANVILLE CONSTRUCTION & MAINTENANCE LTD,27/09/2023,"3,620.00"
Prosperity & Investment,Development Management,Supplies & Services,Comp Software (Purch / Hire),TRICS Consortium Ltd,27/09/2023,"3,600.00"
Prosperity & Investment,BiT,Capital Expenditure,Payments to Contractor,SHROPSHIRE BLINDS & AWNINGS LIMITED,13/09/2023,"3,586.00"
Education & Skills,Skills,Supplies & Services,Advertising,Bauer Radio Ltd,11/09/2023,"3,572.28"
Prosperity & Investment,BiT,Premises-Related Expenditure,R&M -Buildings DLO Charge,TAYLORS MECHANICAL H & P SERVICES LTD,04/09/2023,"3,570.00"
"Communities, Customer & Commercial Services",ICT,Supplies & Services,Comp Software (Purch / Hire),B Computers Plc,21/09/2023,"3,563.25"
Prosperity & Investment,BiT,Premises-Related Expenditure,Gas,West Mercia Energy (WME),20/09/2023,"3,542.71"
"Communities, Customer & Commercial Services",ICT,Capital Expenditure,Computer Software,CIVICA UK LIMITED ,14/09/2023,"3,500.00"
Education & Skills,SEND (0-25),Third Party Payments,DSG - High Needs Block,The Telford Langley School ,22/09/2023,"3,486.62"
Finance & Human Resources,Human Resources,Employees,Other Employee Costs,Health Assured Ltd,14/09/2023,"3,429.00"
Finance & Human Resources,Human Resources,Employees,Other Employee Costs,Health Assured Ltd,14/09/2023,"3,429.00"
Prosperity & Investment,BiT,Premises-Related Expenditure,R&M -Buildings DLO Charge,KN Services Staffordshire Ltd,21/09/2023,"3,399.00"
Neighbourhood & Enforcement Services,Strategic Transport & Highway Network Management,Supplies & Services,Consultancy,W Aspen,05/09/2023,"3,385.26"
"Communities, Customer & Commercial Services",ICT,Premises-Related Expenditure,Service Contracts,AVK/SEG Ltd,04/09/2023,"3,371.37"
Policy & Governance,Governance & Legal Services,Supplies & Services,Legal Expenses,LOCAL GOVERNMENT ASSOCIATION,29/09/2023,"3,360.00"
Children�s Safeguarding & Family Support,Family Connect & Childrens Centres,Employees,Criminal Records Bureau Checks,TELFORD & WREKIN CITIZENS ADVICE BUREAU,26/09/2023,"3,334.00"
Children�s Safeguarding & Family Support,Family Connect & Childrens Centres,Employees,Criminal Records Bureau Checks,TELFORD & WREKIN CITIZENS ADVICE BUREAU,26/09/2023,"3,333.00"
Children�s Safeguarding & Family Support,Family Connect & Childrens Centres,Employees,Criminal Records Bureau Checks,TELFORD & WREKIN CITIZENS ADVICE BUREAU,26/09/2023,"3,333.00"
Prosperity & Investment,BiT,Premises-Related Expenditure,Electricity,West Mercia Energy (WME),20/09/2023,"3,314.68"
Prosperity & Investment,Regeneration & Investment,Premises-Related Expenditure,R&M -Buildings DLO Charge,KN Services Staffordshire Ltd,19/09/2023,"3,300.00"
Neighbourhood & Enforcement Services,Safer & Stronger Communities,Supplies & Services,Furniture - Purchase,DK Furniture Limited,23/09/2023,"3,285.00"
Education & Skills,Skills,Supplies & Services,Exam Fees,CITY & GUILDS,20/09/2023,"3,271.50"
"Communities, Customer & Commercial Services",Culture & Events,Supplies & Services,Artistes Fees,Worldbeaters Ltd,04/09/2023,"3,232.50"
Neighbourhood & Enforcement Services,"Highways, Engineering & Project Delivery",Capital Expenditure,Payments to Contractor,A.R.M. Surveys Ltd,11/09/2023,"3,200.00"
Neighbourhood & Enforcement Services,Waste & Neighbourhood Services,Supplies & Services,Pocket Money/Home Leave,SEVERN GORGE COUNTRYSIDE TRUST,26/09/2023,"3,126.00"
"Communities, Customer & Commercial Services",ICT,Supplies & Services,Telephones,Trustmarque Solutions Limited,04/09/2023,"3,113.50"
Neighbourhood & Enforcement Services,Strategic Transport & Highway Network Management,Transport-Related Expenditure,Fuel,ALLSTAR BUSINESS SOLUTIONS LTD,15/09/2023,"3,080.81"
Prosperity & Investment,BiT,Premises-Related Expenditure,R&M -Buildings DLO Charge,GRANVILLE CONSTRUCTION & MAINTENANCE LTD,26/09/2023,"3,075.44"
Children�s Safeguarding & Family Support,"Family Placements, Children in Care, Leaving Care & Emergency Duty Team",Supplies & Services,Aids & Appliances,Jiraffe,21/09/2023,"3,071.00"
Education & Skills,SEND (0-25),Third Party Payments,DSG - High Needs Block,THE BEARS DEN PRE-SCHOOL ,22/09/2023,"3,069.25"
Prosperity & Investment,BiT,Premises-Related Expenditure,Electricity,West Mercia Energy (WME),20/09/2023,"3,038.51"
"Communities, Customer & Commercial Services",ICT,Supplies & Services,Computer Hardware (Maint),CIVICA UK LIMITED ,01/09/2023,"3,000.00"
Finance & Human Resources,Revenues,Supplies & Services,Franking Machine Service,FRANCOTYP-POSTALIA LTD,26/09/2023,"3,000.00"
"Communities, Customer & Commercial Services",ICT,Supplies & Services,Comp Software (Purch / Hire),CCS MEDIA LIMITED,05/09/2023,"2,989.00"
"Communities, Customer & Commercial Services",ICT,Supplies & Services,Comp Software (Purch / Hire),ScholarPack,08/09/2023,"2,982.00"
Prosperity & Investment,BiT,Premises-Related Expenditure,R&M -Buildings DLO Charge,CALTEL CATERING & LAUNDRY EQUIPMENT LLP,26/09/2023,"2,980.24"
Education & Skills,SEND (0-25),Third Party Payments,DSG - High Needs Block,PRIORSLEE PRE-SCHOOL,22/09/2023,"2,940.78"
"Communities, Customer & Commercial Services",ICT,Premises-Related Expenditure,Service Contracts,AVK/SEG Ltd,04/09/2023,"2,928.08"
"Communities, Customer & Commercial Services",Customer Relationships & Welfare Services,Supplies & Services,IT Services,NEC Software Solutions UK Ltd,01/09/2023,"2,925.00"
Finance & Human Resources,Revenues,Supplies & Services,Franking Machine Service,NEC Software Solutions UK Ltd,01/09/2023,"2,925.00"
Neighbourhood & Enforcement Services,Safer & Stronger Communities,Supplies & Services,Furniture - Purchase,DK Furniture Limited,11/09/2023,"2,920.00"
Finance & Human Resources,Revenues,Supplies & Services,Postages,Financial Data Management plc,22/09/2023,"2,904.89"
Neighbourhood & Enforcement Services,Waste & Neighbourhood Services,Third Party Payments,Specialist Waste Contractor charge,PHS GROUP,13/09/2023,"2,854.60"
"Communities, Customer & Commercial Services",ICT,Capital Expenditure,Payments to Contractor,Access UK Ltd,28/09/2023,"2,850.00"
Prosperity & Investment,Regeneration & Investment,Premises-Related Expenditure,R&M - Electrical,PP ELECTRICAL SERVICES Ltd,08/09/2023,"2,850.00"
Prosperity & Investment,Regeneration & Investment,Premises-Related Expenditure,Grounds Maintenance - L&CS,W L T LIMITED,20/09/2023,"2,849.61"
"Communities, Customer & Commercial Services",Sport & Leisure,Premises-Related Expenditure,Clean Mats & Toilet Requisites,Border Janitorial Supplies Limited,19/09/2023,"2,827.80"
Neighbourhood & Enforcement Services,"Highways, Engineering & Project Delivery",Supplies & Services,Other Services,GROUND INVESTIGATION & PILING LTD,19/09/2023,"2,800.05"
Finance & Human Resources,Revenues,Supplies & Services,Consultancy,Inform CPI Ltd,26/09/2023,"2,800.00"
Children�s Safeguarding & Family Support,"Family Placements, Children in Care, Leaving Care & Emergency Duty Team",Supplies & Services,Advertising,Newsquest Media Group,22/09/2023,"2,800.00"
"Communities, Customer & Commercial Services",ICT,Supplies & Services,Telephones,Trustmarque Solutions Limited,25/09/2023,"2,786.22"
Finance & Human Resources,Revenues,Supplies & Services,Postages,ROYAL MAIL GROUP PLC,04/09/2023,"2,780.31"
Education & Skills,Skills,Premises-Related Expenditure,Hire Of Rooms,CENTURY-TECH LTD,22/09/2023,"2,770.00"
Neighbourhood & Enforcement Services,Strategic Transport & Highway Network Management,Supplies & Services,Protective Clothing,ETAK Creative Ltd,15/09/2023,"2,751.36"
Neighbourhood & Enforcement Services,Waste & Neighbourhood Services,Third Party Payments,Contractor Recharge,SHROPSHIRE & WREKIN FIRE AUTHORITY,14/09/2023,"2,750.00"
Education & Skills,SEND (0-25),Supplies & Services,Health & Safety Expenses,Schuchmann LLP,25/09/2023,"2,740.00"
Education & Skills,Skills,Premises-Related Expenditure,Hire Of Rooms,TELFORD INTERNATIONAL CENTRE,11/09/2023,"2,706.75"
Neighbourhood & Enforcement Services,"Highways, Engineering & Project Delivery",Supplies & Services,Other Services,GROUND INVESTIGATION & PILING LTD,19/09/2023,"2,681.75"
Health & Wellbeing,Health Improvement,Supplies & Services,Equipment - Purchase,OPENING THE BOOK LTD,15/09/2023,"2,680.00"
"Communities, Customer & Commercial Services",Culture & Events,Supplies & Services,Equipment - Hire,Avanti Gas Ltd,21/09/2023,"2,678.60"
"Communities, Customer & Commercial Services",ICT,Supplies & Services,Telecomms,BRITISH TELECOMMUNICATIONS PLC ,25/09/2023,"2,651.31"
Prosperity & Investment,BiT,Premises-Related Expenditure,Building Cleaning DSO,Vortex Cleaning Ltd,26/09/2023,"2,597.50"
Prosperity & Investment,Regeneration & Investment,Premises-Related Expenditure,R&M -Building Other,GRANVILLE CONSTRUCTION & MAINTENANCE LTD,25/09/2023,"2,590.88"
"Communities, Customer & Commercial Services",ICT,Supplies & Services,Comp Hardware (Purch / Hire),CCS MEDIA LIMITED,29/09/2023,"2,576.28"
Neighbourhood & Enforcement Services,"Highways, Engineering & Project Delivery",Employees,Training Expenses,INSTITUTE OF HIGHWAYS ENGINEERS,28/09/2023,"2,575.00"
"Housing, Employment & Infrastructure",Private Sector Housing & Enforcement,Capital Expenditure,Expenditure on loans & other financial assistance,Marches Energy Agency,26/09/2023,"2,538.00"
Prosperity & Investment,Housing Investment Programme,Supplies & Services,Materials,Focus Consultants 2010 LLP,14/09/2023,"2,530.00"
Prosperity & Investment,BiT,Premises-Related Expenditure,Service Contracts,ARJO UK LTD,26/09/2023,"2,516.83"
Prosperity & Investment,BiT,Premises-Related Expenditure,Gas,West Mercia Energy (WME),20/09/2023,"2,490.43"
Prosperity & Investment,Development Management,Employees,Agency Supply Costs,Stonehouse Recruitment Group Limited,21/09/2023,"2,488.50"
Prosperity & Investment,BiT,Premises-Related Expenditure,Gas,West Mercia Energy (WME),20/09/2023,"2,482.09"
Prosperity & Investment,BiT,Premises-Related Expenditure,R&M -Buildings DLO Charge,C & W LTD,11/09/2023,"2,466.40"
Prosperity & Investment,Development Management,Employees,Agency Supply Costs,Stonehouse Recruitment Group Limited,21/09/2023,"2,457.00"
Prosperity & Investment,Development Management,Employees,Agency Supply Costs,Stonehouse Recruitment Group Limited,21/09/2023,"2,457.00"
Prosperity & Investment,BiT,Premises-Related Expenditure,Trade Refuse,FCC Recycling Ltd ,06/09/2023,"2,441.92"
Education & Skills,Education & Skills,Capital Expenditure,Payments to Contractor,Border Janitorial Supplies Limited,26/09/2023,"2,427.12"
Education & Skills,SEND (0-25),Transport-Related Expenditure,Transport Contractors,Telford Taxi Hire Limited,15/09/2023,"2,400.00"
Children�s Safeguarding & Family Support,"Family Placements, Children in Care, Leaving Care & Emergency Duty Team",Supplies & Services,Prepared Food,Aramark Ltd,20/09/2023,"2,398.75"
Education & Skills,SEND (0-25),Supplies & Services,Health & Safety Expenses,Etac Limited,27/09/2023,"2,386.00"
"Communities, Customer & Commercial Services",Sport & Leisure,Supplies & Services,Provisions,BIKOLD,21/09/2023,"2,352.57"
Education & Skills,SEND (0-25),Third Party Payments,DSG - High Needs Block,HRP Education,22/09/2023,"2,340.00"
Education & Skills,SEND (0-25),Third Party Payments,DSG - High Needs Block,HRP Education,22/09/2023,"2,340.00"
Education & Skills,Education & Skills,Capital Expenditure,Payments to Contractor,KN Services Staffordshire Ltd,21/09/2023,"2,295.28"
Prosperity & Investment,BiT,Capital Expenditure,Payments to Contractor,SHROPSHIRE BLINDS & AWNINGS LIMITED,26/09/2023,"2,290.00"
"Communities, Customer & Commercial Services",Culture & Events,Supplies & Services,Equipment - Hire,J.E.F Scaffolding Ltd,11/09/2023,"2,265.00"
Education & Skills,SEND (0-25),Transport-Related Expenditure,Taxi Costs,24X7 Ltd,15/09/2023,"2,251.90"
Prosperity & Investment,Regeneration & Investment,Capital Expenditure,External Professional Fees,Kajima Partnerships Ltd,08/09/2023,"2,250.00"
Prosperity & Investment,Regeneration & Investment,Capital Expenditure,External Professional Fees,Kajima Partnerships Ltd,08/09/2023,"2,250.00"
Adult Social Care,Prevention & Independence - Older Adults & Disability,Supplies & Services,Aids & Appliances,My Improvement Network,26/09/2023,"2,249.00"
"Communities, Customer & Commercial Services",Sport & Leisure,Supplies & Services,Comp Hardware (Purch / Hire),CCS MEDIA LIMITED,25/09/2023,"2,240.00"
Policy & Governance,Governance & Legal Services,Supplies & Services,Legal Expenses,EVERSHEDS SUTHERLAND  LLP,28/09/2023,"2,227.00"
"Communities, Customer & Commercial Services",Sport & Leisure,Supplies & Services,Provisions,BIKOLD,08/09/2023,"2,217.82"
Prosperity & Investment,Regeneration & Investment,Supplies & Services,Bulk Refuse Contracts Hire,FCC Recycling Ltd ,04/09/2023,"2,211.04"
Education & Skills,SEND (0-25),Third Party Payments,DSG - High Needs Block,HRP Education,22/09/2023,"2,205.00"
Education & Skills,SEND (0-25),Transport-Related Expenditure,Taxi Costs,Telford Taxi Hire Limited,15/09/2023,"2,200.00"
Policy & Governance,Governance & Legal Services,Employees,Agency Supply Costs,S Partnership,21/09/2023,"2,191.88"
Policy & Governance,Governance & Legal Services,Employees,Agency Supply Costs,S Partnership,21/09/2023,"2,191.88"
Education & Skills,SEND (0-25),Third Party Payments,DSG - High Needs Block,HRP Education,22/09/2023,"2,190.00"
Education & Skills,SEND (0-25),Third Party Payments,DSG - High Needs Block,Active Young People Ltd,27/09/2023,"2,187.50"
"Communities, Customer & Commercial Services",ICT,Supplies & Services,Comp Hardware (Purch / Hire),Getech Ltd,22/09/2023,"2,180.00"
Policy & Governance,Governance & Legal Services,Supplies & Services,Printing - Other,IMPACT MAIL & PRINT LTD,22/09/2023,"2,170.71"
Neighbourhood & Enforcement Services,Waste & Neighbourhood Services,Premises-Related Expenditure,Grounds Maintenance - Misc,H Tree Care Ltd,01/09/2023,"2,160.00"
Children�s Safeguarding & Family Support,Child Protection & Family Support,Supplies & Services,Section 17 Childrens Act,PCB SOLICITORS,06/09/2023,"2,149.83"
Education & Skills,SEND (0-25),Supplies & Services,Health & Safety Expenses,Jiraffe,04/09/2023,"2,140.00"
Prosperity & Investment,BiT,Premises-Related Expenditure,Electricity,West Mercia Energy (WME),20/09/2023,"2,128.42"
Prosperity & Investment,BiT,Premises-Related Expenditure,Gas,West Mercia Energy (WME),20/09/2023,"2,121.65"
Prosperity & Investment,Development Management,Employees,Agency Supply Costs,Stonehouse Recruitment Group Limited,21/09/2023,"2,112.00"
Prosperity & Investment,Development Management,Employees,Agency Supply Costs,Stonehouse Recruitment Group Limited,21/09/2023,"2,112.00"
Prosperity & Investment,BiT,Premises-Related Expenditure,Electricity,West Mercia Energy (WME),20/09/2023,"2,101.58"
"Communities, Customer & Commercial Services",Culture & Events,Supplies & Services,Equipment - Hire,Midlands Events Ltd,14/09/2023,"2,100.00"
Prosperity & Investment,BiT,Premises-Related Expenditure,R&M -Buildings DLO Charge,JCE & SONS LTD,26/09/2023,"2,093.50"
Prosperity & Investment,Development Management,Employees,Agency Supply Costs,Stonehouse Recruitment Group Limited,21/09/2023,"2,079.00"
Neighbourhood & Enforcement Services,"Highways, Engineering & Project Delivery",Capital Expenditure,Payments to Contractor,Pavegen Systems Ltd,07/09/2023,"2,071.00"
Health & Wellbeing,Health Protection,Supplies & Services,Consultancy,Vivid Resourcing,20/09/2023,"2,068.36"
Education & Skills,Education & Skills,Capital Expenditure,Payments to Contractor,ARJO UK LTD,26/09/2023,"2,054.41"
"Communities, Customer & Commercial Services",Culture & Events,Supplies & Services,Wet Resale Provision,MOLSON COORS BREWING COMPANY UK LTD,05/09/2023,"2,040.22"
Education & Skills,SEND (0-25),Transport-Related Expenditure,Taxi Costs,AB & CA H,15/09/2023,"2,038.00"
Prosperity & Investment,BiT,Premises-Related Expenditure,Electricity,West Mercia Energy (WME),20/09/2023,"2,031.72"
Health & Wellbeing,Health Improvement,Supplies & Services,Public Participation,Friends Of The TelfordT50 50 Mile Trail,13/09/2023,"2,023.00"
Prosperity & Investment,BiT,Premises-Related Expenditure,Other Energy Costs,Energy Merchants Ltd,26/09/2023,"2,021.37"
"Communities, Customer & Commercial Services",Customer Relationships & Welfare Services,Supplies & Services,Legal Expenses,TELFORD CHRISTIAN COUNCIL SUPPORTED HOUS,22/09/2023,"2,018.40"
Neighbourhood & Enforcement Services,Enforcement,Supplies & Services,Sub Contractors,O R Ltd,11/09/2023,"2,000.25"
Neighbourhood & Enforcement Services,Safer & Stronger Communities,Supplies & Services,Other Services,SHROPSHIRE CRICKET BOARD,19/09/2023,"2,000.00"
Neighbourhood & Enforcement Services,Strategic Transport & Highway Network Management,Supplies & Services,Concessionary Travel,D&G Bus,21/09/2023,"1,986.00"
Neighbourhood & Enforcement Services,"Highways, Engineering & Project Delivery",Capital Expenditure,Payments to Contractor,W Aspen,07/09/2023,"1,963.80"
Education & Skills,SEND (0-25),Third Party Payments,DSG - High Needs Block,Hadley Learning Community Academy,22/09/2023,"1,953.74"
Education & Skills,SEND (0-25),Third Party Payments,DSG - High Needs Block,Windmill Primary School Academy,22/09/2023,"1,953.74"
Neighbourhood & Enforcement Services,Safer & Stronger Communities,Premises-Related Expenditure,Leasehold Rents,THE WREKIN HOUSING TRUST ,14/09/2023,"1,952.73"
"Communities, Customer & Commercial Services",ICT,Capital Expenditure,Computer Hardware,CCS MEDIA LIMITED,18/09/2023,"1,944.00"
Adult Social Care,My Options,Employees,Agency Supply Costs,Safehands Recruitment,19/09/2023,"1,940.50"
Finance & Human Resources,"Finance Manager (Business, Education & Care)",Employees,Staff Training,Severn Financial Training,12/09/2023,"1,933.67"
Children�s Safeguarding & Family Support,"Family Placements, Children in Care, Leaving Care & Emergency Duty Team",Supplies & Services,Other Grants (Expenses),Telford Taxi Hire Limited,26/09/2023,"1,920.00"
Adult Social Care,Prevention & Independence - Older Adults & Disability,Supplies & Services,Aids & Appliances,Nottingham Rehab Ltd,22/09/2023,"1,919.80"
"Communities, Customer & Commercial Services",Culture & Events,Supplies & Services,Artistes Fees,Fools Paradise Ltd,21/09/2023,"1,915.00"
Neighbourhood & Enforcement Services,Neighbourhood & Environmental Services,Supplies & Services,Other Services,HILBRAE PETS HOTEL,29/09/2023,"1,912.04"
Prosperity & Investment,BiT,Premises-Related Expenditure,Electricity,West Mercia Energy (WME),20/09/2023,"1,911.76"
Education & Skills,SEND (0-25),Third Party Payments,DSG - High Needs Block,Redhill Primary Academy,22/09/2023,"1,901.29"
Education & Skills,SEND (0-25),Employees,Agency Supply Costs,Guide Dogs for the Blind,27/09/2023,"1,888.33"
Corporate Communications,Communications & Marketing,Supplies & Services,Community Newspaper,ROYAL MAIL GROUP PLC,04/09/2023,"1,886.73"
Neighbourhood & Enforcement Services,"Highways, Engineering & Project Delivery",Capital Expenditure,Payments to Contractor,GROUND INVESTIGATION & PILING LTD,19/09/2023,"1,871.00"
Policy & Governance,Governance & Legal Services,Employees,Agency Supply Costs,S Partnership,21/09/2023,"1,841.32"
Prosperity & Investment,BiT,Premises-Related Expenditure,Trade Refuse,FCC Recycling Ltd ,13/09/2023,"1,831.44"
"Communities, Customer & Commercial Services",Sport & Leisure,Supplies & Services,EEC Whole Milk,J DAIRIES,26/09/2023,"1,808.92"
Prosperity & Investment,Regeneration & Investment,Capital Expenditure,External Professional Fees,HOARE LEA CONSULTING ENGINEERS,04/09/2023,"1,800.00"
Prosperity & Investment,Development Management,Employees,Agency Supply Costs,S T Limited,04/09/2023,"1,800.00"
Prosperity & Investment,Development Management,Employees,Agency Supply Costs,S T Limited,04/09/2023,"1,800.00"
Prosperity & Investment,Development Management,Employees,Agency Supply Costs,S T Limited,21/09/2023,"1,800.00"
Prosperity & Investment,Development Management,Employees,Agency Supply Costs,S T Limited,21/09/2023,"1,800.00"
Prosperity & Investment,BiT,Premises-Related Expenditure,Trade Refuse,FCC Recycling Ltd ,06/09/2023,"1,796.12"
Policy & Governance,Governance & Legal Services,Employees,Agency Supply Costs,S Partnership,12/09/2023,"1,782.90"
Policy & Governance,Governance & Legal Services,Employees,Agency Supply Costs,S Partnership,21/09/2023,"1,782.90"
Policy & Governance,Governance & Legal Services,Employees,Agency Supply Costs,S Partnership,21/09/2023,"1,782.90"
Policy & Governance,Governance & Legal Services,Employees,Agency Supply Costs,S Partnership,29/09/2023,"1,777.20"
Policy & Governance,Governance & Legal Services,Employees,Agency Supply Costs,S Partnership,21/09/2023,"1,777.20"
Prosperity & Investment,BiT,Premises-Related Expenditure,Electricity,BRITISH GAS BUSINESS ,05/09/2023,"1,763.91"
Neighbourhood & Enforcement Services,Strategic Transport & Highway Network Management,Supplies & Services,Consultancy,C West Ltd,05/09/2023,"1,751.75"
Education & Skills,Pupil Support Services,Third Party Payments,Misc. Education Payments to T&W Schools (incl Academies),Kickstart Academy,25/09/2023,"1,750.74"
Prosperity & Investment,Regeneration & Investment,Capital Expenditure,Legal Fees,FREETHS LLP,05/09/2023,"1,750.00"
"Communities, Customer & Commercial Services",Community Services,Supplies & Services,Grants To Voluntary Organis,Great Dawley Town Council,26/09/2023,"1,750.00"
Children�s Safeguarding & Family Support,Family Connect & Childrens Centres,Employees,Staff Training,TRIPLE P UK LIMITED,11/09/2023,"1,749.00"
Prosperity & Investment,BiT,Premises-Related Expenditure,R&M -Building Other,GRANVILLE CONSTRUCTION & MAINTENANCE LTD,25/09/2023,"1,730.00"
Prosperity & Investment,Development Management,Employees,Agency Supply Costs,S T Limited,04/09/2023,"1,728.00"
Prosperity & Investment,BiT,Supplies & Services,Fees,WB Building Services Limited,26/09/2023,"1,727.43"
Prosperity & Investment,BiT,Premises-Related Expenditure,Gas,West Mercia Energy (WME),20/09/2023,"1,686.81"
Prosperity & Investment,BiT,Premises-Related Expenditure,Service Contracts,E Solutions Ltd,26/09/2023,"1,685.00"
Health & Wellbeing,Health Protection,Supplies & Services,Consultancy,Vivid Resourcing,11/09/2023,"1,672.77"
Health & Wellbeing,Health Protection,Supplies & Services,Consultancy,Vivid Resourcing,04/09/2023,"1,672.77"
Neighbourhood & Enforcement Services,"Highways, Engineering & Project Delivery",Capital Expenditure,External Professional Fees,Amey OW Ltd,28/09/2023,"1,670.61"
Prosperity & Investment,BiT,Premises-Related Expenditure,Hygiene Services,PHS GROUP,13/09/2023,"1,659.70"
Neighbourhood & Enforcement Services,Safer & Stronger Communities,Supplies & Services,Other Services,Industry Signage,20/09/2023,"1,653.14"
Neighbourhood & Enforcement Services,Enforcement,Supplies & Services,Sub Contractors,O R Ltd,11/09/2023,"1,644.65"
Neighbourhood & Enforcement Services,Enforcement,Supplies & Services,Sub Contractors,O R Ltd,25/09/2023,"1,644.65"
Neighbourhood & Enforcement Services,Enforcement,Supplies & Services,Sub Contractors,O R Ltd,25/09/2023,"1,644.65"
"Communities, Customer & Commercial Services",Sport & Leisure,Supplies & Services,Provisions,BIKOLD,28/09/2023,"1,644.18"
Prosperity & Investment,BiT,Premises-Related Expenditure,R&M -Buildings DLO Charge,GRANVILLE CONSTRUCTION & MAINTENANCE LTD,26/09/2023,"1,629.00"
"Communities, Customer & Commercial Services",ICT,Supplies & Services,Comp Software (Purch / Hire),ScholarPack,08/09/2023,"1,629.00"
"Communities, Customer & Commercial Services",ICT,Supplies & Services,Comp Software (Purch / Hire),Getech Ltd,11/09/2023,"1,620.00"
"Communities, Customer & Commercial Services",Sport & Leisure,Supplies & Services,EEC Whole Milk,J DAIRIES,13/09/2023,"1,612.00"
Adult Social Care,My Options,Employees,Agency Supply Costs,Safehands Recruitment,12/09/2023,"1,600.80"
Education & Skills,Education & Skills,Capital Expenditure,Payments to Contractor,ARJO UK LTD,26/09/2023,"1,600.00"
Prosperity & Investment,BiT,Premises-Related Expenditure,R&M -Buildings DLO Charge,JCE & SONS LTD,25/09/2023,"1,600.00"
Children�s Safeguarding & Family Support,"Family Placements, Children in Care, Leaving Care & Emergency Duty Team",Supplies & Services,Other Grants (Expenses),24X7 Ltd,26/09/2023,"1,594.56"
Prosperity & Investment,BiT,Premises-Related Expenditure,R&M -Buildings DLO Charge,WREKIN DRAIN SERVICES LTD,15/09/2023,"1,578.00"
Prosperity & Investment,Regeneration & Investment,Premises-Related Expenditure,R&M -Building Other,GRANVILLE CONSTRUCTION & MAINTENANCE LTD,04/09/2023,"1,560.00"
Prosperity & Investment,BiT,Supplies & Services,Consultancy,A B ASSOCIATES LTD,20/09/2023,"1,537.50"
Prosperity & Investment,BiT,Premises-Related Expenditure,Service Contracts,JCE & SONS LTD,21/09/2023,"1,535.50"
Policy & Governance,Governance & Legal Services,Supplies & Services,Audit Services,Lighthouse UK Consultancy Ltd,22/09/2023,"1,525.00"
"Communities, Customer & Commercial Services",Sport & Leisure,Supplies & Services,Payment Of Income Collected,Telford Tigers Limited,12/09/2023,"1,524.96"
Education & Skills,Education & Skills,Capital Expenditure,Payments to Contractor,GRANVILLE CONSTRUCTION & MAINTENANCE LTD,26/09/2023,"1,520.00"
"Communities, Customer & Commercial Services",Culture & Events,Supplies & Services,Artistes Fees,PG Skips Ltd,06/09/2023,"1,510.00"
"Housing, Employment & Infrastructure","Housing, Employment & Infrastructure",Employees,Agency Supply Costs,The Oyster Partnership Ltd,26/09/2023,"1,505.41"
"Housing, Employment & Infrastructure","Housing, Employment & Infrastructure",Employees,Agency Supply Costs,The Oyster Partnership Ltd,15/09/2023,"1,502.59"
Prosperity & Investment,Development Management,Capital Expenditure,Payments to Contractor,Chris Hughes,18/09/2023,"1,500.00"
Prosperity & Investment,Regeneration & Investment,Supplies & Services,Payment Of Income Collected,HSBC EQUIPMENT FINANCE LIMITED,19/09/2023,"1,500.00"
"Housing, Employment & Infrastructure",Inward Investment & Business Support,Supplies & Services,Consultancy,Ionic Creative Designs Ltd,13/09/2023,"1,500.00"
Children�s Safeguarding & Family Support,Child Protection & Family Support,Supplies & Services,Other Services,Signis Limited,08/09/2023,"1,500.00"
Neighbourhood & Enforcement Services,Safer & Stronger Communities,Supplies & Services,Other Services,TELFORD WEST INDIAN ASSOCIATION,22/09/2023,"1,500.00"
Prosperity & Investment,BiT,Premises-Related Expenditure,R&M -Buildings DLO Charge,Total Leisure Engineering Ltd,11/09/2023,"1,500.00"
Adult Social Care,My Options,Employees,Agency Supply Costs,Safehands Recruitment,21/09/2023,"1,493.40"
Prosperity & Investment,Regeneration & Investment,Premises-Related Expenditure,Water Rates,WATER PLUS FORMERLY SEVERN TRENT WATER LTD,27/09/2023,"1,484.80"
"Communities, Customer & Commercial Services",ICT,Supplies & Services,Comp Software (Purch / Hire),B Computers Plc,21/09/2023,"1,484.25"
"Communities, Customer & Commercial Services",Sport & Leisure,Transport-Related Expenditure,Fuel,Butler Fuels,28/09/2023,"1,480.50"
"Communities, Customer & Commercial Services",Sport & Leisure,Supplies & Services,Items For Resale,SWIM ENGLAND TRADING LIMITED ,13/09/2023,"1,480.05"
Prosperity & Investment,BiT,Capital Expenditure,Payments to Contractor,R Maintenance Services Ltd,26/09/2023,"1,455.00"
Prosperity & Investment,BiT,Premises-Related Expenditure,R&M -Buildings DLO Charge,T CONSULTING,18/09/2023,"1,450.00"
Prosperity & Investment,Regeneration & Investment,Premises-Related Expenditure,R&M -Building Other,GRANVILLE CONSTRUCTION & MAINTENANCE LTD,01/09/2023,"1,447.43"
"Communities, Customer & Commercial Services",Culture & Events,Supplies & Services,Equipment - Hire,Stage and Studios Services Limited,27/09/2023,"1,445.00"
Prosperity & Investment,BiT,Premises-Related Expenditure,Electricity,West Mercia Energy (WME),20/09/2023,"1,444.97"
Adult Social Care,My Options,Supplies & Services,Adult Flexi / Day Care,REDACTED PERSONAL INFORMATION,20/09/2023,"1,443.50"
Prosperity & Investment,Development Management,Employees,Agency Supply Costs,S T Limited,26/09/2023,"1,440.00"
"Communities, Customer & Commercial Services",Sport & Leisure,Supplies & Services,Provisions,BIKOLD,08/09/2023,"1,432.49"
Neighbourhood & Enforcement Services,Strategic Transport & Highway Network Management,Supplies & Services,Consultancy,C West Ltd,27/09/2023,"1,424.50"
Neighbourhood & Enforcement Services,Strategic Transport & Highway Network Management,Supplies & Services,Consultancy,C West Ltd,27/09/2023,"1,424.50"
Prosperity & Investment,Regeneration & Investment,Premises-Related Expenditure,Water Rates,WATER PLUS FORMERLY SEVERN TRENT WATER LTD,27/09/2023,"1,421.44"
Prosperity & Investment,BiT,Premises-Related Expenditure,R&M -Buildings DLO Charge,GRANVILLE CONSTRUCTION & MAINTENANCE LTD,26/09/2023,"1,420.00"
Prosperity & Investment,Regeneration & Investment,Premises-Related Expenditure,Water Rates,WATER PLUS FORMERLY SEVERN TRENT WATER LTD,27/09/2023,"1,418.11"
Prosperity & Investment,Regeneration & Investment,Capital Expenditure,External Professional Fees,Focus Consultants 2010 LLP,15/09/2023,"1,410.00"
Prosperity & Investment,Regeneration & Investment,Capital Expenditure,External Professional Fees,WREKIN DRAIN SERVICES LTD,27/09/2023,"1,400.00"
"Communities, Customer & Commercial Services",Sport & Leisure,Supplies & Services,Provisions,T FOOD SERVICE LTD,21/09/2023,"1,390.15"
Finance & Human Resources,Finance,Supplies & Services,Other Services,NORTHERN HOUSING CONSORTIUM LTD,27/09/2023,"1,364.25"
"Communities, Customer & Commercial Services",Culture & Events,Supplies & Services,Equipment - Hire,TELFORD TOILET HIRE,29/09/2023,"1,360.00"
Prosperity & Investment,BiT,Premises-Related Expenditure,R&M -Buildings DLO Charge,Pumpforce Ltd,04/09/2023,"1,355.00"
Policy & Governance,Governance & Legal Services,Supplies & Services,Printing - Other,IMPACT MAIL & PRINT LTD,22/09/2023,"1,353.97"
Prosperity & Investment,BiT,Premises-Related Expenditure,R&M -Buildings DLO Charge,JCE & SONS LTD,26/09/2023,"1,350.00"
Prosperity & Investment,BiT,Premises-Related Expenditure,R&M -Buildings DLO Charge,E Solutions Ltd,26/09/2023,"1,345.00"
"Housing, Employment & Infrastructure","Housing, Employment & Infrastructure",Employees,Agency Supply Costs,The Oyster Partnership Ltd,15/09/2023,"1,344.00"
"Housing, Employment & Infrastructure","Housing, Employment & Infrastructure",Employees,Agency Supply Costs,The Oyster Partnership Ltd,15/09/2023,"1,344.00"
"Housing, Employment & Infrastructure","Housing, Employment & Infrastructure",Employees,Agency Supply Costs,The Oyster Partnership Ltd,15/09/2023,"1,344.00"
"Housing, Employment & Infrastructure","Housing, Employment & Infrastructure",Employees,Agency Supply Costs,The Oyster Partnership Ltd,15/09/2023,"1,344.00"
"Housing, Employment & Infrastructure","Housing, Employment & Infrastructure",Employees,Agency Supply Costs,The Oyster Partnership Ltd,26/09/2023,"1,344.00"
Prosperity & Investment,Development Management,Supplies & Services,Consultancy,Portway Scaffolding Limited,04/09/2023,"1,335.06"
Prosperity & Investment,Regeneration & Investment,Premises-Related Expenditure,Water Rates,WATER PLUS FORMERLY SEVERN TRENT WATER LTD,27/09/2023,"1,320.00"
Prosperity & Investment,BiT,Premises-Related Expenditure,R&M -Building Other,GRANVILLE CONSTRUCTION & MAINTENANCE LTD,04/09/2023,"1,316.00"
"Communities, Customer & Commercial Services",ICT,Supplies & Services,Comp Hardware (Purch / Hire),CCS MEDIA LIMITED,29/09/2023,"1,315.56"
Prosperity & Investment,BiT,Premises-Related Expenditure,Electricity,West Mercia Energy (WME),20/09/2023,"1,307.04"
Education & Skills,Skills,Supplies & Services,Comp Software (Purch / Hire),PHOENIX SOFTWARE LTD,13/09/2023,"1,297.92"
"Communities, Customer & Commercial Services",Sport & Leisure,Supplies & Services,Chemicals/Cleaning Products,BRENNTAG UK LIMITED,08/09/2023,"1,290.00"
Prosperity & Investment,Development Management,Supplies & Services,Consultancy,GRANVILLE CONSTRUCTION & MAINTENANCE LTD,21/09/2023,"1,290.00"
Education & Skills,SEND (0-25),Third Party Payments,DSG - High Needs Block,Telford Park School,27/09/2023,"1,289.65"
Children�s Safeguarding & Family Support,"Family Placements, Children in Care, Leaving Care & Emergency Duty Team",Supplies & Services,Other Grants (Expenses),AB & CA H,26/09/2023,"1,280.00"
Neighbourhood & Enforcement Services,Safer & Stronger Communities,Supplies & Services,Other Services,MARMAX PRODUCTS LTD,27/09/2023,"1,271.00"
Neighbourhood & Enforcement Services,Strategic Transport & Highway Network Management,Transport-Related Expenditure,Outside Hire,DAYS RENTAL,15/09/2023,"1,270.07"
Prosperity & Investment,BiT,Premises-Related Expenditure,Other Energy Costs,Energy Merchants Ltd,26/09/2023,"1,265.33"
"Housing, Employment & Infrastructure",Private Sector Housing & Enforcement,Employees,Agency Supply Costs,G2 Recruitment Solutions,15/09/2023,"1,258.00"
"Housing, Employment & Infrastructure",Private Sector Housing & Enforcement,Employees,Agency Supply Costs,G2 Recruitment Solutions,26/09/2023,"1,258.00"
"Housing, Employment & Infrastructure",Private Sector Housing & Enforcement,Employees,Agency Supply Costs,G2 Recruitment Solutions,26/09/2023,"1,258.00"
Prosperity & Investment,Regeneration & Investment,Premises-Related Expenditure,Electricity,West Mercia Energy (WME),20/09/2023,"1,251.45"
Education & Skills,SEND (0-25),Third Party Payments,DSG - High Needs Block,HRP Education,22/09/2023,"1,248.00"
Prosperity & Investment,BiT,Premises-Related Expenditure,R&M -Buildings DLO Charge,TAYLORS MECHANICAL H & P SERVICES LTD,26/09/2023,"1,248.00"
Adult Social Care,My Options,Employees,Agency Supply Costs,Nurse Plus and Carer Plus Limited,21/09/2023,"1,247.63"
"Housing, Employment & Infrastructure","Housing, Employment & Infrastructure",Employees,Agency Supply Costs,The Oyster Partnership Ltd,15/09/2023,"1,244.56"
Prosperity & Investment,BiT,Premises-Related Expenditure,Electricity,West Mercia Energy (WME),20/09/2023,"1,244.05"
Prosperity & Investment,Regeneration & Investment,Premises-Related Expenditure,Grounds Maintenance - L&CS,RMF LANDSCAPING LTD,27/09/2023,"1,240.00"
Prosperity & Investment,Development Management,Employees,Agency Supply Costs,Stonehouse Recruitment Group Limited,21/09/2023,"1,224.00"
Prosperity & Investment,BiT,Premises-Related Expenditure,Trade Refuse,FCC Recycling Ltd ,04/09/2023,"1,220.96"
Prosperity & Investment,BiT,Premises-Related Expenditure,Trade Refuse,FCC Recycling Ltd ,06/09/2023,"1,220.96"
Prosperity & Investment,BiT,Premises-Related Expenditure,Trade Refuse,FCC Recycling Ltd ,06/09/2023,"1,220.96"
Prosperity & Investment,BiT,Premises-Related Expenditure,Trade Refuse,FCC Recycling Ltd ,06/09/2023,"1,220.96"
Prosperity & Investment,BiT,Premises-Related Expenditure,Electricity,BRITISH GAS BUSINESS,05/09/2023,"1,216.98"
Prosperity & Investment,BiT,Premises-Related Expenditure,Electricity,West Mercia Energy (WME),20/09/2023,"1,213.75"
Prosperity & Investment,BiT,Premises-Related Expenditure,R&M -Buildings DLO Charge,GRANVILLE CONSTRUCTION & MAINTENANCE LTD,18/09/2023,"1,205.07"
"Communities, Customer & Commercial Services",Sport & Leisure,Supplies & Services,Fees,Austin Mix Ltd,20/09/2023,"1,205.00"
Prosperity & Investment,Regeneration & Investment,Capital Expenditure,External Professional Fees,Travis Baker Geo-Environmental Limited,29/09/2023,"1,200.00"
Prosperity & Investment,BiT,Premises-Related Expenditure,R&M -Buildings DLO Charge,WB Building Services Limited,26/09/2023,"1,191.34"
Neighbourhood & Enforcement Services,Strategic Transport & Highway Network Management,Transport-Related Expenditure,Subsidised Routes,D&G Bus,21/09/2023,"1,188.85"
"Communities, Customer & Commercial Services",Culture & Events,Supplies & Services,Equipment - Hire,Midlands Events Ltd,14/09/2023,"1,186.40"
"Communities, Customer & Commercial Services",ICT,Capital Expenditure,Computer Hardware,CCS MEDIA LIMITED,19/09/2023,"1,180.00"
Neighbourhood & Enforcement Services,Neighbourhood & Environmental Services,Supplies & Services,Play development,Midland Playscape,29/09/2023,"1,178.56"
Prosperity & Investment,Regeneration & Investment,Premises-Related Expenditure,Water Rates,WATER PLUS FORMERLY SEVERN TRENT WATER LTD,27/09/2023,"1,173.53"
Neighbourhood & Enforcement Services,Strategic Transport & Highway Network Management,Transport-Related Expenditure,Outside Hire,DAYS RENTAL,15/09/2023,"1,170.87"
Education & Skills,Education & Skills,Capital Expenditure,Payments to Contractor,R G S LTD,13/09/2023,"1,170.00"
Education & Skills,SEND (0-25),Third Party Payments,DSG - High Needs Block,H Childcare Ltd,27/09/2023,"1,168.94"
Prosperity & Investment,BiT,Premises-Related Expenditure,Hygiene Services,PHS GROUP,15/09/2023,"1,165.85"
"Communities, Customer & Commercial Services",Culture & Events,Supplies & Services,Stationery,PREMIER ROLLS LTD,12/09/2023,"1,162.80"
Prosperity & Investment,Regeneration & Investment,Premises-Related Expenditure,Electricity,West Mercia Energy (WME),20/09/2023,"1,160.63"
Prosperity & Investment,BiT,Premises-Related Expenditure,R&M -Buildings DLO Charge,Security Wise Ltd,26/09/2023,"1,159.20"
Prosperity & Investment,BiT,Premises-Related Expenditure,R&M -Buildings DLO Charge,TAYLORS MECHANICAL H & P SERVICES LTD,15/09/2023,"1,158.10"
Education & Skills,Education & Skills,Capital Expenditure,Payments to Contractor,M M LIMITED,21/09/2023,"1,150.00"
Neighbourhood & Enforcement Services,Neighbourhood & Environmental Services,Supplies & Services,Other Services,HILBRAE PETS HOTEL,12/09/2023,"1,143.90"
Education & Skills,Education & Skills,Capital Expenditure,Payments to Contractor,Cubic FM Ltd,26/09/2023,"1,140.00"
Health & Wellbeing,Health Improvement,Supplies & Services,Public Participation,HOLLINSWOOD & RANDLAY PARISH COUNCIL,21/09/2023,"1,140.00"
Prosperity & Investment,Regeneration & Investment,Premises-Related Expenditure,R&M -Building Other,GRANVILLE CONSTRUCTION & MAINTENANCE LTD,04/09/2023,"1,138.68"
Prosperity & Investment,Regeneration & Investment,Capital Expenditure,External Professional Fees,PERFECT CIRCLE JV LTD,25/09/2023,"1,138.67"
Prosperity & Investment,BiT,Premises-Related Expenditure,R&M -Buildings DLO Charge,Vertical Positioning Group,21/09/2023,"1,136.84"
"Communities, Customer & Commercial Services",Sport & Leisure,Supplies & Services,Provisions,BIKOLD,21/09/2023,"1,130.67"
"Communities, Customer & Commercial Services",Sport & Leisure,Supplies & Services,Provisions,BIKOLD,28/09/2023,"1,121.67"
Prosperity & Investment,BiT,Premises-Related Expenditure,R&M -Buildings DLO Charge,JCE & SONS LTD,04/09/2023,"1,113.00"
Education & Skills,SEND (0-25),Third Party Payments,DSG - High Needs Block,The Telford Langley School ,27/09/2023,"1,107.66"
Prosperity & Investment,Development Management,Employees,Agency Supply Costs,Stonehouse Recruitment Group Limited,21/09/2023,"1,104.00"
Education & Skills,SEND (0-25),Supplies & Services,Other Services,E B LTD,15/09/2023,"1,100.00"
Neighbourhood & Enforcement Services,Public Protection,Employees,Cont Prof Development,INSTITUTE OF LICENSING LTD ,01/09/2023,"1,100.00"
Education & Skills,SEND (0-25),Supplies & Services,Other Services,Permanent Futures Ltd,15/09/2023,"1,100.00"
Education & Skills,SEND (0-25),Supplies & Services,Other Services,Permanent Futures Ltd,15/09/2023,"1,100.00"
Education & Skills,SEND (0-25),Supplies & Services,Other Services,Permanent Futures Ltd,15/09/2023,"1,100.00"
Adult Social Care,Prevention & Independence - Older Adults & Disability,Supplies & Services,Aids & Appliances,Jiraffe,20/09/2023,"1,099.00"
"Communities, Customer & Commercial Services",ICT,Premises-Related Expenditure,Service Contracts,PP ELECTRICAL SERVICES Ltd,05/09/2023,"1,098.00"
Prosperity & Investment,BiT,Premises-Related Expenditure,Service Contracts,PP ELECTRICAL SERVICES Ltd,04/09/2023,"1,098.00"
Finance & Human Resources,Finance Manager (Corporate & Capital),Supplies & Services,Subscriptions,FL MEMO LTD,26/09/2023,"1,094.00"
Prosperity & Investment,BiT,Premises-Related Expenditure,R&M -Buildings DLO Charge,REDACTED PERSONAL INFORMATION,11/09/2023,"1,090.00"
Prosperity & Investment,BiT,Premises-Related Expenditure,R&M -Buildings DLO Charge,SKI SLOPE SERVICES LTD,26/09/2023,"1,080.52"
Education & Skills,SEND (0-25),Transport-Related Expenditure,Taxi Costs,Elite Telford Limited,22/09/2023,"1,080.00"
Prosperity & Investment,Regeneration & Investment,Premises-Related Expenditure,R&M -Building Other,GRANVILLE CONSTRUCTION & MAINTENANCE LTD,25/09/2023,"1,080.00"
Neighbourhood & Enforcement Services,"Highways, Engineering & Project Delivery",Supplies & Services,Other Services,GROUND INVESTIGATION & PILING LTD,19/09/2023,"1,073.00"
Prosperity & Investment,BiT,Premises-Related Expenditure,R&M -Buildings DLO Charge,WB Building Services Limited,26/09/2023,"1,062.90"
Education & Skills,SEND (0-25),Supplies & Services,Health & Safety Expenses,G & S S LTD,15/09/2023,"1,058.40"
Prosperity & Investment,Regeneration & Investment,Premises-Related Expenditure,Electricity,West Mercia Energy (WME),20/09/2023,"1,056.13"
Prosperity & Investment,Development Management,Employees,Agency Supply Costs,Stonehouse Recruitment Group Limited,21/09/2023,"1,056.00"
Prosperity & Investment,Development Management,Employees,Agency Supply Costs,Stonehouse Recruitment Group Limited,21/09/2023,"1,056.00"
Prosperity & Investment,Development Management,Employees,Agency Supply Costs,Stonehouse Recruitment Group Limited,21/09/2023,"1,056.00"
"Housing, Employment & Infrastructure",Private Sector Housing & Enforcement,Employees,Agency Supply Costs,G2 Recruitment Solutions,26/09/2023,"1,054.00"
Prosperity & Investment,BiT,Premises-Related Expenditure,Electricity,West Mercia Energy (WME),20/09/2023,"1,045.91"
"Housing, Employment & Infrastructure",Private Sector Housing & Enforcement,Employees,Agency Supply Costs,G2 Recruitment Solutions,26/09/2023,"1,045.50"
"Communities, Customer & Commercial Services",Sport & Leisure,Supplies & Services,Licences,L M Fitness UK Ltd,25/09/2023,"1,045.00"
"Communities, Customer & Commercial Services",Sport & Leisure,Supplies & Services,Licences,L M Fitness UK Ltd,22/09/2023,"1,045.00"
"Communities, Customer & Commercial Services",Sport & Leisure,Supplies & Services,Other Materials,Security Wise Ltd,20/09/2023,"1,044.00"
Prosperity & Investment,BiT,Premises-Related Expenditure,R&M -Buildings DLO Charge,WB Building Services Limited,04/09/2023,"1,040.76"
Education & Skills,SEND (0-25),Third Party Payments,DSG - High Needs Block,HRP Education,22/09/2023,"1,040.00"
Education & Skills,SEND (0-25),Third Party Payments,DSG - High Needs Block,HRP Education,27/09/2023,"1,040.00"
Education & Skills,SEND (0-25),Transport-Related Expenditure,Taxi Costs,Telford Taxi Hire Limited,15/09/2023,"1,040.00"
"Communities, Customer & Commercial Services",Sport & Leisure,Premises-Related Expenditure,R&M - Mechanical,Culligan LTD,13/09/2023,"1,038.87"
"Communities, Customer & Commercial Services",Sport & Leisure,Supplies & Services,Sub Contractors,MSM Hire Ltd,21/09/2023,"1,038.52"
Adult Social Care,My Options,Supplies & Services,Respite Care,REDACTED PERSONAL INFORMATION,19/09/2023,"1,030.40"
"Housing, Employment & Infrastructure",Private Sector Housing & Enforcement,Employees,Agency Supply Costs,G2 Recruitment Solutions,26/09/2023,"1,020.00"
Prosperity & Investment,BiT,Premises-Related Expenditure,R&M -Buildings DLO Charge,GRANVILLE CONSTRUCTION & MAINTENANCE LTD,18/09/2023,"1,020.00"
Prosperity & Investment,BiT,Premises-Related Expenditure,R&M -Buildings DLO Charge,GRANVILLE CONSTRUCTION & MAINTENANCE LTD,26/09/2023,"1,020.00"
Neighbourhood & Enforcement Services,"Highways, Engineering & Project Delivery",Premises-Related Expenditure,Street Lights Planned Maintenance,National Grid Electricity Distributionplc,28/09/2023,"1,018.99"
"Communities, Customer & Commercial Services",Customer Relationships & Welfare Services,Employees,Agency Supply Costs,E B LTD,05/09/2023,"1,012.50"
"Communities, Customer & Commercial Services",Customer Relationships & Welfare Services,Employees,Agency Supply Costs,E B LTD,05/09/2023,"1,012.50"
Prosperity & Investment,BiT,Premises-Related Expenditure,R&M -Buildings DLO Charge,TAYLORS MECHANICAL H & P SERVICES LTD,15/09/2023,"1,012.50"
Children�s Safeguarding & Family Support,Safeguarding Advisory,Supplies & Services,Subscriptions,Sandwell Childrens Trust,05/09/2023,"1,008.48"
"Housing, Employment & Infrastructure","Housing, Employment & Infrastructure",Employees,Agency Supply Costs,The Oyster Partnership Ltd,15/09/2023,"1,008.00"
"Communities, Customer & Commercial Services",Community Services,Premises-Related Expenditure,Electricity,West Mercia Energy (WME),20/09/2023,"1,006.55"
"Communities, Customer & Commercial Services",ICT,Capital Expenditure,Computer Software,CIVICA UK LIMITED ,14/09/2023,"1,000.00"
"Communities, Customer & Commercial Services",ICT,Capital Expenditure,Computer Software,CIVICA UK LIMITED ,14/09/2023,"1,000.00"
"Communities, Customer & Commercial Services",ICT,Capital Expenditure,Computer Software,CIVICA UK LIMITED ,14/09/2023,"1,000.00"
"Communities, Customer & Commercial Services",ICT,Capital Expenditure,Computer Software,CIVICA UK LIMITED ,14/09/2023,"1,000.00"
"Communities, Customer & Commercial Services",ICT,Capital Expenditure,Computer Software,CIVICA UK LIMITED ,14/09/2023,"1,000.00"
"Communities, Customer & Commercial Services",ICT,Capital Expenditure,Computer Software,CIVICA UK LIMITED ,14/09/2023,"1,000.00"
"Communities, Customer & Commercial Services",ICT,Capital Expenditure,Computer Software,CIVICA UK LIMITED ,14/09/2023,"1,000.00"
"Communities, Customer & Commercial Services",ICT,Capital Expenditure,Computer Software,CIVICA UK LIMITED ,14/09/2023,"1,000.00"
"Communities, Customer & Commercial Services",ICT,Capital Expenditure,Computer Software,CIVICA UK LIMITED ,14/09/2023,"1,000.00"
"Communities, Customer & Commercial Services",ICT,Capital Expenditure,Computer Software,CIVICA UK LIMITED ,14/09/2023,"1,000.00"
"Communities, Customer & Commercial Services",ICT,Capital Expenditure,Computer Software,CIVICA UK LIMITED ,14/09/2023,"1,000.00"
"Communities, Customer & Commercial Services",ICT,Capital Expenditure,Computer Software,CIVICA UK LIMITED ,14/09/2023,"1,000.00"
Children�s Safeguarding & Family Support,"Family Placements, Children in Care, Leaving Care & Emergency Duty Team",Supplies & Services,Form F Assessments,ES-PBS Services,20/09/2023,"1,000.00"
"Housing, Employment & Infrastructure",Inward Investment & Business Support,Supplies & Services,Consultancy,Business Doctors,13/09/2023,"1,000.00"
Adult Social Care,Prevention & Independence - Older Adults & Disability,Supplies & Services,Aids & Appliances,SHROPSHIRE COMMUNITY HEALTH NHS TRUST,12/09/2023,"1,000.00"
"Communities, Customer & Commercial Services",Community Services,Supplies & Services,Grants To Voluntary Organis,Telford and Wrekin Interfaith Council,21/09/2023,"1,000.00"
"Communities, Customer & Commercial Services",Customer Relationships & Welfare Services,Employees,Agency Supply Costs,E B LTD,05/09/2023,999.00
"Communities, Customer & Commercial Services",Customer Relationships & Welfare Services,Employees,Agency Supply Costs,E B LTD,05/09/2023,999.00
"Communities, Customer & Commercial Services",Customer Relationships & Welfare Services,Employees,Agency Supply Costs,E B LTD,05/09/2023,992.25
Prosperity & Investment,BiT,Supplies & Services,Fees,WELLINGTON INSULATION CO. LTD,21/09/2023,992.00
Finance & Human Resources,Finance Manager (Corporate & Capital),Supplies & Services,Computer Hardware (Maint),CIVICA UK LIMITED ,01/09/2023,990.00
"Communities, Customer & Commercial Services",Customer Relationships & Welfare Services,Supplies & Services,Permit Production - Blue Badge,APS Group,04/09/2023,987.30
"Communities, Customer & Commercial Services",Culture & Events,Supplies & Services,Artistes Fees,The Bolthole Studio Ltd,04/09/2023,986.00
Prosperity & Investment,BiT,Supplies & Services,Security Services,BUSINESS WATCH GUARDING LIMITED,21/09/2023,977.05
Prosperity & Investment,BiT,Premises-Related Expenditure,R&M -Buildings DLO Charge,SGS United Kingdom Limited,21/09/2023,975.00
Prosperity & Investment,BiT,Premises-Related Expenditure,Service Charges Paid,THE WREKIN HOUSING TRUST ,04/09/2023,974.23
Neighbourhood & Enforcement Services,Strategic Transport & Highway Network Management,Employees,Agency Supply Costs,Telford and Wrekin Community Enterprise LTD,22/09/2023,971.25
Adult Social Care,My Options,Employees,Agency Supply Costs,Nurse Plus and Carer Plus Limited,12/09/2023,962.40
"Communities, Customer & Commercial Services",Sport & Leisure,Supplies & Services,Provisions,BIKOLD,14/09/2023,959.50
Prosperity & Investment,BiT,Premises-Related Expenditure,Electricity,BRITISH GAS BUSINESS,05/09/2023,954.04
Neighbourhood & Enforcement Services,Strategic Transport & Highway Network Management,Capital Expenditure,Payments to Contractor,ATKINS LIMITED,18/09/2023,952.00
"Communities, Customer & Commercial Services",Customer Relationships & Welfare Services,Supplies & Services,Comp Software (Purch / Hire),NEC Software Solutions UK Ltd,25/09/2023,950.00
"Communities, Customer & Commercial Services",ICT,Capital Expenditure,Payments to Contractor,Orange Cyberdefense UK Limited,21/09/2023,950.00
Prosperity & Investment,BiT,Premises-Related Expenditure,Gas,West Mercia Energy (WME),20/09/2023,948.21
"Communities, Customer & Commercial Services",Sport & Leisure,Supplies & Services,Protective Clothing,MYWORKWEAR,28/09/2023,946.08
Prosperity & Investment,BiT,Premises-Related Expenditure,Trade Refuse,FCC Recycling Ltd ,11/09/2023,935.48
Prosperity & Investment,BiT,Premises-Related Expenditure,Hygiene Services,PHS GROUP,15/09/2023,934.20
Education & Skills,SEND (0-25),Third Party Payments,DSG - High Needs Block,Lawley Village Academy,27/09/2023,933.28
"Communities, Customer & Commercial Services",Sport & Leisure,Supplies & Services,Provisions,BIKOLD,08/09/2023,927.89
Finance & Human Resources,Revenues,Supplies & Services,Printing - Other,Blue Print Direct Mail,26/09/2023,926.26
Finance & Human Resources,Revenues,Supplies & Services,Postages,ROYAL MAIL GROUP PLC,22/09/2023,918.96
Prosperity & Investment,BiT,Premises-Related Expenditure,Trade Refuse,FCC Recycling Ltd ,06/09/2023,915.72
Prosperity & Investment,BiT,Premises-Related Expenditure,R&M -Buildings DLO Charge,E Solutions Ltd,26/09/2023,910.00
"Communities, Customer & Commercial Services",Sport & Leisure,Supplies & Services,Sub Contractors,JCE & SONS LTD,19/09/2023,910.00
Prosperity & Investment,BiT,Capital Expenditure,Payments to Contractor,Security Wise Ltd,13/09/2023,904.00
"Communities, Customer & Commercial Services",Sport & Leisure,Supplies & Services,Provisions,T FOOD SERVICE LTD,13/09/2023,900.10
"Communities, Customer & Commercial Services",ICT,Supplies & Services,Comp Software (Purch / Hire),Getech Ltd,25/09/2023,900.00
Prosperity & Investment,Regeneration & Investment,Premises-Related Expenditure,Electricity,West Mercia Energy (WME),20/09/2023,892.81
Prosperity & Investment,BiT,Premises-Related Expenditure,Hygiene Services,PHS GROUP,13/09/2023,890.79
Policy & Governance,Governance & Legal Services,Employees,Agency Supply Costs,S Partnership,21/09/2023,888.60
Education & Skills,Education & Skills,Capital Expenditure,Payments to Contractor,ARJO UK LTD,26/09/2023,884.97
Neighbourhood & Enforcement Services,Enforcement,Third Party Payments,External Contractor�s - Machines,METRIC GROUP LTD,25/09/2023,884.00
"Communities, Customer & Commercial Services",Sport & Leisure,Supplies & Services,Provisions,BIKOLD,21/09/2023,881.30
Prosperity & Investment,BiT,Premises-Related Expenditure,R&M -Buildings DLO Charge,BUSINESS WATCH GUARDING LIMITED,04/09/2023,877.92
Prosperity & Investment,Regeneration & Investment,Premises-Related Expenditure,R&M -Building Other,COOL SERVICES LTD,27/09/2023,876.00
Policy & Governance,Organisational Development & Delivery,Employees,Staff Training,EDGE TRAINING & CONSULTANCY LTD,27/09/2023,875.00
Education & Skills,SEND (0-25),Supplies & Services,Materials,GL Assessments,22/09/2023,862.50
Prosperity & Investment,BiT,Premises-Related Expenditure,R&M -Buildings DLO Charge,COOL SERVICES LTD,04/09/2023,861.35
Adult Social Care,My Options,Supplies & Services,Respite Care,REDACTED PERSONAL INFORMATION,19/09/2023,856.80
Prosperity & Investment,BiT,Premises-Related Expenditure,Trade Refuse,FCC Recycling Ltd ,06/09/2023,850.98
Prosperity & Investment,Development Management,Capital Expenditure,Payments to Contractor,AJB CONTRACTING LTD,28/09/2023,850.00
"Communities, Customer & Commercial Services",ICT,Supplies & Services,Comp Hardware (Purch / Hire),CCS MEDIA LIMITED,05/09/2023,850.00
Prosperity & Investment,BiT,Capital Expenditure,Payments to Contractor,R Maintenance Services Ltd,26/09/2023,850.00
Prosperity & Investment,BiT,Capital Expenditure,Payments to Contractor,Wrekin Moving & Storage,15/09/2023,850.00
Prosperity & Investment,BiT,Premises-Related Expenditure,R&M -Buildings DLO Charge,GAS ALARM SYSTEMS LTD,27/09/2023,849.10
Neighbourhood & Enforcement Services,Strategic Transport & Highway Network Management,Transport-Related Expenditure,Outside Hire,DAYS RENTAL,15/09/2023,846.72
Neighbourhood & Enforcement Services,Strategic Transport & Highway Network Management,Transport-Related Expenditure,Outside Hire,DAYS RENTAL,15/09/2023,846.72
Adult Social Care,My Options,Supplies & Services,Equipment - Purchase,SPACEKRAFT LTD,26/09/2023,845.00
Prosperity & Investment,BiT,Premises-Related Expenditure,R&M -Buildings DLO Charge,WB Building Services Limited,26/09/2023,843.67
Prosperity & Investment,BiT,Premises-Related Expenditure,R&M -Buildings DLO Charge,JCE & SONS LTD,04/09/2023,835.00
"Communities, Customer & Commercial Services",Sport & Leisure,Supplies & Services,Crockery/Hardware/Light Equip,CALTEL CATERING & LAUNDRY EQUIPMENT LLP,25/09/2023,830.00
Adult Social Care,Prevention & Independence - Older Adults & Disability,Supplies & Services,Aids & Appliances,O HEALTHCARE LTD,11/09/2023,825.58
"Communities, Customer & Commercial Services",Sport & Leisure,Supplies & Services,Sub Contractors,Midland Playscape,26/09/2023,825.32
"Communities, Customer & Commercial Services",Sport & Leisure,Employees,Staff Training,TWR training linited,29/09/2023,825.00
"Communities, Customer & Commercial Services",Sport & Leisure,Supplies & Services,EEC Whole Milk,J DAIRIES,26/09/2023,821.08
Policy & Governance,Governance & Legal Services,Supplies & Services,Postages,ROYAL MAIL GROUP PLC,05/09/2023,817.74
Prosperity & Investment,BiT,Premises-Related Expenditure,R&M -Buildings DLO Charge,TAYLORS MECHANICAL H & P SERVICES LTD,20/09/2023,810.00
Children�s Safeguarding & Family Support,Child Protection & Family Support,Supplies & Services,Other Services,T Nursing Services,01/09/2023,808.36
Children�s Safeguarding & Family Support,Child Protection & Family Support,Supplies & Services,Other Services,T Nursing Services,01/09/2023,808.36
Prosperity & Investment,BiT,Premises-Related Expenditure,R&M -Buildings DLO Charge,AUDIENCE SYSTEMS LTD,18/09/2023,807.74
Adult Social Care,Prevention & Independence - Older Adults & Disability,Supplies & Services,Aids & Appliances,PRISM MEDICAL WESTHOLME DIVISION,18/09/2023,802.88
Education & Skills,Skills,Supplies & Services,Advertising,Bauer Radio Ltd,11/09/2023,800.00
Finance & Human Resources,Revenues,Supplies & Services,Franking Machine Service,FRANCOTYP-POSTALIA LTD,18/09/2023,800.00
Prosperity & Investment,Regeneration & Investment,Third Party Payments,Contractor Recharge,Ocmis Ltd,25/09/2023,800.00
Neighbourhood & Enforcement Services,"Highways, Engineering & Project Delivery",Capital Expenditure,Payments to Contractor,Smart Video & Sensing Ltd,14/09/2023,800.00
Neighbourhood & Enforcement Services,"Highways, Engineering & Project Delivery",Capital Expenditure,Payments to Contractor,Smart Video & Sensing Ltd,14/09/2023,800.00
Adult Social Care,Prevention & Independence - Older Adults & Disability,Transport-Related Expenditure,Taxi Costs,Telford Taxi Hire Limited,04/09/2023,800.00
Prosperity & Investment,Regeneration & Investment,Premises-Related Expenditure,Grounds Maintenance - L&CS,P C Ltd,19/09/2023,794.17
Children�s Safeguarding & Family Support,Family Connect & Childrens Centres,Supplies & Services,Stationery,SIGNS EXPRESS ,11/09/2023,793.20
"Communities, Customer & Commercial Services",Customer Relationships & Welfare Services,Supplies & Services,Bus Pass Production,Euclid Limited,07/09/2023,790.92
Education & Skills,Pupil Support Services,Third Party Payments,Misc. Education Payments to T&W Schools (incl Academies),Kickstart Academy,25/09/2023,789.71
Education & Skills,Pupil Support Services,Third Party Payments,Misc. Education Payments to T&W Schools (incl Academies),Kickstart Academy,25/09/2023,789.71
Children�s Safeguarding & Family Support,"Family Placements, Children in Care, Leaving Care & Emergency Duty Team",Supplies & Services,Aids & Appliances,Tough Furniture Ltd,21/09/2023,788.00
Education & Skills,SEND (0-25),Third Party Payments,DSG - High Needs Block,Tettenhall College,22/09/2023,787.50
Education & Skills,SEND (0-25),Third Party Payments,DSG - High Needs Block,HRP Education,22/09/2023,780.00
Education & Skills,SEND (0-25),Third Party Payments,DSG - High Needs Block,HRP Education,22/09/2023,780.00
Education & Skills,SEND (0-25),Third Party Payments,DSG - High Needs Block,HRP Education,22/09/2023,780.00
Education & Skills,SEND (0-25),Third Party Payments,DSG - High Needs Block,HRP Education,22/09/2023,780.00
Neighbourhood & Enforcement Services,Strategic Transport & Highway Network Management,Transport-Related Expenditure,Outside Hire,DAYS RENTAL,15/09/2023,779.19
Neighbourhood & Enforcement Services,Strategic Transport & Highway Network Management,Transport-Related Expenditure,Outside Hire,DAYS RENTAL,15/09/2023,779.19
Finance & Human Resources,Revenues,Supplies & Services,Consultancy,G K Ltd,12/09/2023,779.00
Prosperity & Investment,BiT,Premises-Related Expenditure,Service Contracts,COOL SERVICES LTD,26/09/2023,776.24
Prosperity & Investment,BiT,Premises-Related Expenditure,R&M -Buildings DLO Charge,Belvidere Lifts Ltd,21/09/2023,775.00
"Communities, Customer & Commercial Services",ICT,Capital Expenditure,Payments to Contractor,Orange Cyberdefense UK Limited,21/09/2023,770.00
"Communities, Customer & Commercial Services",ICT,Capital Expenditure,Payments to Contractor,Orange Cyberdefense UK Limited,21/09/2023,770.00
Prosperity & Investment,Regeneration & Investment,Premises-Related Expenditure,Grounds Maintenance - L&CS,WREKIN DRAIN SERVICES LTD,21/09/2023,770.00
Prosperity & Investment,Regeneration & Investment,Premises-Related Expenditure,Electricity,West Mercia Energy (WME),20/09/2023,767.98
Prosperity & Investment,Regeneration & Investment,Capital Expenditure,Payments to Contractor,L Partnerships Limited,19/09/2023,764.22
"Communities, Customer & Commercial Services",Sport & Leisure,Supplies & Services,Provisions,BIKOLD,14/09/2023,760.16
"Communities, Customer & Commercial Services",ICT,Capital Expenditure,Computer Hardware,CCS MEDIA LIMITED,18/09/2023,756.00
Prosperity & Investment,BiT,Premises-Related Expenditure,R&M -Buildings DLO Charge,ULTRAVALVE LIMITED,20/09/2023,755.00
"Communities, Customer & Commercial Services",Sport & Leisure,Premises-Related Expenditure,Clean Mats & Toilet Requisites,Border Janitorial Supplies Limited,27/09/2023,752.03
Adult Social Care,Prevention & Independence - Older Adults & Disability,Supplies & Services,Aids & Appliances,My Improvement Network,26/09/2023,750.00
"Communities, Customer & Commercial Services",Sport & Leisure,Supplies & Services,Provisions,BIKOLD,08/09/2023,749.02
"Communities, Customer & Commercial Services",Sport & Leisure,Supplies & Services,Provisions,BIKOLD,21/09/2023,746.39
Prosperity & Investment,BiT,Premises-Related Expenditure,R&M -Buildings DLO Charge,JCE & SONS LTD,26/09/2023,746.00
"Communities, Customer & Commercial Services",Sport & Leisure,Premises-Related Expenditure,Clean Mats & Toilet Requisites,Border Janitorial Supplies Limited,11/09/2023,745.80
Prosperity & Investment,BiT,Premises-Related Expenditure,R&M -Buildings DLO Charge,JAK WATER SYSTEMS LTD,26/09/2023,742.67
Prosperity & Investment,BiT,Premises-Related Expenditure,Electricity,West Mercia Energy (WME),20/09/2023,740.89
"Communities, Customer & Commercial Services",Sport & Leisure,Supplies & Services,Provisions,BIKOLD,14/09/2023,740.54
"Communities, Customer & Commercial Services",Sport & Leisure,Supplies & Services,Provisions,BIKOLD,08/09/2023,739.29
Education & Skills,SEND (0-25),Third Party Payments,DSG - High Needs Block,HRP Education,22/09/2023,735.00
Education & Skills,SEND (0-25),Third Party Payments,DSG - High Needs Block,HRP Education,22/09/2023,735.00
"Communities, Customer & Commercial Services",Culture & Events,Supplies & Services,Wet Resale Provision,MOLSON COORS BREWING COMPANY UK LTD,05/09/2023,731.28
Prosperity & Investment,BiT,Premises-Related Expenditure,R&M -Buildings DLO Charge,JCE & SONS LTD,20/09/2023,731.00
"Communities, Customer & Commercial Services",Sport & Leisure,Supplies & Services,EEC Whole Milk,J DAIRIES,13/09/2023,730.57
Prosperity & Investment,Regeneration & Investment,Premises-Related Expenditure,Grounds Maintenance - L&CS,RMF LANDSCAPING LTD,06/09/2023,730.00
Prosperity & Investment,BiT,Premises-Related Expenditure,Service Contracts,TAYLORS MECHANICAL H & P SERVICES LTD,13/09/2023,726.64
"Communities, Customer & Commercial Services",Sport & Leisure,Supplies & Services,Equipment - Purchase,JCE & SONS LTD,19/09/2023,726.49
Neighbourhood & Enforcement Services,Safer & Stronger Communities,Premises-Related Expenditure,Leasehold Rents,GPS Property Shropshire LLP,15/09/2023,725.00
Prosperity & Investment,Regeneration & Investment,Premises-Related Expenditure,R&M -Building Other,ARJO UK LTD,06/09/2023,723.11
"Communities, Customer & Commercial Services",Sport & Leisure,Supplies & Services,Provisions,BIKOLD,08/09/2023,723.11
Prosperity & Investment,BiT,Premises-Related Expenditure,Gas,West Mercia Energy (WME),20/09/2023,722.92
Health & Wellbeing,Consultant in Public Health,Supplies & Services,Marketing & Publicity,NEWPORT ENGRAVERS,25/09/2023,722.00
Prosperity & Investment,BiT,Premises-Related Expenditure,R&M -Buildings DLO Charge,E Solutions Ltd,26/09/2023,715.00
Neighbourhood & Enforcement Services,Waste & Neighbourhood Services,Premises-Related Expenditure,Grounds Maintenance - Other,MARMAX PRODUCTS LTD,27/09/2023,714.00
Prosperity & Investment,BiT,Premises-Related Expenditure,Electricity,West Mercia Energy (WME),20/09/2023,710.56
Children�s Safeguarding & Family Support,"Family Placements, Children in Care, Leaving Care & Emergency Duty Team",Supplies & Services,Equipment - Repair,STANNAH LIFT SERVICES LTD,21/09/2023,709.25
"Communities, Customer & Commercial Services",Sport & Leisure,Supplies & Services,Provisions,BIKOLD,28/09/2023,701.59
Neighbourhood & Enforcement Services,Safer & Stronger Communities,Premises-Related Expenditure,Leasehold Rents,GPS Property Shropshire LLP,11/09/2023,700.00
"Communities, Customer & Commercial Services",Customer Relationships & Welfare Services,Supplies & Services,Comp Software (Purch / Hire),NEC Software Solutions UK Ltd,25/09/2023,700.00
Children�s Safeguarding & Family Support,"Family Placements, Children in Care, Leaving Care & Emergency Duty Team",Supplies & Services,Aids & Appliances,Schuchmann LLP,21/09/2023,700.00
Prosperity & Investment,BiT,Premises-Related Expenditure,Service Contracts,Adexsi UK Ltd,21/09/2023,699.08
"Communities, Customer & Commercial Services",ICT,Supplies & Services,Comp Hardware (Purch / Hire),CCS MEDIA LIMITED,29/09/2023,699.01
Neighbourhood & Enforcement Services,Strategic Transport & Highway Network Management,Transport-Related Expenditure,Servicing & Repairs V&P,AEM GROUP LTD,22/09/2023,695.50
Neighbourhood & Enforcement Services,Strategic Transport & Highway Network Management,Transport-Related Expenditure,Vehicle Parts,AEM GROUP LTD,22/09/2023,695.50
"Communities, Customer & Commercial Services",Sport & Leisure,Supplies & Services,Provisions,BIKOLD,08/09/2023,694.69
Prosperity & Investment,BiT,Premises-Related Expenditure,Hygiene Services,PHS GROUP,15/09/2023,692.68
Prosperity & Investment,BiT,Premises-Related Expenditure,R&M -Buildings DLO Charge,TAYLORS MECHANICAL H & P SERVICES LTD,20/09/2023,689.12
Prosperity & Investment,Regeneration & Investment,Premises-Related Expenditure,Electricity,West Mercia Energy (WME),20/09/2023,688.38
Neighbourhood & Enforcement Services,Strategic Transport & Highway Network Management,Transport-Related Expenditure,Outside Hire,Enterprise Flexi Rent,15/09/2023,686.42
Neighbourhood & Enforcement Services,Strategic Transport & Highway Network Management,Transport-Related Expenditure,Servicing & Repairs V&P,AEM GROUP LTD,22/09/2023,685.33
Prosperity & Investment,BiT,Premises-Related Expenditure,R&M -Buildings DLO Charge,Power Point Stores,18/09/2023,682.50
"Communities, Customer & Commercial Services",Sport & Leisure,Supplies & Services,Provisions,BIKOLD,28/09/2023,681.80
Finance & Human Resources,Revenues,Supplies & Services,Printing - Other,CustomerKNECT Limited,13/09/2023,681.00
Children�s Safeguarding & Family Support,Child Protection & Family Support,Supplies & Services,Other Services,T Nursing Services,01/09/2023,679.99
Prosperity & Investment,Regeneration & Investment,Supplies & Services,Security Services,BUSINESS WATCH GUARDING LIMITED,13/09/2023,674.80
"Communities, Customer & Commercial Services",Sport & Leisure,Supplies & Services,Provisions,BIKOLD,08/09/2023,673.96
Finance & Human Resources,Revenues,Supplies & Services,Franking Machine Service,Francotyp-Postalia Ltd,12/09/2023,670.20
Education & Skills,Consultancy & Advisory Services,Supplies & Services,Marketing & Publicity,The Purple Company Ltd,04/09/2023,670.00
Prosperity & Investment,Regeneration & Investment,Third Party Payments,Contractor Recharge,Prosep filter systems ltd,25/09/2023,663.56
"Communities, Customer & Commercial Services",Sport & Leisure,Supplies & Services,Provisions,BIKOLD,08/09/2023,663.29
"Communities, Customer & Commercial Services",Sport & Leisure,Supplies & Services,Provisions,BIKOLD,08/09/2023,658.58
Prosperity & Investment,BiT,Premises-Related Expenditure,R&M -Buildings DLO Charge,TAYLORS MECHANICAL H & P SERVICES LTD,27/09/2023,654.54
"Communities, Customer & Commercial Services",Sport & Leisure,Supplies & Services,Provisions,BIKOLD,21/09/2023,654.42
"Communities, Customer & Commercial Services",Sport & Leisure,Supplies & Services,Provisions,BIKOLD,28/09/2023,652.78
Finance & Human Resources,Revenues,Supplies & Services,Postages,Financial Data Management plc,22/09/2023,652.69
Prosperity & Investment,BiT,Premises-Related Expenditure,R&M -Buildings DLO Charge,E Solutions Ltd,20/09/2023,650.00
Neighbourhood & Enforcement Services,Waste & Neighbourhood Services,Premises-Related Expenditure,Grounds Maintenance - Other,H Tree Care Ltd,01/09/2023,650.00
"Communities, Customer & Commercial Services",Sport & Leisure,Supplies & Services,Licences,L M Fitness UK Ltd,13/09/2023,650.00
"Communities, Customer & Commercial Services",Sport & Leisure,Supplies & Services,Provisions,BIKOLD,28/09/2023,649.59
"Communities, Customer & Commercial Services",Culture & Events,Supplies & Services,Equipment - Hire,Event Furniture Hire Ltd,21/09/2023,648.00
"Communities, Customer & Commercial Services",Sport & Leisure,Supplies & Services,Provisions,BIKOLD,14/09/2023,647.78
Adult Social Care,My Options,Employees,Agency Supply Costs,Nurse Plus and Carer Plus Limited,19/09/2023,643.43
"Communities, Customer & Commercial Services",Sport & Leisure,Supplies & Services,Provisions,BIKOLD,28/09/2023,640.89
"Communities, Customer & Commercial Services",Sport & Leisure,Supplies & Services,Equipment - Hire,O LTD,28/09/2023,639.98
"Communities, Customer & Commercial Services",Sport & Leisure,Supplies & Services,Provisions,Delice de France,13/09/2023,638.02
"Communities, Customer & Commercial Services",Culture & Events,Supplies & Services,Artistes Fees,ShowStoppers,21/09/2023,635.00
"Communities, Customer & Commercial Services",Culture & Events,Supplies & Services,Equipment - Hire,Midlands Events Ltd,14/09/2023,630.00
"Communities, Customer & Commercial Services",Sport & Leisure,Supplies & Services,Provisions,BIKOLD,14/09/2023,629.43
Policy & Governance,Organisational Development & Delivery,Employees,Staff Training,West Midlands Employers,22/09/2023,627.00
"Communities, Customer & Commercial Services",ICT,Supplies & Services,Text Messages,PROCESS FLOWS UK LTD,04/09/2023,625.98
"Housing, Employment & Infrastructure",Inward Investment & Business Support,Supplies & Services,Consultancy,Connect Consultancy Limited,08/09/2023,625.00
"Housing, Employment & Infrastructure",Inward Investment & Business Support,Supplies & Services,Consultancy,Connect Consultancy Limited,29/09/2023,625.00
"Housing, Employment & Infrastructure",Inward Investment & Business Support,Supplies & Services,Consultancy,Mango Studios London Ltd,14/09/2023,625.00
Education & Skills,SEND (0-25),Third Party Payments,DSG - High Needs Block,HRP Education,22/09/2023,624.00
"Communities, Customer & Commercial Services",Sport & Leisure,Supplies & Services,Provisions,BIKOLD,14/09/2023,613.12
Prosperity & Investment,BiT,Premises-Related Expenditure,Other Energy Costs,Energy Merchants Ltd,26/09/2023,610.90
Education & Skills,SEND (0-25),Third Party Payments,DSG - High Needs Block,CAT - Telford Priory School,27/09/2023,610.69
Prosperity & Investment,BiT,Premises-Related Expenditure,Trade Refuse,FCC Recycling Ltd ,04/09/2023,610.48
Prosperity & Investment,BiT,Premises-Related Expenditure,Trade Refuse,FCC Recycling Ltd ,06/09/2023,610.48
Prosperity & Investment,BiT,Premises-Related Expenditure,Trade Refuse,FCC Recycling Ltd ,06/09/2023,610.48
Prosperity & Investment,BiT,Premises-Related Expenditure,Electricity,West Mercia Energy (WME),20/09/2023,610.35
"Communities, Customer & Commercial Services",Sport & Leisure,Supplies & Services,Provisions,BIKOLD,08/09/2023,609.99
"Communities, Customer & Commercial Services",Sport & Leisure,Supplies & Services,Provisions,BIKOLD,14/09/2023,608.88
"Communities, Customer & Commercial Services",Customer Relationships & Welfare Services,Employees,Agency Supply Costs,E B LTD,29/09/2023,607.50
"Communities, Customer & Commercial Services",Customer Relationships & Welfare Services,Premises-Related Expenditure,Grounds Maintenance - Other,OASIS PLANTS LIMITED,25/09/2023,605.47
Prosperity & Investment,BiT,Premises-Related Expenditure,R&M -Buildings DLO Charge,E Solutions Ltd,20/09/2023,605.00
"Communities, Customer & Commercial Services",Sport & Leisure,Supplies & Services,Provisions,BIKOLD,28/09/2023,603.04
Prosperity & Investment,BiT,Premises-Related Expenditure,Hygiene Services,PHS GROUP,15/09/2023,602.23
"Communities, Customer & Commercial Services",Culture & Events,Premises-Related Expenditure,Hire Of Rooms,IRONBRIDGE GORGE TRADING CO LTD,21/09/2023,600.00
Prosperity & Investment,BiT,Premises-Related Expenditure,Leasehold Rents,RECURRING PAYMENTS ONLY - MARTOL HOLDINGS,20/09/2023,600.00
Policy & Governance,Organisational Development & Delivery,Employees,Staff Training,UK Learning Network Limited,29/09/2023,600.00
Neighbourhood & Enforcement Services,"Highways, Engineering & Project Delivery",Premises-Related Expenditure,Electricity,EON next,07/09/2023,599.68
Prosperity & Investment,Regeneration & Investment,Premises-Related Expenditure,R&M -Building Other,Churches Fire Security Ltd,27/09/2023,597.45
"Communities, Customer & Commercial Services",Sport & Leisure,Supplies & Services,Provisions,BIKOLD,08/09/2023,596.04
Prosperity & Investment,BiT,Premises-Related Expenditure,R&M -Buildings DLO Charge,Green Assess Telford and Wrekin,26/09/2023,595.00
"Communities, Customer & Commercial Services",Sport & Leisure,Supplies & Services,Provisions,BIKOLD,21/09/2023,593.63
Adult Social Care,Prevention & Independence - Older Adults & Disability,Supplies & Services,Equipment - Repair,STANNAH LIFT SERVICES LTD,21/09/2023,592.50
"Communities, Customer & Commercial Services",Sport & Leisure,Supplies & Services,Equipment - Purchase,RLSS UK Enterprises Ltd,05/09/2023,590.00
"Communities, Customer & Commercial Services",Sport & Leisure,Supplies & Services,Provisions,BIKOLD,28/09/2023,589.99
Prosperity & Investment,BiT,Premises-Related Expenditure,R&M -Buildings DLO Charge,Belvidere Lifts Ltd,21/09/2023,580.00
Prosperity & Investment,BiT,Premises-Related Expenditure,Service Contracts,E Solutions Ltd,26/09/2023,580.00
Prosperity & Investment,Development Management,Supplies & Services,Comp Software (Purch / Hire),LIGHTING REALITY LTD,27/09/2023,580.00
Prosperity & Investment,BiT,Premises-Related Expenditure,R&M -Buildings DLO Charge,TAYLORS MECHANICAL H & P SERVICES LTD,26/09/2023,580.00
"Communities, Customer & Commercial Services",Sport & Leisure,Supplies & Services,Sub Contractors,BUSINESS WATCH GUARDING LIMITED,11/09/2023,574.06
"Communities, Customer & Commercial Services",ICT,Supplies & Services,Furniture - Purchase,BACK CARE SOLUTIONS LTD,07/09/2023,573.00
"Communities, Customer & Commercial Services",Sport & Leisure,Supplies & Services,Provisions,BIKOLD,08/09/2023,572.22
"Communities, Customer & Commercial Services",Sport & Leisure,Supplies & Services,Provisions,BIKOLD,08/09/2023,571.20
Education & Skills,SEND (0-25),Supplies & Services,Health & Safety Expenses,G & S S LTD,04/09/2023,571.00
"Communities, Customer & Commercial Services",Sport & Leisure,Supplies & Services,Provisions,BIKOLD,21/09/2023,570.67
"Communities, Customer & Commercial Services",Customer Relationships & Welfare Services,Supplies & Services,Blue Badge Assessments,Ascenti,08/09/2023,570.00
Children�s Safeguarding & Family Support,"Family Placements, Children in Care, Leaving Care & Emergency Duty Team",Supplies & Services,Aids & Appliances,M A S Associates,08/09/2023,570.00
Prosperity & Investment,BiT,Premises-Related Expenditure,R&M -Buildings DLO Charge,JCE & SONS LTD,26/09/2023,568.81
Policy & Governance,Governance & Legal Services,Supplies & Services,Stationery,S & SONS LTD,14/09/2023,568.50
Policy & Governance,Governance & Legal Services,Supplies & Services,Postages,ROYAL MAIL GROUP PLC,12/09/2023,567.52
Finance & Human Resources,"Finance Manager (Business, Education & Care)",Employees,Staff Training,Severn Financial Training,12/09/2023,567.00
Neighbourhood & Enforcement Services,Strategic Transport & Highway Network Management,Supplies & Services,Concessionary Travel,D&G Bus,21/09/2023,566.50
Education & Skills,SEND (0-25),Third Party Payments,DSG - High Needs Block,Redhill Primary Academy,27/09/2023,565.25
Prosperity & Investment,Regeneration & Investment,Premises-Related Expenditure,Grounds Maintenance - L&CS,RMF LANDSCAPING LTD,08/09/2023,565.00
Finance & Human Resources,Revenues,Supplies & Services,Printing - Other,Visual Print & Design,20/09/2023,565.00
Prosperity & Investment,BiT,Premises-Related Expenditure,Service Contracts,Adexsi UK Ltd,21/09/2023,559.26
Prosperity & Investment,Regeneration & Investment,Premises-Related Expenditure,R&M -Building Other,Adexsi UK Ltd,27/09/2023,559.26
Prosperity & Investment,BiT,Premises-Related Expenditure,Hygiene Services,PHS GROUP,04/09/2023,559.24
"Housing, Employment & Infrastructure",Inward Investment & Business Support,Supplies & Services,Other Services,Simpleview Europe,08/09/2023,558.00
"Communities, Customer & Commercial Services",Customer Relationships & Welfare Services,Supplies & Services,Postages,Financial Data Management plc,22/09/2023,557.45
Prosperity & Investment,BiT,Premises-Related Expenditure,R&M -Buildings DLO Charge,Security Wise Ltd,15/09/2023,556.51
Neighbourhood & Enforcement Services,Public Protection,Supplies & Services,Other Services,Trebla Security Ltd,01/09/2023,555.00
"Communities, Customer & Commercial Services",Sport & Leisure,Supplies & Services,Provisions,BIKOLD,21/09/2023,550.41
Adult Social Care,My Options,Employees,Agency Supply Costs,Nurse Plus and Carer Plus Limited,28/09/2023,550.18
Prosperity & Investment,BiT,Premises-Related Expenditure,Leasehold Rents,REDACTED PERSONAL INFORMATION,20/09/2023,550.00
"Communities, Customer & Commercial Services",Customer Relationships & Welfare Services,Transfer Payments,Crisis Assistance Awards,PayPoint Network Limited,26/09/2023,550.00
Prosperity & Investment,BiT,Premises-Related Expenditure,R&M -Buildings DLO Charge,TAYLORS MECHANICAL H & P SERVICES LTD,26/09/2023,550.00
"Communities, Customer & Commercial Services",Sport & Leisure,Supplies & Services,Provisions,BIKOLD,08/09/2023,546.97
"Communities, Customer & Commercial Services",Sport & Leisure,Supplies & Services,Provisions,BIKOLD,28/09/2023,545.53
Adult Social Care,My Options,Employees,Agency Supply Costs,Safehands Recruitment,28/09/2023,545.48
"Communities, Customer & Commercial Services",Sport & Leisure,Supplies & Services,Provisions,BIKOLD,08/09/2023,544.81
"Communities, Customer & Commercial Services",ICT,Capital Expenditure,Computer Hardware,CCS MEDIA LIMITED,05/09/2023,544.00
"Communities, Customer & Commercial Services",Sport & Leisure,Supplies & Services,Provisions,On A Roll,13/09/2023,542.80
"Communities, Customer & Commercial Services",Sport & Leisure,Supplies & Services,Provisions,BIKOLD,28/09/2023,542.25
"Communities, Customer & Commercial Services",Sport & Leisure,Supplies & Services,Provisions,BIKOLD,08/09/2023,542.02
"Communities, Customer & Commercial Services",Sport & Leisure,Supplies & Services,Provisions,BIKOLD,28/09/2023,539.65
"Communities, Customer & Commercial Services",Sport & Leisure,Supplies & Services,Provisions,BIKOLD,14/09/2023,538.17
Neighbourhood & Enforcement Services,Waste & Neighbourhood Services,Premises-Related Expenditure,Grounds Maintenance - Other,Amey OW Ltd,20/09/2023,537.31
Prosperity & Investment,BiT,Premises-Related Expenditure,Electricity,West Mercia Energy (WME),20/09/2023,533.16
"Communities, Customer & Commercial Services",Sport & Leisure,Supplies & Services,Provisions,BIKOLD,28/09/2023,531.99
"Communities, Customer & Commercial Services",Culture & Events,Supplies & Services,Artistes Fees,Ticketplan Limited,08/09/2023,531.52
Prosperity & Investment,Regeneration & Investment,Premises-Related Expenditure,Electricity,West Mercia Energy (WME),20/09/2023,531.40
"Communities, Customer & Commercial Services",Sport & Leisure,Supplies & Services,Provisions,BIKOLD,14/09/2023,529.46
Finance & Human Resources,Revenues,Supplies & Services,Printing - Other,J P Printers Limited,05/09/2023,528.00
Finance & Human Resources,Revenues,Supplies & Services,Other Office Expenses,DOCU-FINISH SOLUTIONS LTD,27/09/2023,527.75
Prosperity & Investment,BiT,Premises-Related Expenditure,R&M -Buildings DLO Charge,C & S Carpet & Flooring,18/09/2023,527.55
"Communities, Customer & Commercial Services",Sport & Leisure,Supplies & Services,Sub Contractors,Midland Playscape,26/09/2023,526.83
Education & Skills,Skills,Supplies & Services,Advertising,Bauer Radio Ltd,11/09/2023,525.00
Prosperity & Investment,BiT,Premises-Related Expenditure,R&M -Buildings DLO Charge,Style Midlands,26/09/2023,525.00
Corporate Items,Corporate Codes,Supplies & Services,Conference Expenses,Solace Group Ltd,01/09/2023,525.00
Prosperity & Investment,Regeneration & Investment,Premises-Related Expenditure,Gas,West Mercia Energy (WME),20/09/2023,523.17
"Communities, Customer & Commercial Services",Sport & Leisure,Supplies & Services,Provisions,BIKOLD,28/09/2023,521.17
Prosperity & Investment,BiT,Premises-Related Expenditure,R&M -Buildings DLO Charge,Celsius Design Limited,06/09/2023,520.00
"Communities, Customer & Commercial Services",Culture & Events,Supplies & Services,Equipment - Hire,Stage and Studios Services Limited,19/09/2023,520.00
"Communities, Customer & Commercial Services",Sport & Leisure,Premises-Related Expenditure,R&M - Mechanical,Life Fitness UK Ltd,04/09/2023,518.64
Prosperity & Investment,BiT,Premises-Related Expenditure,R&M -Buildings DLO Charge,TAYLORS MECHANICAL H & P SERVICES LTD,15/09/2023,517.50
"Communities, Customer & Commercial Services",Sport & Leisure,Supplies & Services,Provisions,BIKOLD,14/09/2023,513.24
"Communities, Customer & Commercial Services",Sport & Leisure,Supplies & Services,Provisions,BIKOLD,28/09/2023,512.06
Education & Skills,Education & Skills,Capital Expenditure,Legal Fees,WARD HADAWAY SOLICITORS,18/09/2023,512.00
"Communities, Customer & Commercial Services",Sport & Leisure,Supplies & Services,Provisions,BIKOLD,21/09/2023,509.43
Adult Social Care,Prevention & Independence - Older Adults & Disability,Supplies & Services,Aids & Appliances,PRISM MEDICAL WESTHOLME DIVISION,18/09/2023,508.63
Prosperity & Investment,BiT,Premises-Related Expenditure,Service Contracts,Pumpforce Ltd,04/09/2023,507.08
"Communities, Customer & Commercial Services",Sport & Leisure,Supplies & Services,Provisions,BIKOLD,14/09/2023,504.05
"Communities, Customer & Commercial Services",Sport & Leisure,Supplies & Services,Provisions,BIKOLD,21/09/2023,503.11
"Communities, Customer & Commercial Services",Culture & Events,Supplies & Services,Artistes Fees,Rhubarb Theatre,06/09/2023,502.00
Neighbourhood & Enforcement Services,"Highways, Engineering & Project Delivery",Premises-Related Expenditure,Electricity,West Mercia Energy (WME),20/09/2023,501.34
Prosperity & Investment,Regeneration & Investment,Third Party Payments,Contractor Recharge,A FairGround Ltd,13/09/2023,500.00
Neighbourhood & Enforcement Services,Safer & Stronger Communities,Supplies & Services,Other Services,AUNIQUEART,13/09/2023,500.00
"Housing, Employment & Infrastructure",Inward Investment & Business Support,Supplies & Services,Consultancy,CGR Business Solutions Limited,29/09/2023,500.00
Education & Skills,SEND (0-25),Third Party Payments,DSG - High Needs Block,Chalkline Education & Support Ltd,27/09/2023,500.00
"Housing, Employment & Infrastructure",Inward Investment & Business Support,Capital Expenditure,Payments to Contractor,The Tree Man,05/09/2023,500.00
Children�s Safeguarding & Family Support,"Family Placements, Children in Care, Leaving Care & Emergency Duty Team",Supplies & Services,Form F Assessments,ES-PBS Services,20/09/2023,500.00
"Housing, Employment & Infrastructure",Inward Investment & Business Support,Supplies & Services,Consultancy,Horizons Consultants Ltd,13/09/2023,500.00
"Communities, Customer & Commercial Services",Community Services,Supplies & Services,Grants To Voluntary Organis,LAWLEY & OVERDALE PARISH COUNCIL,12/09/2023,500.00
"Communities, Customer & Commercial Services",Community Services,Supplies & Services,Grants To Voluntary Organis,LAWLEY & OVERDALE PARISH COUNCIL,12/09/2023,500.00
Children�s Safeguarding & Family Support,"Family Placements, Children in Care, Leaving Care & Emergency Duty Team",Supplies & Services,Aids & Appliances,M A S Associates,21/09/2023,500.00
Prosperity & Investment,BiT,Premises-Related Expenditure,Leasehold Rents,REDACTED PERSONAL INFORMATION,20/09/2023,500.00
Neighbourhood & Enforcement Services,"Highways, Engineering & Project Delivery",Capital Expenditure,Payments to Contractor,Smart Video & Sensing Ltd,14/09/2023,500.00
Neighbourhood & Enforcement Services,"Highways, Engineering & Project Delivery",Capital Expenditure,Payments to Contractor,Smart Video & Sensing Ltd,14/09/2023,500.00
"Communities, Customer & Commercial Services",Culture & Events,Supplies & Services,Artistes Fees,Stage and Studios Services Limited,07/09/2023,500.00
"Communities, Customer & Commercial Services",Sport & Leisure,Supplies & Services,Provisions,BIKOLD,21/09/2023,498.56
"Communities, Customer & Commercial Services",Sport & Leisure,Supplies & Services,Provisions,BIKOLD,21/09/2023,496.97
Prosperity & Investment,BiT,Premises-Related Expenditure,R&M -Buildings DLO Charge,JAK WATER SYSTEMS LTD,04/09/2023,496.50
Finance & Human Resources,Finance Manager (Corporate & Capital),Supplies & Services,Computer Hardware (Maint),CIVICA UK LIMITED ,13/09/2023,495.00
Adult Social Care,My Options,Supplies & Services,Computer Software (Maint),Access UK Ltd,19/09/2023,494.40
"Communities, Customer & Commercial Services",Sport & Leisure,Supplies & Services,Provisions,BIKOLD,21/09/2023,494.33
"Communities, Customer & Commercial Services",Sport & Leisure,Supplies & Services,Provisions,BIKOLD,08/09/2023,493.50
"Communities, Customer & Commercial Services",Sport & Leisure,Supplies & Services,Provisions,BIKOLD,08/09/2023,493.29
"Communities, Customer & Commercial Services",Sport & Leisure,Supplies & Services,Provisions,BIKOLD,14/09/2023,493.28
Finance & Human Resources,Human Resources,Supplies & Services,Doctors Fees,Get Medic Ltd,22/09/2023,490.00
Education & Skills,Skills,Supplies & Services,Consultancy,Shropshire Youth Support Trust,06/09/2023,490.00
"Communities, Customer & Commercial Services",Sport & Leisure,Supplies & Services,Provisions,BIKOLD,21/09/2023,489.78
Policy & Governance,Governance & Legal Services,Supplies & Services,Postages,ROYAL MAIL GROUP PLC,26/09/2023,488.21
"Communities, Customer & Commercial Services",Sport & Leisure,Supplies & Services,Provisions,BIKOLD,28/09/2023,487.11
Education & Skills,Education & Skills,Capital Expenditure,Payments to Contractor,GRANVILLE CONSTRUCTION & MAINTENANCE LTD,26/09/2023,487.00
"Communities, Customer & Commercial Services",Culture & Events,Supplies & Services,Equipment - Hire,PG Skips Ltd,06/09/2023,486.60
Prosperity & Investment,Regeneration & Investment,Premises-Related Expenditure,Contract Cleaning,BUSY BEE CLEANING LTD,01/09/2023,485.67
Prosperity & Investment,BiT,Premises-Related Expenditure,R&M -Buildings DLO Charge,Universal Services Ltd,25/09/2023,485.14
Prosperity & Investment,BiT,Premises-Related Expenditure,Service Contracts,JCE & SONS LTD,26/09/2023,484.50
Prosperity & Investment,BiT,Premises-Related Expenditure,R&M -Buildings DLO Charge,Security Wise Ltd,21/09/2023,481.00
"Communities, Customer & Commercial Services",Sport & Leisure,Supplies & Services,Provisions,BIKOLD,14/09/2023,480.93
Prosperity & Investment,BiT,Premises-Related Expenditure,Hygiene Services,PHS GROUP,15/09/2023,480.04
"Communities, Customer & Commercial Services",Sport & Leisure,Supplies & Services,Provisions,BIKOLD,14/09/2023,477.85
Prosperity & Investment,BiT,Supplies & Services,Security Services,BUSINESS WATCH GUARDING LIMITED,06/09/2023,477.84
"Communities, Customer & Commercial Services",Sport & Leisure,Supplies & Services,Provisions,BIKOLD,21/09/2023,477.83
Neighbourhood & Enforcement Services,Strategic Transport & Highway Network Management,Transport-Related Expenditure,Outside Hire,DAYS RENTAL,15/09/2023,477.30
Prosperity & Investment,Regeneration & Investment,Premises-Related Expenditure,R&M -Building Other,ARJO UK LTD,25/09/2023,476.00
"Communities, Customer & Commercial Services",ICT,Capital Expenditure,Payments to Contractor,DSP-Explorer,01/09/2023,475.00
Prosperity & Investment,BiT,Premises-Related Expenditure,Service Contracts,E Solutions Ltd,21/09/2023,475.00
Prosperity & Investment,BiT,Premises-Related Expenditure,Leasehold Rents,RECURRING PAYMENTS ONLY - MARTOL HOLDINGS,20/09/2023,475.00
Prosperity & Investment,BiT,Premises-Related Expenditure,Leasehold Rents,RECURRING PAYMENTS ONLY - MARTOL HOLDINGS,20/09/2023,475.00
Prosperity & Investment,BiT,Premises-Related Expenditure,Leasehold Rents,RECURRING PAYMENTS ONLY - MARTOL HOLDINGS,20/09/2023,475.00
Prosperity & Investment,BiT,Premises-Related Expenditure,Leasehold Rents,RECURRING PAYMENTS ONLY - MARTOL HOLDINGS,20/09/2023,475.00
Prosperity & Investment,BiT,Premises-Related Expenditure,Leasehold Rents,RECURRING PAYMENTS ONLY - MARTOL HOLDINGS,20/09/2023,475.00
Neighbourhood & Enforcement Services,Safer & Stronger Communities,Capital Expenditure,Other Capital Expenditure,Telford Minster,23/09/2023,475.00
"Communities, Customer & Commercial Services",Sport & Leisure,Supplies & Services,Provisions,BIKOLD,14/09/2023,472.74
Prosperity & Investment,BiT,Premises-Related Expenditure,R&M -Buildings DLO Charge,ARJO UK LTD,27/09/2023,468.27
Prosperity & Investment,BiT,Premises-Related Expenditure,Service Contracts,JCE & SONS LTD,26/09/2023,468.00
"Communities, Customer & Commercial Services",Sport & Leisure,Supplies & Services,Provisions,BIKOLD,28/09/2023,467.82
"Communities, Customer & Commercial Services",Sport & Leisure,Supplies & Services,Provisions,BIKOLD,08/09/2023,467.14
Education & Skills,Pupil Support Services,Supplies & Services,Equipment - Purchase,N MUSICAL INSTRUMENTS,21/09/2023,466.60
"Communities, Customer & Commercial Services",Sport & Leisure,Supplies & Services,Provisions,BIKOLD,28/09/2023,465.05
Neighbourhood & Enforcement Services,"Highways, Engineering & Project Delivery",Supplies & Services,Other Services,GROUND INVESTIGATION & PILING LTD,07/09/2023,465.00
"Communities, Customer & Commercial Services",Sport & Leisure,Supplies & Services,Provisions,BIKOLD,08/09/2023,461.59
Prosperity & Investment,Regeneration & Investment,Premises-Related Expenditure,Service Contracts,APT SKIDATA LTD,25/09/2023,461.00
"Communities, Customer & Commercial Services",Sport & Leisure,Supplies & Services,Provisions,BIKOLD,14/09/2023,460.92
Education & Skills,SEND (0-25),Third Party Payments,DSG - High Needs Block,HRP Education,22/09/2023,460.00
"Communities, Customer & Commercial Services",Customer Relationships & Welfare Services,Transfer Payments,Crisis Assistance Awards,PayPoint Network Limited,22/09/2023,460.00
Prosperity & Investment,BiT,Premises-Related Expenditure,R&M -Buildings DLO Charge,JCE & SONS LTD,04/09/2023,457.72
Prosperity & Investment,BiT,Supplies & Services,Security Services,BUSINESS WATCH GUARDING LIMITED,04/09/2023,456.12
"Communities, Customer & Commercial Services",Sport & Leisure,Supplies & Services,Provisions,BIKOLD,21/09/2023,456.12
"Communities, Customer & Commercial Services",Sport & Leisure,Supplies & Services,Provisions,BIKOLD,08/09/2023,456.03
Prosperity & Investment,BiT,Premises-Related Expenditure,R&M -Buildings DLO Charge,COOL SERVICES LTD,26/09/2023,454.58
Neighbourhood & Enforcement Services,"Highways, Engineering & Project Delivery",Premises-Related Expenditure,Electricity,West Mercia Energy (WME),20/09/2023,454.57
"Communities, Customer & Commercial Services",Sport & Leisure,Supplies & Services,Provisions,BIKOLD,14/09/2023,453.81
"Communities, Customer & Commercial Services",Sport & Leisure,Supplies & Services,Provisions,BIKOLD,14/09/2023,453.40
Prosperity & Investment,BiT,Premises-Related Expenditure,Service Contracts,T CONSULTING,11/09/2023,452.00
"Communities, Customer & Commercial Services",Sport & Leisure,Supplies & Services,Provisions,BIKOLD,08/09/2023,451.27
"Communities, Customer & Commercial Services",Sport & Leisure,Supplies & Services,Provisions,BIKOLD,08/09/2023,450.43
Adult Social Care,My Options,Supplies & Services,Other Travel,REDACTED PERSONAL INFORMATION,20/09/2023,450.00
Prosperity & Investment,BiT,Premises-Related Expenditure,Service Contracts,ARJO UK LTD,04/09/2023,450.00
"Communities, Customer & Commercial Services",Culture & Events,Supplies & Services,Artistes Fees,JACKFIELD BRASS BAND,25/09/2023,450.00
Prosperity & Investment,BiT,Premises-Related Expenditure,Electricity,West Mercia Energy (WME),20/09/2023,448.25
"Communities, Customer & Commercial Services",Sport & Leisure,Supplies & Services,Comp Hardware (Purch / Hire),CCS MEDIA LIMITED,05/09/2023,448.00
"Communities, Customer & Commercial Services",Sport & Leisure,Supplies & Services,Provisions,BIKOLD,21/09/2023,447.04
Neighbourhood & Enforcement Services,Strategic Transport & Highway Network Management,Transport-Related Expenditure,Outside Hire,DAYS RENTAL,15/09/2023,444.23
"Communities, Customer & Commercial Services",Sport & Leisure,Supplies & Services,Provisions,BIKOLD,28/09/2023,444.03
Adult Social Care,Prevention & Independence - Older Adults & Disability,Supplies & Services,Equipment - Repair,STANNAH LIFT SERVICES LTD,20/09/2023,443.00
Education & Skills,SEND (0-25),Transport-Related Expenditure,Taxi Costs,24X7 Ltd,15/09/2023,442.84
Prosperity & Investment,BiT,Premises-Related Expenditure,R&M -Buildings DLO Charge,JCE & SONS LTD,15/09/2023,442.80
"Communities, Customer & Commercial Services",Sport & Leisure,Supplies & Services,Provisions,BIKOLD,08/09/2023,442.49
"Communities, Customer & Commercial Services",Community Services,Supplies & Services,Grants To Voluntary Organis,STIRCHLEY & BROOKSIDE PARISH COUNCIL ,18/09/2023,441.23
"Communities, Customer & Commercial Services",Sport & Leisure,Supplies & Services,Provisions,BIKOLD,08/09/2023,440.63
"Communities, Customer & Commercial Services",Sport & Leisure,Premises-Related Expenditure,Clean Mats & Toilet Requisites,Border Janitorial Supplies Limited,11/09/2023,440.39
"Communities, Customer & Commercial Services",Sport & Leisure,Supplies & Services,Provisions,BIKOLD,28/09/2023,439.46
Prosperity & Investment,Regeneration & Investment,Premises-Related Expenditure,Contract Cleaning,BUSY BEE CLEANING LTD,01/09/2023,437.67
"Communities, Customer & Commercial Services",Sport & Leisure,Supplies & Services,Provisions,BIKOLD,08/09/2023,436.95
"Communities, Customer & Commercial Services",Sport & Leisure,Supplies & Services,Provisions,BIKOLD,28/09/2023,436.36
"Communities, Customer & Commercial Services",Sport & Leisure,Supplies & Services,Provisions,BIKOLD,14/09/2023,436.32
Health & Wellbeing,Health Improvement,Supplies & Services,Equipment - Repair,GRANVILLE CONSTRUCTION & MAINTENANCE LTD,06/09/2023,435.60
"Communities, Customer & Commercial Services",Sport & Leisure,Supplies & Services,Provisions,BIKOLD,14/09/2023,435.14
Prosperity & Investment,Development Management,Supplies & Services,Comp Software (Purch / Hire),JCT CONSULTANCY LIMITED,27/09/2023,435.00
Prosperity & Investment,BiT,Premises-Related Expenditure,Service Contracts,R Maintenance Services Ltd,04/09/2023,435.00
Prosperity & Investment,BiT,Premises-Related Expenditure,Service Contracts,R Maintenance Services Ltd,26/09/2023,435.00
Prosperity & Investment,BiT,Premises-Related Expenditure,Service Contracts,R Maintenance Services Ltd,26/09/2023,435.00
"Communities, Customer & Commercial Services",Sport & Leisure,Supplies & Services,Provisions,BIKOLD,14/09/2023,433.46
"Communities, Customer & Commercial Services",Sport & Leisure,Supplies & Services,Provisions,BIKOLD,08/09/2023,433.17
Neighbourhood & Enforcement Services,Enforcement,Supplies & Services,Security Services,Chipside Ltd,25/09/2023,433.08
Education & Skills,SEND (0-25),Supplies & Services,Health & Safety Expenses,G & S S LTD,04/09/2023,432.00
Adult Social Care,My Options,Premises-Related Expenditure,Hire Of Rooms,Telford Sailability,28/09/2023,432.00
"Communities, Customer & Commercial Services",Sport & Leisure,Supplies & Services,Provisions,BIKOLD,21/09/2023,431.65
Neighbourhood & Enforcement Services,Strategic Transport & Highway Network Management,Transport-Related Expenditure,Outside Hire,FURROWS OF TELFORD,22/09/2023,430.45
Prosperity & Investment,Regeneration & Investment,Premises-Related Expenditure,R&M -Buildings DLO Charge,KN Services Staffordshire Ltd,19/09/2023,430.00
"Communities, Customer & Commercial Services",Sport & Leisure,Supplies & Services,Provisions,BIKOLD,14/09/2023,429.48
"Communities, Customer & Commercial Services",Sport & Leisure,Premises-Related Expenditure,Clean Mats & Toilet Requisites,Border Janitorial Supplies Limited,11/09/2023,428.40
"Communities, Customer & Commercial Services",ICT,Supplies & Services,Comp Software (Purch / Hire),B Computers Plc,21/09/2023,427.72
Prosperity & Investment,BiT,Premises-Related Expenditure,R&M -Buildings DLO Charge,TAYLORS MECHANICAL H & P SERVICES LTD,18/09/2023,427.50
Prosperity & Investment,BiT,Premises-Related Expenditure,R&M -Buildings DLO Charge,T CONSULTING,18/09/2023,427.00
Neighbourhood & Enforcement Services,Strategic Transport & Highway Network Management,Transport-Related Expenditure,Outside Hire,DAYS RENTAL,15/09/2023,423.77
Neighbourhood & Enforcement Services,Strategic Transport & Highway Network Management,Transport-Related Expenditure,Hire Charges from MO,DAYS RENTAL,15/09/2023,423.77
Neighbourhood & Enforcement Services,Strategic Transport & Highway Network Management,Transport-Related Expenditure,Outside Hire,DAYS RENTAL,15/09/2023,423.77
Prosperity & Investment,BiT,Premises-Related Expenditure,Electricity,BRITISH GAS BUSINESS,05/09/2023,423.76
"Communities, Customer & Commercial Services",Sport & Leisure,Supplies & Services,Provisions,BIKOLD,21/09/2023,423.72
Prosperity & Investment,BiT,Premises-Related Expenditure,Electricity,BRITISH GAS BUSINESS,19/09/2023,423.12
Prosperity & Investment,Regeneration & Investment,Premises-Related Expenditure,Contract Cleaning,PRINCIPAL HYGIENE SYSTEMS,25/09/2023,423.05
Prosperity & Investment,BiT,Premises-Related Expenditure,R&M -Buildings DLO Charge,JOHNSON CONTROLS LTD,04/09/2023,420.96
Neighbourhood & Enforcement Services,"Highways, Engineering & Project Delivery",Capital Expenditure,Payments to Contractor,SWARCO UK & IRELAND LTD,18/09/2023,420.62
Prosperity & Investment,BiT,Premises-Related Expenditure,Service Contracts,COOL SERVICES LTD,26/09/2023,420.00
Prosperity & Investment,BiT,Premises-Related Expenditure,R&M -Buildings DLO Charge,JCE & SONS LTD,04/09/2023,420.00
Finance & Human Resources,Revenues,Supplies & Services,Printing - Other,Prontaprint - Stratford,04/09/2023,420.00
Prosperity & Investment,BiT,Premises-Related Expenditure,Electricity,BRITISH GAS BUSINESS,05/09/2023,419.07
"Communities, Customer & Commercial Services",Sport & Leisure,Supplies & Services,Provisions,BIKOLD,28/09/2023,417.69
Neighbourhood & Enforcement Services,"Highways, Engineering & Project Delivery",Capital Expenditure,Payments to Contractor,SWARCO UK & IRELAND LTD,18/09/2023,416.81
Prosperity & Investment,BiT,Premises-Related Expenditure,R&M -Building Other,GRANVILLE CONSTRUCTION & MAINTENANCE LTD,13/09/2023,416.67
"Communities, Customer & Commercial Services",Sport & Leisure,Supplies & Services,Provisions,BIKOLD,21/09/2023,416.16
Prosperity & Investment,BiT,Premises-Related Expenditure,Electricity,West Mercia Energy (WME),20/09/2023,416.02
"Communities, Customer & Commercial Services",Sport & Leisure,Supplies & Services,Provisions,BIKOLD,28/09/2023,414.73
Prosperity & Investment,BiT,Premises-Related Expenditure,Service Contracts,COOL SERVICES LTD,26/09/2023,414.71
"Communities, Customer & Commercial Services",Sport & Leisure,Supplies & Services,Provisions,BIKOLD,28/09/2023,413.89
"Communities, Customer & Commercial Services",Sport & Leisure,Supplies & Services,Provisions,PASTA KING LIMITED,20/09/2023,413.16
"Communities, Customer & Commercial Services",Sport & Leisure,Supplies & Services,Provisions,BIKOLD,28/09/2023,412.23
Prosperity & Investment,BiT,Premises-Related Expenditure,R&M -Buildings DLO Charge,Security Wise Ltd,15/09/2023,411.00
"Communities, Customer & Commercial Services",Sport & Leisure,Supplies & Services,Provisions,BIKOLD,21/09/2023,410.20
Children�s Safeguarding & Family Support,"Family Placements, Children in Care, Leaving Care & Emergency Duty Team",Supplies & Services,Equipment - Repair,STANNAH LIFT SERVICES LTD,26/09/2023,409.25
"Communities, Customer & Commercial Services",Sport & Leisure,Supplies & Services,Provisions,BIKOLD,28/09/2023,408.63
"Communities, Customer & Commercial Services",Sport & Leisure,Supplies & Services,Provisions,BIKOLD,21/09/2023,408.60
"Communities, Customer & Commercial Services",Sport & Leisure,Supplies & Services,Provisions,BIKOLD,08/09/2023,408.45
"Communities, Customer & Commercial Services",Sport & Leisure,Supplies & Services,Provisions,BIKOLD,14/09/2023,408.16
"Communities, Customer & Commercial Services",Sport & Leisure,Supplies & Services,Equipment - Purchase,RLSS UK Enterprises Ltd,27/09/2023,408.00
"Communities, Customer & Commercial Services",Sport & Leisure,Supplies & Services,Provisions,BIKOLD,14/09/2023,407.47
Neighbourhood & Enforcement Services,"Highways, Engineering & Project Delivery",Capital Expenditure,Marketing / Advertising,THE MIDLAND NEWS ASSOCIATION LTD,05/09/2023,406.48
Prosperity & Investment,Development Management,Supplies & Services,Advertising,THE MIDLAND NEWS ASSOCIATION LTD,21/09/2023,406.48
"Communities, Customer & Commercial Services",Sport & Leisure,Premises-Related Expenditure,Clean Mats & Toilet Requisites,Border Janitorial Supplies Limited,22/09/2023,406.29
"Communities, Customer & Commercial Services",Sport & Leisure,Supplies & Services,Provisions,BIKOLD,14/09/2023,405.85
"Communities, Customer & Commercial Services",Sport & Leisure,Supplies & Services,Provisions,BIKOLD,08/09/2023,405.75
"Communities, Customer & Commercial Services",Sport & Leisure,Supplies & Services,Provisions,BIKOLD,08/09/2023,405.01
"Communities, Customer & Commercial Services",Sport & Leisure,Supplies & Services,Provisions,BIKOLD,08/09/2023,404.96
"Communities, Customer & Commercial Services",Sport & Leisure,Supplies & Services,Provisions,BIKOLD,28/09/2023,404.39
"Communities, Customer & Commercial Services",Sport & Leisure,Supplies & Services,Provisions,BIKOLD,14/09/2023,402.76
Prosperity & Investment,BiT,Premises-Related Expenditure,R&M -Buildings DLO Charge,COOL SERVICES LTD,04/09/2023,400.87
"Communities, Customer & Commercial Services",Sport & Leisure,Supplies & Services,Provisions,BIKOLD,14/09/2023,400.67
"Communities, Customer & Commercial Services",Sport & Leisure,Supplies & Services,Provisions,Handmade Speciality Products Ltd,26/09/2023,400.38
Prosperity & Investment,BiT,Premises-Related Expenditure,Service Contracts,Ductbusters Ltd,04/09/2023,400.00
Prosperity & Investment,BiT,Premises-Related Expenditure,R&M -Buildings DLO Charge,Ductbusters Ltd,26/09/2023,400.00
Prosperity & Investment,BiT,Premises-Related Expenditure,Service Contracts,Ductbusters Ltd,26/09/2023,400.00
Neighbourhood & Enforcement Services,Neighbourhood & Environmental Services,Premises-Related Expenditure,Grounds Maintenance - Other,H RIVER MAINTENANCE,20/09/2023,400.00
"Communities, Customer & Commercial Services",Culture & Events,Supplies & Services,Artistes Fees,R F PHOTOGRAPHY,12/09/2023,400.00
Prosperity & Investment,BiT,Premises-Related Expenditure,Electricity,BRITISH GAS BUSINESS,05/09/2023,399.92
"Communities, Customer & Commercial Services",Sport & Leisure,Supplies & Services,Provisions,BIKOLD,08/09/2023,399.74
"Communities, Customer & Commercial Services",Sport & Leisure,Supplies & Services,Provisions,BIKOLD,28/09/2023,399.71
"Communities, Customer & Commercial Services",Sport & Leisure,Supplies & Services,Provisions,BIKOLD,01/09/2023,398.26
"Communities, Customer & Commercial Services",Sport & Leisure,Supplies & Services,Provisions,BIKOLD,08/09/2023,398.06
"Communities, Customer & Commercial Services",Sport & Leisure,Supplies & Services,Provisions,BIKOLD,28/09/2023,397.66
"Communities, Customer & Commercial Services",Culture & Events,Supplies & Services,Artistes Fees,Ticketplan Limited,08/09/2023,395.08
Neighbourhood & Enforcement Services,Safer & Stronger Communities,Capital Expenditure,Other Capital Expenditure,REDACTED PERSONAL INFORMATION,23/09/2023,395.00
Policy & Governance,Organisational Development & Delivery,Employees,Staff Training,The Tavistock and Portman NHS Foundation Trust,13/09/2023,395.00
"Communities, Customer & Commercial Services",Sport & Leisure,Supplies & Services,Provisions,BIKOLD,28/09/2023,394.08
Prosperity & Investment,BiT,Premises-Related Expenditure,Hygiene Services,PHS GROUP,04/09/2023,392.83
"Communities, Customer & Commercial Services",Sport & Leisure,Supplies & Services,Provisions,BIKOLD,14/09/2023,392.09
"Communities, Customer & Commercial Services",Sport & Leisure,Supplies & Services,Provisions,BIKOLD,21/09/2023,392.07
"Communities, Customer & Commercial Services",Culture & Events,Supplies & Services,Equipment - Hire,Stage and Studios Services Limited,25/09/2023,392.00
Education & Skills,Education & Skills,Capital Expenditure,Payments to Contractor,BUSINESS WATCH GUARDING LIMITED,21/09/2023,391.00
"Communities, Customer & Commercial Services",Sport & Leisure,Supplies & Services,Provisions,BIKOLD,21/09/2023,390.45
"Communities, Customer & Commercial Services",Sport & Leisure,Supplies & Services,Provisions,BIKOLD,21/09/2023,390.39
"Communities, Customer & Commercial Services",Sport & Leisure,Supplies & Services,Provisions,BIKOLD,21/09/2023,390.16
Prosperity & Investment,BiT,Premises-Related Expenditure,R&M -Buildings DLO Charge,HYDRO-TECH ENVIRONMENTAL LLP,04/09/2023,390.00
Prosperity & Investment,BiT,Premises-Related Expenditure,R&M -Buildings DLO Charge,HYDRO-TECH ENVIRONMENTAL LLP,06/09/2023,390.00
Education & Skills,Education & Skills,Capital Expenditure,Legal Fees,W H SOLICITORS,18/09/2023,390.00
"Communities, Customer & Commercial Services",Sport & Leisure,Supplies & Services,Provisions,On A Roll,19/09/2023,389.85
"Communities, Customer & Commercial Services",Sport & Leisure,Supplies & Services,Provisions,BIKOLD,21/09/2023,389.71
"Communities, Customer & Commercial Services",Sport & Leisure,Supplies & Services,Provisions,BIKOLD,28/09/2023,389.10
"Communities, Customer & Commercial Services",Sport & Leisure,Supplies & Services,Provisions,BIKOLD,08/09/2023,385.93
Neighbourhood & Enforcement Services,Strategic Transport & Highway Network Management,Transport-Related Expenditure,Outside Hire,Enterprise Flexi Rent,15/09/2023,385.83
Prosperity & Investment,Regeneration & Investment,Premises-Related Expenditure,Gas,NPOWER GAS,18/09/2023,385.77
"Communities, Customer & Commercial Services",Sport & Leisure,Supplies & Services,Provisions,BIKOLD,08/09/2023,385.51
Prosperity & Investment,BiT,Premises-Related Expenditure,R&M -Buildings DLO Charge,E Solutions Ltd,20/09/2023,385.00
Prosperity & Investment,BiT,Premises-Related Expenditure,R&M -Buildings DLO Charge,Security Wise Ltd,15/09/2023,383.00
"Communities, Customer & Commercial Services",Sport & Leisure,Supplies & Services,Provisions,BIKOLD,08/09/2023,382.02
"Communities, Customer & Commercial Services",Sport & Leisure,Premises-Related Expenditure,Clean Mats & Toilet Requisites,Border Janitorial Supplies Limited,19/09/2023,381.55
Prosperity & Investment,Regeneration & Investment,Premises-Related Expenditure,Electricity,West Mercia Energy (WME),20/09/2023,381.27
Prosperity & Investment,Regeneration & Investment,Premises-Related Expenditure,R&M -Building Other,TAYLORS MECHANICAL H & P SERVICES LTD,27/09/2023,380.54
Prosperity & Investment,BiT,Premises-Related Expenditure,Service Contracts,COOL SERVICES LTD,26/09/2023,380.19
Prosperity & Investment,BiT,Premises-Related Expenditure,R&M -Buildings DLO Charge,HYDRO-TECH ENVIRONMENTAL LLP,18/09/2023,380.00
Prosperity & Investment,BiT,Premises-Related Expenditure,Service Contracts,HYDRO-TECH ENVIRONMENTAL LLP,04/09/2023,380.00
Prosperity & Investment,BiT,Premises-Related Expenditure,Service Contracts,Security Wise Ltd,15/09/2023,380.00
"Communities, Customer & Commercial Services",Sport & Leisure,Supplies & Services,Provisions,BIKOLD,21/09/2023,379.77
Prosperity & Investment,Regeneration & Investment,Premises-Related Expenditure,Contract Cleaning,BUSY BEE CLEANING LTD,01/09/2023,379.74
"Communities, Customer & Commercial Services",Sport & Leisure,Supplies & Services,Crockery/Hardware/Light Equip,PLANGLOW LTD,28/09/2023,379.67
"Communities, Customer & Commercial Services",Culture & Events,Supplies & Services,Wet Resale Provision,MOLSON COORS BREWING COMPANY UK LTD,26/09/2023,378.81
Finance & Human Resources,Revenues,Supplies & Services,Postages,FREELANCE BUSINESS ASSOCIATES,04/09/2023,378.00
Finance & Human Resources,Revenues,Supplies & Services,Postages,FREELANCE BUSINESS ASSOCIATES,27/09/2023,378.00
Finance & Human Resources,Revenues,Supplies & Services,Postages,FREELANCE BUSINESS ASSOCIATES,27/09/2023,378.00
Finance & Human Resources,Revenues,Supplies & Services,Postages,FREELANCE BUSINESS ASSOCIATES,04/09/2023,378.00
Prosperity & Investment,BiT,Premises-Related Expenditure,R&M -Buildings DLO Charge,Security Wise Ltd,18/09/2023,378.00
"Communities, Customer & Commercial Services",Sport & Leisure,Supplies & Services,Provisions,BIKOLD,28/09/2023,375.76
Prosperity & Investment,BiT,Premises-Related Expenditure,Hygiene Services,PHS GROUP,15/09/2023,375.65
Prosperity & Investment,BiT,Premises-Related Expenditure,Electricity,West Mercia Energy (WME),20/09/2023,375.58
Prosperity & Investment,BiT,Premises-Related Expenditure,Electricity,West Mercia Energy (WME),20/09/2023,375.58
Prosperity & Investment,BiT,Premises-Related Expenditure,Electricity,West Mercia Energy (WME),20/09/2023,375.58
Prosperity & Investment,BiT,Premises-Related Expenditure,R&M -Buildings DLO Charge,Belvidere Lifts Ltd,26/09/2023,375.00
Adult Social Care,Prevention & Independence - Older Adults & Disability,Supplies & Services,Aids & Appliances,Direct Healthcare Group Limited,28/09/2023,375.00
Prosperity & Investment,BiT,Premises-Related Expenditure,R&M -Buildings DLO Charge,Pumpforce Ltd,04/09/2023,375.00
Prosperity & Investment,BiT,Premises-Related Expenditure,R&M -Buildings DLO Charge,Pumpforce Ltd,04/09/2023,375.00
Prosperity & Investment,BiT,Premises-Related Expenditure,R&M -Buildings DLO Charge,Pumpforce Ltd,13/09/2023,375.00
Prosperity & Investment,Regeneration & Investment,Supplies & Services,Telephones,VIRGIN MEDIA BUSINESS LTD,15/09/2023,374.63
"Communities, Customer & Commercial Services",Sport & Leisure,Supplies & Services,Provisions,BIKOLD,14/09/2023,373.63
"Communities, Customer & Commercial Services",Sport & Leisure,Supplies & Services,Provisions,BIKOLD,21/09/2023,372.81
Prosperity & Investment,BiT,Premises-Related Expenditure,R&M -Buildings DLO Charge,TAYLORS MECHANICAL H & P SERVICES LTD,20/09/2023,371.45
Adult Social Care,Community Social Work (Principal Social Worker),Supplies & Services,Legal Expenses,WEIGHTMANS,28/09/2023,371.00
"Communities, Customer & Commercial Services",Sport & Leisure,Supplies & Services,Crockery/Hardware/Light Equip,Border Janitorial Supplies Limited,11/09/2023,369.21
"Communities, Customer & Commercial Services",Sport & Leisure,Supplies & Services,Provisions,BIKOLD,28/09/2023,368.14
"Communities, Customer & Commercial Services",Sport & Leisure,Supplies & Services,Equipment - Purchase,RLSS UK Enterprises Ltd,27/09/2023,365.50
Neighbourhood & Enforcement Services,Enforcement,Premises-Related Expenditure,Sewage Charges,WATER PLUS FORMERLY SEVERN TRENT WATER LTD,11/09/2023,365.37
"Communities, Customer & Commercial Services",Sport & Leisure,Supplies & Services,Sub Contractors,Midland Playscape,26/09/2023,365.00
"Communities, Customer & Commercial Services",Sport & Leisure,Supplies & Services,Provisions,BIKOLD,08/09/2023,364.36
"Communities, Customer & Commercial Services",Sport & Leisure,Supplies & Services,Provisions,BIKOLD,28/09/2023,363.80
Prosperity & Investment,BiT,Capital Expenditure,Computer Software,CCS MEDIA LIMITED,06/09/2023,363.55
Prosperity & Investment,BiT,Premises-Related Expenditure,Electricity,West Mercia Energy (WME),20/09/2023,363.44
"Communities, Customer & Commercial Services",Sport & Leisure,Supplies & Services,Provisions,BIKOLD,14/09/2023,362.58
Prosperity & Investment,BiT,Premises-Related Expenditure,R&M -Buildings DLO Charge,JAK WATER SYSTEMS LTD,21/09/2023,362.50
"Communities, Customer & Commercial Services",Sport & Leisure,Supplies & Services,Provisions,BIKOLD,14/09/2023,362.47
"Communities, Customer & Commercial Services",Sport & Leisure,Supplies & Services,Provisions,BIKOLD,08/09/2023,361.73
"Communities, Customer & Commercial Services",ICT,Supplies & Services,Comp Hardware (Purch / Hire),CCS MEDIA LIMITED,29/09/2023,360.66
"Communities, Customer & Commercial Services",Sport & Leisure,Supplies & Services,Provisions,BIKOLD,08/09/2023,360.58
"Communities, Customer & Commercial Services",ICT,Supplies & Services,Telephones,Ghekko LTD,29/09/2023,360.00
"Communities, Customer & Commercial Services",Culture & Events,Supplies & Services,First Aid,MW MEDICS LTD,07/09/2023,360.00
"Communities, Customer & Commercial Services",Sport & Leisure,Premises-Related Expenditure,Clean Mats & Toilet Requisites,Border Janitorial Supplies Limited,07/09/2023,359.63
"Communities, Customer & Commercial Services",Sport & Leisure,Supplies & Services,Provisions,BIKOLD,21/09/2023,359.18
"Communities, Customer & Commercial Services",Sport & Leisure,Supplies & Services,Provisions,BIKOLD,08/09/2023,358.64
Prosperity & Investment,BiT,Premises-Related Expenditure,Service Contracts,COOL SERVICES LTD,04/09/2023,358.00
"Communities, Customer & Commercial Services",Sport & Leisure,Supplies & Services,Provisions,BIKOLD,14/09/2023,357.61
"Communities, Customer & Commercial Services",Sport & Leisure,Supplies & Services,Provisions,BIKOLD,21/09/2023,356.93
Prosperity & Investment,BiT,Premises-Related Expenditure,Service Contracts,Adexsi UK Ltd,21/09/2023,355.90
"Communities, Customer & Commercial Services",Sport & Leisure,Supplies & Services,Provisions,BIKOLD,28/09/2023,355.78
Prosperity & Investment,BiT,Premises-Related Expenditure,Electricity,West Mercia Energy (WME),20/09/2023,354.77
"Communities, Customer & Commercial Services",Sport & Leisure,Supplies & Services,Provisions,On A Roll,13/09/2023,354.55
Neighbourhood & Enforcement Services,Safer & Stronger Communities,Premises-Related Expenditure,R&M -Buildings DLO Charge,WB Building Services Limited,06/09/2023,353.90
"Communities, Customer & Commercial Services",Sport & Leisure,Supplies & Services,Provisions,BIKOLD,14/09/2023,352.67
Adult Social Care,My Options,Premises-Related Expenditure,Clean Mats & Toilet Requisites,B CARE EQUIPMENT LTD,12/09/2023,352.20
"Communities, Customer & Commercial Services",Sport & Leisure,Supplies & Services,Provisions,BIKOLD,21/09/2023,351.91
Prosperity & Investment,BiT,Premises-Related Expenditure,Electricity,West Mercia Energy (WME),20/09/2023,351.85
Prosperity & Investment,BiT,Premises-Related Expenditure,R&M -Buildings DLO Charge,WB Building Services Limited,15/09/2023,350.47
"Communities, Customer & Commercial Services",Sport & Leisure,Supplies & Services,Provisions,BIKOLD,21/09/2023,350.42
Prosperity & Investment,BiT,Premises-Related Expenditure,R&M -Buildings DLO Charge,REDACTED PERSONAL INFORMATION,26/09/2023,350.00
Prosperity & Investment,Development Management,Capital Expenditure,Payments to Contractor,AJB CONTRACTING LTD,28/09/2023,350.00
Finance & Human Resources,Revenues,Supplies & Services,Other Expenses,CAPS,19/09/2023,350.00
Policy & Governance,Governance & Legal Services,Premises-Related Expenditure,Hire Of Rooms,Ellerdine Village Hall,12/09/2023,350.00
Policy & Governance,Governance & Legal Services,Premises-Related Expenditure,Hire Of Rooms,HIGH ERCALL VILLAGE HALL,12/09/2023,350.00
Prosperity & Investment,BiT,Premises-Related Expenditure,R&M -Buildings DLO Charge,JCE & SONS LTD,26/09/2023,350.00
"Communities, Customer & Commercial Services",Culture & Events,Supplies & Services,Wet Resale Provision,MOLSON COORS BREWING COMPANY UK LTD,01/09/2023,349.11
"Communities, Customer & Commercial Services",Culture & Events,Supplies & Services,Wet Resale Provision,MOLSON COORS BREWING COMPANY UK LTD,26/09/2023,349.11
"Communities, Customer & Commercial Services",Sport & Leisure,Supplies & Services,Provisions,BIKOLD,08/09/2023,348.94
Prosperity & Investment,Regeneration & Investment,Premises-Related Expenditure,Electricity,West Mercia Energy (WME),20/09/2023,348.51
Neighbourhood & Enforcement Services,"Highways, Engineering & Project Delivery",Capital Expenditure,Marketing / Advertising,THE MIDLAND NEWS ASSOCIATION LTD,28/09/2023,348.41
"Communities, Customer & Commercial Services",Sport & Leisure,Supplies & Services,Provisions,BIKOLD,21/09/2023,348.12
Health & Wellbeing,Health Improvement,Supplies & Services,Libraries Book Fund,A & H Library Services Ltd,01/09/2023,347.38
"Communities, Customer & Commercial Services",Sport & Leisure,Supplies & Services,Provisions,BIKOLD,14/09/2023,347.33
"Communities, Customer & Commercial Services",Sport & Leisure,Supplies & Services,Provisions,BIKOLD,28/09/2023,347.31
"Communities, Customer & Commercial Services",Sport & Leisure,Supplies & Services,Provisions,BIKOLD,14/09/2023,347.29
Prosperity & Investment,BiT,Premises-Related Expenditure,R&M -Buildings DLO Charge,GAS ALARM SYSTEMS LTD,27/09/2023,347.00
Prosperity & Investment,Regeneration & Investment,Premises-Related Expenditure,Electricity,West Mercia Energy (WME),14/09/2023,346.94
Prosperity & Investment,BiT,Premises-Related Expenditure,Electricity,West Mercia Energy (WME),20/09/2023,345.32
Prosperity & Investment,BiT,Premises-Related Expenditure,R&M -Buildings DLO Charge,JCE & SONS LTD,18/09/2023,345.00
Prosperity & Investment,BiT,Premises-Related Expenditure,R&M -Buildings DLO Charge,TAYLORS MECHANICAL H & P SERVICES LTD,20/09/2023,345.00
"Communities, Customer & Commercial Services",Sport & Leisure,Supplies & Services,Provisions,TROPICAL ICE,25/09/2023,344.50
"Communities, Customer & Commercial Services",Sport & Leisure,Supplies & Services,Provisions,BIKOLD,08/09/2023,343.51
"Communities, Customer & Commercial Services",Sport & Leisure,Supplies & Services,Provisions,BIKOLD,14/09/2023,343.26
"Communities, Customer & Commercial Services",Sport & Leisure,Supplies & Services,Provisions,BIKOLD,14/09/2023,343.03
Prosperity & Investment,BiT,Premises-Related Expenditure,Trade Refuse,FCC Recycling Ltd ,06/09/2023,342.68
"Communities, Customer & Commercial Services",Sport & Leisure,Supplies & Services,Other Materials,PUMP & PLANT SERVICES LTD,13/09/2023,342.00
"Communities, Customer & Commercial Services",Sport & Leisure,Supplies & Services,Provisions,Handmade Speciality Products Ltd,13/09/2023,341.48
"Communities, Customer & Commercial Services",Sport & Leisure,Supplies & Services,Provisions,BIKOLD,01/09/2023,341.10
Prosperity & Investment,Regeneration & Investment,Premises-Related Expenditure,Contract Cleaning,BUSY BEE CLEANING LTD,01/09/2023,340.80
Prosperity & Investment,BiT,Premises-Related Expenditure,R&M -Buildings DLO Charge,A1 Glass & Glazing Limited,04/09/2023,340.00
Prosperity & Investment,BiT,Premises-Related Expenditure,R&M -Buildings DLO Charge,T CONSULTING,18/09/2023,340.00
Prosperity & Investment,Regeneration & Investment,Premises-Related Expenditure,R&M -Building Other,WREKIN DRAIN SERVICES LTD,25/09/2023,340.00
Prosperity & Investment,BiT,Premises-Related Expenditure,Electricity,West Mercia Energy (WME),20/09/2023,339.69
"Communities, Customer & Commercial Services",Sport & Leisure,Supplies & Services,Provisions,BIKOLD,08/09/2023,339.50
"Communities, Customer & Commercial Services",Sport & Leisure,Supplies & Services,Provisions,BIKOLD,21/09/2023,338.61
"Communities, Customer & Commercial Services",Sport & Leisure,Supplies & Services,Provisions,BIKOLD,28/09/2023,338.50
Prosperity & Investment,Regeneration & Investment,Premises-Related Expenditure,Contract Cleaning,PHS GROUP,19/09/2023,338.00
"Communities, Customer & Commercial Services",Sport & Leisure,Supplies & Services,Provisions,T FOOD SERVICE LTD,19/09/2023,337.73
"Communities, Customer & Commercial Services",Sport & Leisure,Supplies & Services,Provisions,BIKOLD,28/09/2023,336.19
Prosperity & Investment,BiT,Premises-Related Expenditure,R&M -Buildings DLO Charge,WB Building Services Limited,15/09/2023,336.00
Prosperity & Investment,Regeneration & Investment,Premises-Related Expenditure,R&M -Building Other,FCC Recycling Ltd ,14/09/2023,335.40
Prosperity & Investment,BiT,Premises-Related Expenditure,R&M -Buildings DLO Charge,TAYLORS MECHANICAL H & P SERVICES LTD,20/09/2023,334.87
"Communities, Customer & Commercial Services",Sport & Leisure,Supplies & Services,Provisions,BIKOLD,28/09/2023,334.28
Finance & Human Resources,Revenues,Supplies & Services,Stationery,PREMIER PAPER GROUP LTD,01/09/2023,332.72
Policy & Governance,Governance & Legal Services,Supplies & Services,Postages,ROYAL MAIL GROUP PLC,05/09/2023,332.57
Prosperity & Investment,BiT,Premises-Related Expenditure,R&M -Buildings DLO Charge,Security Wise Ltd,26/09/2023,331.20
"Communities, Customer & Commercial Services",Sport & Leisure,Supplies & Services,Provisions,R & COMPANY,18/09/2023,330.53
"Communities, Customer & Commercial Services",Sport & Leisure,Supplies & Services,Provisions,BIKOLD,14/09/2023,330.44
"Communities, Customer & Commercial Services",Sport & Leisure,Supplies & Services,Provisions,R & COMPANY,18/09/2023,330.44
Prosperity & Investment,Regeneration & Investment,Premises-Related Expenditure,Water Rates,WATER PLUS FORMERLY SEVERN TRENT WATER LTD,06/09/2023,330.44
"Communities, Customer & Commercial Services",Sport & Leisure,Supplies & Services,Provisions,R & COMPANY,11/09/2023,330.37
Prosperity & Investment,Regeneration & Investment,Capital Expenditure,Marketing / Advertising,Austin Mix Ltd,14/09/2023,330.00
Prosperity & Investment,BiT,Premises-Related Expenditure,R&M -Buildings DLO Charge,PROKILL UK LIMITED,06/09/2023,330.00
"Communities, Customer & Commercial Services",Sport & Leisure,Supplies & Services,Provisions,BIKOLD,08/09/2023,329.55
"Communities, Customer & Commercial Services",Sport & Leisure,Supplies & Services,Provisions,BIKOLD,08/09/2023,329.38
"Communities, Customer & Commercial Services",Sport & Leisure,Supplies & Services,Provisions,BIKOLD,28/09/2023,329.27
Prosperity & Investment,BiT,Premises-Related Expenditure,R&M -Buildings DLO Charge,WB Building Services Limited,15/09/2023,328.93
"Communities, Customer & Commercial Services",Sport & Leisure,Supplies & Services,Provisions,BIKOLD,21/09/2023,328.00
Health & Wellbeing,Health Improvement,Supplies & Services,Libraries Book Fund,ULVERSCROFT LARGE PRINT BOOKS LIMITED,29/09/2023,327.73
"Communities, Customer & Commercial Services",Sport & Leisure,Supplies & Services,Provisions,BIKOLD,21/09/2023,327.68
"Communities, Customer & Commercial Services",Culture & Events,Supplies & Services,Furniture - Repair,JCE & SONS LTD,12/09/2023,327.50
"Communities, Customer & Commercial Services",Sport & Leisure,Supplies & Services,Provisions,BIKOLD,28/09/2023,326.47
"Communities, Customer & Commercial Services",Culture & Events,Supplies & Services,Protective Clothing,MYWORKWEAR,20/09/2023,325.51
Prosperity & Investment,BiT,Premises-Related Expenditure,Service Contracts,Security Wise Ltd,21/09/2023,325.00
Prosperity & Investment,BiT,Premises-Related Expenditure,R&M -Buildings DLO Charge,JCE & SONS LTD,25/09/2023,324.28
"Communities, Customer & Commercial Services",Sport & Leisure,Supplies & Services,Provisions,BIKOLD,01/09/2023,324.00
Prosperity & Investment,BiT,Premises-Related Expenditure,R&M -Buildings DLO Charge,GRANVILLE CONSTRUCTION & MAINTENANCE LTD,21/09/2023,323.83
Neighbourhood & Enforcement Services,"Highways, Engineering & Project Delivery",Premises-Related Expenditure,Lift Maintenance,STANNAH LIFT SERVICES LTD,28/09/2023,323.19
Finance & Human Resources,Revenues,Supplies & Services,Printing - Other,LEXON GB LTD,26/09/2023,322.93
"Communities, Customer & Commercial Services",Sport & Leisure,Premises-Related Expenditure,Clean Mats & Toilet Requisites,Border Janitorial Supplies Limited,13/09/2023,322.59
"Communities, Customer & Commercial Services",Sport & Leisure,Supplies & Services,Provisions,BIKOLD,28/09/2023,322.31
"Communities, Customer & Commercial Services",Sport & Leisure,Supplies & Services,Provisions,BIKOLD,14/09/2023,321.33
Finance & Human Resources,Revenues,Third Party Payments,Private Contractors,R LTD,18/09/2023,321.00
Prosperity & Investment,BiT,Premises-Related Expenditure,Service Contracts,E Solutions Ltd,26/09/2023,320.00
Prosperity & Investment,Regeneration & Investment,Premises-Related Expenditure,Fire Alarms & Emergency Light,E Solutions Ltd,01/09/2023,320.00
Prosperity & Investment,BiT,Capital Expenditure,Payments to Contractor,Pumpforce Ltd,13/09/2023,320.00
"Communities, Customer & Commercial Services",Sport & Leisure,Supplies & Services,Items For Resale,W Workplace Solutions,04/09/2023,320.00
"Communities, Customer & Commercial Services",Sport & Leisure,Supplies & Services,Provisions,BIKOLD,08/09/2023,319.88
"Communities, Customer & Commercial Services",Sport & Leisure,Supplies & Services,Provisions,BIKOLD,08/09/2023,319.39
"Communities, Customer & Commercial Services",Customer Relationships & Welfare Services,Transfer Payments,Crisis Assistance Awards,PayPoint Network Limited,15/09/2023,319.00
"Communities, Customer & Commercial Services",Sport & Leisure,Premises-Related Expenditure,Clean Mats & Toilet Requisites,Border Janitorial Supplies Limited,27/09/2023,318.54
Prosperity & Investment,BiT,Premises-Related Expenditure,Electricity,West Mercia Energy (WME),20/09/2023,318.42
"Communities, Customer & Commercial Services",Sport & Leisure,Supplies & Services,Provisions,BIKOLD,21/09/2023,317.94
Neighbourhood & Enforcement Services,Strategic Transport & Highway Network Management,Transport-Related Expenditure,Outside Hire,Enterprise Flexi Rent,15/09/2023,317.84
Neighbourhood & Enforcement Services,Strategic Transport & Highway Network Management,Transport-Related Expenditure,Outside Hire,Enterprise Flexi Rent,15/09/2023,317.84
Neighbourhood & Enforcement Services,Strategic Transport & Highway Network Management,Transport-Related Expenditure,Outside Hire,Enterprise Flexi Rent,15/09/2023,317.84
Neighbourhood & Enforcement Services,Strategic Transport & Highway Network Management,Transport-Related Expenditure,Outside Hire,Enterprise Flexi Rent,15/09/2023,317.84
Neighbourhood & Enforcement Services,Strategic Transport & Highway Network Management,Transport-Related Expenditure,Outside Hire,Enterprise Flexi Rent,15/09/2023,317.84
Neighbourhood & Enforcement Services,Strategic Transport & Highway Network Management,Transport-Related Expenditure,Outside Hire,Enterprise Flexi Rent,15/09/2023,317.84
"Communities, Customer & Commercial Services",Sport & Leisure,Supplies & Services,Provisions,BIKOLD,21/09/2023,317.76
"Communities, Customer & Commercial Services",Sport & Leisure,Premises-Related Expenditure,Clean Mats & Toilet Requisites,Border Janitorial Supplies Limited,28/09/2023,317.35
Prosperity & Investment,Regeneration & Investment,Premises-Related Expenditure,Water Rates,WATER PLUS FORMERLY SEVERN TRENT WATER LTD,14/09/2023,317.08
Prosperity & Investment,BiT,Premises-Related Expenditure,R&M -Buildings DLO Charge,COOL SERVICES LTD,25/09/2023,316.92
"Communities, Customer & Commercial Services",Sport & Leisure,Supplies & Services,Crockery/Hardware/Light Equip,PLANGLOW LTD,19/09/2023,316.88
"Communities, Customer & Commercial Services",Sport & Leisure,Supplies & Services,Provisions,BIKOLD,08/09/2023,316.73
Prosperity & Investment,Regeneration & Investment,Premises-Related Expenditure,Electricity,West Mercia Energy (WME),20/09/2023,316.00
Prosperity & Investment,BiT,Premises-Related Expenditure,R&M -Buildings DLO Charge,JCE & SONS LTD,27/09/2023,315.82
"Communities, Customer & Commercial Services",Sport & Leisure,Supplies & Services,Provisions,BIKOLD,08/09/2023,315.68
"Communities, Customer & Commercial Services",Sport & Leisure,Supplies & Services,Provisions,BIKOLD,08/09/2023,315.58
Prosperity & Investment,BiT,Premises-Related Expenditure,Hygiene Services,PHS GROUP,04/09/2023,314.79
Prosperity & Investment,BiT,Premises-Related Expenditure,R&M -Buildings DLO Charge,TAYLORS MECHANICAL H & P SERVICES LTD,26/09/2023,314.00
"Communities, Customer & Commercial Services",Sport & Leisure,Supplies & Services,Provisions,BIKOLD,21/09/2023,313.73
Prosperity & Investment,BiT,Premises-Related Expenditure,R&M -Buildings DLO Charge,Security Wise Ltd,26/09/2023,312.80
"Communities, Customer & Commercial Services",Sport & Leisure,Supplies & Services,Provisions,On A Roll,13/09/2023,312.73
Prosperity & Investment,BiT,Premises-Related Expenditure,R&M -Buildings DLO Charge,C & S Carpet & Flooring,18/09/2023,312.42
Prosperity & Investment,BiT,Premises-Related Expenditure,R&M -Buildings DLO Charge,C & S Carpet & Flooring,15/09/2023,311.74
Neighbourhood & Enforcement Services,Strategic Transport & Highway Network Management,Transport-Related Expenditure,Outside Hire,Enterprise Flexi Rent,15/09/2023,310.59
"Communities, Customer & Commercial Services",Sport & Leisure,Supplies & Services,Provisions,BIKOLD,14/09/2023,310.54
Neighbourhood & Enforcement Services,Strategic Transport & Highway Network Management,Transport-Related Expenditure,Outside Hire,DAYS RENTAL,15/09/2023,310.31
Neighbourhood & Enforcement Services,Strategic Transport & Highway Network Management,Transport-Related Expenditure,Outside Hire,DAYS RENTAL,15/09/2023,310.31
Neighbourhood & Enforcement Services,Strategic Transport & Highway Network Management,Transport-Related Expenditure,Outside Hire,DAYS RENTAL,15/09/2023,310.31
Neighbourhood & Enforcement Services,Strategic Transport & Highway Network Management,Transport-Related Expenditure,Outside Hire,DAYS RENTAL,15/09/2023,310.31
Neighbourhood & Enforcement Services,Strategic Transport & Highway Network Management,Transport-Related Expenditure,Outside Hire,DAYS RENTAL,15/09/2023,310.31
Neighbourhood & Enforcement Services,Strategic Transport & Highway Network Management,Transport-Related Expenditure,Outside Hire,DAYS RENTAL,15/09/2023,310.31
Neighbourhood & Enforcement Services,Strategic Transport & Highway Network Management,Transport-Related Expenditure,Outside Hire,DAYS RENTAL,15/09/2023,310.31
Neighbourhood & Enforcement Services,Strategic Transport & Highway Network Management,Transport-Related Expenditure,Outside Hire,DAYS RENTAL,15/09/2023,310.31
Neighbourhood & Enforcement Services,Strategic Transport & Highway Network Management,Transport-Related Expenditure,Outside Hire,DAYS RENTAL,15/09/2023,310.31
"Communities, Customer & Commercial Services",Sport & Leisure,Supplies & Services,Crockery/Hardware/Light Equip,CALTEL CATERING & LAUNDRY EQUIPMENT LLP,21/09/2023,310.05
Policy & Governance,Governance & Legal Services,Supplies & Services,Legal Expenses,A C Solicitors LLP,29/09/2023,310.00
Education & Skills,Pupil Support Services,Supplies & Services,Artistes Fees,Lichfield Cathedral School,27/09/2023,310.00
"Communities, Customer & Commercial Services",Sport & Leisure,Supplies & Services,Provisions,BIKOLD,21/09/2023,309.97
"Communities, Customer & Commercial Services",Sport & Leisure,Supplies & Services,Provisions,BIKOLD,14/09/2023,308.78
"Communities, Customer & Commercial Services",Sport & Leisure,Supplies & Services,Provisions,BIKOLD,28/09/2023,308.39
Prosperity & Investment,BiT,Premises-Related Expenditure,Electricity,Smartestenergy Limited,04/09/2023,308.04
"Communities, Customer & Commercial Services",Sport & Leisure,Supplies & Services,Provisions,BIKOLD,14/09/2023,307.13
Prosperity & Investment,BiT,Premises-Related Expenditure,Electricity,BRITISH GAS BUSINESS,05/09/2023,307.07
"Communities, Customer & Commercial Services",Sport & Leisure,Supplies & Services,Provisions,BIKOLD,14/09/2023,306.04
"Communities, Customer & Commercial Services",Sport & Leisure,Supplies & Services,Provisions,BIKOLD,21/09/2023,305.33
Prosperity & Investment,BiT,Premises-Related Expenditure,Trade Refuse,FCC Recycling Ltd ,06/09/2023,305.24
Prosperity & Investment,BiT,Premises-Related Expenditure,Trade Refuse,FCC Recycling Ltd ,06/09/2023,305.24
Prosperity & Investment,BiT,Premises-Related Expenditure,Service Contracts,HYDRO-TECH ENVIRONMENTAL LLP,04/09/2023,305.00
"Communities, Customer & Commercial Services",Sport & Leisure,Supplies & Services,Provisions,BIKOLD,21/09/2023,304.42
"Communities, Customer & Commercial Services",Sport & Leisure,Supplies & Services,Provisions,BIKOLD,28/09/2023,304.24
Prosperity & Investment,BiT,Supplies & Services,Chemicals/Cleaning Products,PROVAC CLEANING SUPPLIES LTD,19/09/2023,303.92
"Communities, Customer & Commercial Services",Sport & Leisure,Supplies & Services,Provisions,BIKOLD,14/09/2023,302.81
"Communities, Customer & Commercial Services",Sport & Leisure,Supplies & Services,Provisions,BIKOLD,21/09/2023,302.68
"Communities, Customer & Commercial Services",Sport & Leisure,Supplies & Services,Provisions,BIKOLD,28/09/2023,302.39
"Communities, Customer & Commercial Services",Sport & Leisure,Premises-Related Expenditure,Clean Mats & Toilet Requisites,Border Janitorial Supplies Limited,12/09/2023,302.37
"Communities, Customer & Commercial Services",Sport & Leisure,Supplies & Services,Provisions,BIKOLD,28/09/2023,301.41
Prosperity & Investment,BiT,Premises-Related Expenditure,Gas,GAS DIRECT LTD,26/09/2023,300.12
Prosperity & Investment,BiT,Premises-Related Expenditure,Hygiene Services,PHS GROUP,04/09/2023,300.11
Adult Social Care,My Options,Supplies & Services,Equipment - Hire,C WASTE DISPOSAL SERV LTD,20/09/2023,300.00
"Communities, Customer & Commercial Services",Sport & Leisure,Capital Expenditure,Payments to Contractor,Countwise Systems Limited,14/09/2023,300.00
Policy & Governance,Governance & Legal Services,Premises-Related Expenditure,Hire Of Rooms,L T & SON,12/09/2023,300.00
"Communities, Customer & Commercial Services",Sport & Leisure,Supplies & Services,Equipment - Hire,SLIDERS SKATE SHOP,12/09/2023,300.00
Prosperity & Investment,BiT,Premises-Related Expenditure,Service Contracts,TAYLORS MECHANICAL H & P SERVICES LTD,13/09/2023,300.00
Education & Skills,Skills,Premises-Related Expenditure,Hire Of Rooms,Telford Elim Community Church,11/09/2023,300.00
"Communities, Customer & Commercial Services",Sport & Leisure,Supplies & Services,Provisions,On A Roll,13/09/2023,299.95
"Communities, Customer & Commercial Services",Sport & Leisure,Supplies & Services,Provisions,On A Roll,25/09/2023,299.95
"Communities, Customer & Commercial Services",Sport & Leisure,Supplies & Services,Provisions,BIKOLD,28/09/2023,299.69
"Communities, Customer & Commercial Services",Sport & Leisure,Supplies & Services,Provisions,BIKOLD,14/09/2023,299.62
Adult Social Care,My Options,Employees,Agency Supply Costs,Safehands Recruitment,21/09/2023,299.50
"Communities, Customer & Commercial Services",Community Services,Supplies & Services,Grants To Voluntary Organis,Great Dawley Town Council,26/09/2023,299.00
Prosperity & Investment,BiT,Premises-Related Expenditure,R&M -Buildings DLO Charge,JCE & SONS LTD,26/09/2023,299.00
Prosperity & Investment,Regeneration & Investment,Premises-Related Expenditure,Electricity,West Mercia Energy (WME),20/09/2023,297.60
"Communities, Customer & Commercial Services",Sport & Leisure,Supplies & Services,Provisions,BIKOLD,14/09/2023,297.50
Prosperity & Investment,BiT,Premises-Related Expenditure,Gas,GAS DIRECT LTD,05/09/2023,297.12
Prosperity & Investment,BiT,Premises-Related Expenditure,Gas,GAS DIRECT LTD,05/09/2023,297.12
"Communities, Customer & Commercial Services",Sport & Leisure,Premises-Related Expenditure,Clean Mats & Toilet Requisites,Border Janitorial Supplies Limited,28/09/2023,296.73
Prosperity & Investment,BiT,Premises-Related Expenditure,R&M -Buildings DLO Charge,JAK WATER SYSTEMS LTD,15/09/2023,296.70
"Communities, Customer & Commercial Services",Sport & Leisure,Supplies & Services,Provisions,BIKOLD,14/09/2023,296.42
"Communities, Customer & Commercial Services",Sport & Leisure,Supplies & Services,Provisions,BIKOLD,28/09/2023,295.86
"Communities, Customer & Commercial Services",Sport & Leisure,Supplies & Services,Provisions,BIKOLD,28/09/2023,295.84
Prosperity & Investment,Regeneration & Investment,Premises-Related Expenditure,Electricity,West Mercia Energy (WME),20/09/2023,295.36
"Communities, Customer & Commercial Services",ICT,Supplies & Services,Telecomms,Airband Community Internet,12/09/2023,295.00
"Communities, Customer & Commercial Services",ICT,Supplies & Services,Telecomms,Airband Community Internet,25/09/2023,295.00
"Communities, Customer & Commercial Services",ICT,Supplies & Services,Telecomms,Airband Community Internet,25/09/2023,295.00
Prosperity & Investment,BiT,Premises-Related Expenditure,Service Contracts,Heightsafe Systems Ltd,04/09/2023,295.00
Prosperity & Investment,BiT,Premises-Related Expenditure,R&M -Buildings DLO Charge,WB Building Services Limited,15/09/2023,294.55
Prosperity & Investment,BiT,Premises-Related Expenditure,Electricity,West Mercia Energy (WME),20/09/2023,294.11
Prosperity & Investment,BiT,Premises-Related Expenditure,R&M -Buildings DLO Charge,JCE & SONS LTD,13/09/2023,293.20
"Communities, Customer & Commercial Services",Sport & Leisure,Supplies & Services,Provisions,BIKOLD,21/09/2023,293.02
Prosperity & Investment,BiT,Premises-Related Expenditure,R&M -Buildings DLO Charge,BUSINESS WATCH GUARDING LIMITED,21/09/2023,292.64
Prosperity & Investment,BiT,Premises-Related Expenditure,R&M -Buildings DLO Charge,TAYLORS MECHANICAL H & P SERVICES LTD,20/09/2023,292.50
"Communities, Customer & Commercial Services",Culture & Events,Supplies & Services,Wet Resale Provision,MOLSON COORS BREWING COMPANY UK LTD,01/09/2023,291.78
"Communities, Customer & Commercial Services",Culture & Events,Supplies & Services,Wet Resale Provision,MOLSON COORS BREWING COMPANY UK LTD,20/09/2023,291.78
Prosperity & Investment,BiT,Premises-Related Expenditure,Electricity,West Mercia Energy (WME),20/09/2023,291.73
"Communities, Customer & Commercial Services",Culture & Events,Supplies & Services,Wet Resale Provision,MOLSON COORS BREWING COMPANY UK LTD,01/09/2023,291.46
Prosperity & Investment,BiT,Premises-Related Expenditure,Service Contracts,Churches Fire Security Ltd,04/09/2023,291.00
"Communities, Customer & Commercial Services",Sport & Leisure,Premises-Related Expenditure,Clean Mats & Toilet Requisites,Border Janitorial Supplies Limited,22/09/2023,290.28
"Communities, Customer & Commercial Services",Sport & Leisure,Supplies & Services,Provisions,BIKOLD,08/09/2023,290.12
"Communities, Customer & Commercial Services",Sport & Leisure,Supplies & Services,Provisions,BIKOLD,28/09/2023,290.12
Prosperity & Investment,BiT,Premises-Related Expenditure,R&M -Buildings DLO Charge,TAYLORS MECHANICAL H & P SERVICES LTD,20/09/2023,290.00
Prosperity & Investment,BiT,Premises-Related Expenditure,R&M -Buildings DLO Charge,TAYLORS MECHANICAL H & P SERVICES LTD,26/09/2023,290.00
Prosperity & Investment,BiT,Premises-Related Expenditure,R&M -Buildings DLO Charge,TAYLORS MECHANICAL H & P SERVICES LTD,26/09/2023,290.00
"Communities, Customer & Commercial Services",Sport & Leisure,Premises-Related Expenditure,Clean Mats & Toilet Requisites,Border Janitorial Supplies Limited,28/09/2023,289.00
"Communities, Customer & Commercial Services",Sport & Leisure,Premises-Related Expenditure,Clean Mats & Toilet Requisites,Border Janitorial Supplies Limited,28/09/2023,289.00
"Communities, Customer & Commercial Services",Sport & Leisure,Premises-Related Expenditure,Clean Mats & Toilet Requisites,Border Janitorial Supplies Limited,28/09/2023,289.00
Children�s Safeguarding & Family Support,"Family Placements, Children in Care, Leaving Care & Emergency Duty Team",Supplies & Services,Equipment - Repair,STANNAH LIFT SERVICES LTD,20/09/2023,288.75
"Communities, Customer & Commercial Services",Sport & Leisure,Premises-Related Expenditure,Trade Refuse,FCC Recycling Ltd ,13/09/2023,288.73
Prosperity & Investment,BiT,Premises-Related Expenditure,R&M -Buildings DLO Charge,TAYLORS MECHANICAL H & P SERVICES LTD,18/09/2023,288.06
Prosperity & Investment,BiT,Premises-Related Expenditure,R&M -Buildings DLO Charge,ARJO UK LTD,04/09/2023,288.00
"Communities, Customer & Commercial Services",Sport & Leisure,Supplies & Services,Equipment - Purchase,RLSS UK Enterprises Ltd,05/09/2023,288.00
"Communities, Customer & Commercial Services",Sport & Leisure,Supplies & Services,Equipment - Purchase,RLSS UK Enterprises Ltd,27/09/2023,288.00
"Communities, Customer & Commercial Services",Sport & Leisure,Supplies & Services,Equipment - Purchase,RLSS UK Enterprises Ltd,27/09/2023,288.00
"Communities, Customer & Commercial Services",Sport & Leisure,Supplies & Services,Provisions,BIKOLD,21/09/2023,287.45
"Communities, Customer & Commercial Services",Sport & Leisure,Supplies & Services,Provisions,BIKOLD,08/09/2023,287.28
"Communities, Customer & Commercial Services",Sport & Leisure,Supplies & Services,Provisions,BIKOLD,08/09/2023,287.25
"Communities, Customer & Commercial Services",Sport & Leisure,Supplies & Services,Provisions,BIKOLD,14/09/2023,286.88
Prosperity & Investment,BiT,Premises-Related Expenditure,Service Contracts,JAK WATER SYSTEMS LTD,21/09/2023,286.50
"Communities, Customer & Commercial Services",Sport & Leisure,Supplies & Services,Provisions,BIKOLD,14/09/2023,286.18
"Communities, Customer & Commercial Services",Sport & Leisure,Supplies & Services,Provisions,BIKOLD,08/09/2023,285.16
Prosperity & Investment,BiT,Premises-Related Expenditure,R&M -Buildings DLO Charge,E Solutions Ltd,26/09/2023,285.00
Prosperity & Investment,BiT,Premises-Related Expenditure,Service Contracts,E Solutions Ltd,26/09/2023,285.00
Policy & Governance,Governance & Legal Services,Supplies & Services,Printing - Other,IMPACT MAIL & PRINT LTD,12/09/2023,284.50
"Communities, Customer & Commercial Services",Sport & Leisure,Supplies & Services,Sub Contractors,Midland Playscape,26/09/2023,284.50
Prosperity & Investment,BiT,Premises-Related Expenditure,Electricity,West Mercia Energy (WME),20/09/2023,284.26
"Communities, Customer & Commercial Services",Sport & Leisure,Premises-Related Expenditure,Clean Mats & Toilet Requisites,Border Janitorial Supplies Limited,07/09/2023,284.22
"Communities, Customer & Commercial Services",Sport & Leisure,Supplies & Services,Provisions,BIKOLD,08/09/2023,283.43
Prosperity & Investment,BiT,Premises-Related Expenditure,Other Energy Costs,Energy Merchants Ltd,26/09/2023,283.16
Adult Social Care,Prevention & Independence - Older Adults & Disability,Supplies & Services,Aids & Appliances,Easylink,28/09/2023,283.14
Neighbourhood & Enforcement Services,"Highways, Engineering & Project Delivery",Capital Expenditure,Payments to Contractor,Smart Video & Sensing Ltd,14/09/2023,283.00
Neighbourhood & Enforcement Services,"Highways, Engineering & Project Delivery",Capital Expenditure,Payments to Contractor,Smart Video & Sensing Ltd,14/09/2023,283.00
"Communities, Customer & Commercial Services",Sport & Leisure,Premises-Related Expenditure,Clean Mats & Toilet Requisites,Border Janitorial Supplies Limited,20/09/2023,282.83
"Communities, Customer & Commercial Services",Sport & Leisure,Supplies & Services,Provisions,R & COMPANY,11/09/2023,282.57
"Communities, Customer & Commercial Services",Sport & Leisure,Supplies & Services,Provisions,BIKOLD,21/09/2023,281.67
"Communities, Customer & Commercial Services",Sport & Leisure,Supplies & Services,Provisions,BIKOLD,14/09/2023,281.61
"Communities, Customer & Commercial Services",Sport & Leisure,Supplies & Services,Crockery/Hardware/Light Equip,Vegware,21/09/2023,281.39
Prosperity & Investment,Regeneration & Investment,Premises-Related Expenditure,R&M -Building Other,GRANVILLE CONSTRUCTION & MAINTENANCE LTD,06/09/2023,280.95
"Communities, Customer & Commercial Services",Sport & Leisure,Supplies & Services,Provisions,BIKOLD,28/09/2023,280.91
"Communities, Customer & Commercial Services",Sport & Leisure,Supplies & Services,Provisions,BIKOLD,14/09/2023,280.61
"Communities, Customer & Commercial Services",Sport & Leisure,Supplies & Services,Provisions,BIKOLD,28/09/2023,280.30
"Communities, Customer & Commercial Services",Sport & Leisure,Supplies & Services,Provisions,BIKOLD,28/09/2023,280.21
Prosperity & Investment,Regeneration & Investment,Premises-Related Expenditure,Grounds Maintenance - L&CS,RMF LANDSCAPING LTD,08/09/2023,280.00
Prosperity & Investment,BiT,Premises-Related Expenditure,R&M -Buildings DLO Charge,Universal Services Ltd,26/09/2023,280.00
Prosperity & Investment,BiT,Premises-Related Expenditure,R&M -Buildings DLO Charge,WB Building Services Limited,26/09/2023,280.00
"Communities, Customer & Commercial Services",Customer Relationships & Welfare Services,Capital Expenditure,Payments to Contractor,LANDMARK INFORMATION GROUP LTD,20/09/2023,279.00
"Communities, Customer & Commercial Services",Sport & Leisure,Supplies & Services,Provisions,BIKOLD,08/09/2023,278.98
"Communities, Customer & Commercial Services",Sport & Leisure,Premises-Related Expenditure,Clean Mats & Toilet Requisites,Border Janitorial Supplies Limited,27/09/2023,278.87
Adult Social Care,Prevention & Independence - Older Adults & Disability,Supplies & Services,Aids & Appliances,O HEALTHCARE LTD,20/09/2023,278.42
Prosperity & Investment,BiT,Premises-Related Expenditure,Service Contracts,COOL SERVICES LTD,26/09/2023,277.50
Prosperity & Investment,BiT,Premises-Related Expenditure,R&M -Buildings DLO Charge,TAYLORS MECHANICAL H & P SERVICES LTD,26/09/2023,277.50
Neighbourhood & Enforcement Services,"Highways, Engineering & Project Delivery",Supplies & Services,Equipment - Hire,STANFORD MARSH FINANCE LTD,19/09/2023,277.48
Prosperity & Investment,Regeneration & Investment,Premises-Related Expenditure,Electricity,West Mercia Energy (WME),20/09/2023,277.17
Prosperity & Investment,BiT,Premises-Related Expenditure,R&M -Buildings DLO Charge,RMF LANDSCAPING LTD,21/09/2023,276.50
Health & Wellbeing,Health Improvement,Premises-Related Expenditure,Hire Of Rooms,Admaston House Community Centre Trust,29/09/2023,276.00
"Communities, Customer & Commercial Services",Sport & Leisure,Supplies & Services,Provisions,BIKOLD,21/09/2023,275.96
"Communities, Customer & Commercial Services",Sport & Leisure,Premises-Related Expenditure,Clean Mats & Toilet Requisites,Border Janitorial Supplies Limited,07/09/2023,275.34
"Communities, Customer & Commercial Services",Sport & Leisure,Premises-Related Expenditure,Clean Mats & Toilet Requisites,Border Janitorial Supplies Limited,19/09/2023,275.00
Neighbourhood & Enforcement Services,Neighbourhood & Environmental Services,Premises-Related Expenditure,Grounds Maintenance - Other,JB Extreme Landscapes Ltd,29/09/2023,275.00
Prosperity & Investment,BiT,Premises-Related Expenditure,Service Contracts,PP ELECTRICAL SERVICES Ltd,04/09/2023,275.00
Prosperity & Investment,Regeneration & Investment,Premises-Related Expenditure,R&M -Building Other,PP ELECTRICAL SERVICES Ltd,04/09/2023,275.00
"Communities, Customer & Commercial Services",Culture & Events,Supplies & Services,Advertising,WHATS ON MAGAZINES LTD,01/09/2023,275.00
"Communities, Customer & Commercial Services",Sport & Leisure,Supplies & Services,Provisions,J S Catering Butchers,25/09/2023,274.76
Prosperity & Investment,BiT,Premises-Related Expenditure,R&M -Buildings DLO Charge,R Maintenance Services Ltd,26/09/2023,274.05
Neighbourhood & Enforcement Services,Enforcement,Supplies & Services,Security Services,Chipside Ltd,11/09/2023,273.97
"Communities, Customer & Commercial Services",Sport & Leisure,Employees,Agency Supply Costs,TOTAL CATERING SOLUTONS RECRUITMENT LTD,25/09/2023,273.92
"Communities, Customer & Commercial Services",Sport & Leisure,Employees,Agency Supply Costs,TOTAL CATERING SOLUTONS RECRUITMENT LTD,25/09/2023,273.92
Prosperity & Investment,BiT,Premises-Related Expenditure,Electricity,West Mercia Energy (WME),20/09/2023,272.70
"Communities, Customer & Commercial Services",Sport & Leisure,Supplies & Services,Provisions,BIKOLD,14/09/2023,272.09
Prosperity & Investment,BiT,Premises-Related Expenditure,Hygiene Services,PHS GROUP,13/09/2023,272.01
Neighbourhood & Enforcement Services,"Highways, Engineering & Project Delivery",Supplies & Services,Other Services,Austin Mix Ltd,19/09/2023,272.00
Prosperity & Investment,Development Management,Supplies & Services,Mobile Phones,EE LTD EQUIPMENT ,11/09/2023,272.00
"Communities, Customer & Commercial Services",Sport & Leisure,Supplies & Services,Provisions,BIKOLD,28/09/2023,271.87
"Communities, Customer & Commercial Services",Sport & Leisure,Supplies & Services,Provisions,BIKOLD,21/09/2023,271.78
"Communities, Customer & Commercial Services",Sport & Leisure,Supplies & Services,Provisions,BIKOLD,28/09/2023,271.63
"Communities, Customer & Commercial Services",Sport & Leisure,Supplies & Services,Provisions,BIKOLD,14/09/2023,271.58
Prosperity & Investment,Regeneration & Investment,Premises-Related Expenditure,Electricity,West Mercia Energy (WME),20/09/2023,270.92
"Communities, Customer & Commercial Services",Sport & Leisure,Supplies & Services,Provisions,Handmade Speciality Products Ltd,11/09/2023,270.77
"Communities, Customer & Commercial Services",Sport & Leisure,Supplies & Services,Provisions,BIKOLD,14/09/2023,270.73
"Communities, Customer & Commercial Services",Sport & Leisure,Supplies & Services,Provisions,BIKOLD,14/09/2023,269.76
"Communities, Customer & Commercial Services",Sport & Leisure,Supplies & Services,Provisions,BIKOLD,21/09/2023,269.21
"Communities, Customer & Commercial Services",Sport & Leisure,Supplies & Services,Provisions,R & COMPANY,11/09/2023,267.66
"Communities, Customer & Commercial Services",Sport & Leisure,Supplies & Services,Provisions,BIKOLD,21/09/2023,267.60
"Communities, Customer & Commercial Services",Sport & Leisure,Supplies & Services,Provisions,R & COMPANY,25/09/2023,267.11
"Communities, Customer & Commercial Services",Sport & Leisure,Supplies & Services,Provisions,BIKOLD,21/09/2023,266.72
"Communities, Customer & Commercial Services",Sport & Leisure,Supplies & Services,Provisions,BIKOLD,28/09/2023,266.71
"Communities, Customer & Commercial Services",Sport & Leisure,Supplies & Services,Provisions,BIKOLD,28/09/2023,266.34
"Communities, Customer & Commercial Services",Sport & Leisure,Supplies & Services,Provisions,BIKOLD,14/09/2023,264.72
"Communities, Customer & Commercial Services",Sport & Leisure,Supplies & Services,Provisions,BIKOLD,08/09/2023,264.57
"Communities, Customer & Commercial Services",Sport & Leisure,Supplies & Services,Provisions,BIKOLD,28/09/2023,264.54
"Communities, Customer & Commercial Services",Sport & Leisure,Supplies & Services,Provisions,BIKOLD,28/09/2023,264.47
Prosperity & Investment,BiT,Premises-Related Expenditure,Service Charges Paid,THE WREKIN HOUSING TRUST ,11/09/2023,263.66
"Communities, Customer & Commercial Services",Sport & Leisure,Supplies & Services,Provisions,BIKOLD,28/09/2023,263.59
"Communities, Customer & Commercial Services",Sport & Leisure,Supplies & Services,Provisions,BIKOLD,21/09/2023,262.79
Prosperity & Investment,BiT,Premises-Related Expenditure,R&M -Buildings DLO Charge,TAYLORS MECHANICAL H & P SERVICES LTD,15/09/2023,262.50
"Communities, Customer & Commercial Services",Sport & Leisure,Supplies & Services,Provisions,BIKOLD,28/09/2023,262.46
Prosperity & Investment,BiT,Premises-Related Expenditure,R&M -Buildings DLO Charge,GRANVILLE CONSTRUCTION & MAINTENANCE LTD,21/09/2023,262.12
Neighbourhood & Enforcement Services,Enforcement,Supplies & Services,Security Services,ETAK Creative Ltd,25/09/2023,261.70
Neighbourhood & Enforcement Services,"Highways, Engineering & Project Delivery",Capital Expenditure,Marketing / Advertising,THE MIDLAND NEWS ASSOCIATION LTD,11/09/2023,261.31
Neighbourhood & Enforcement Services,"Highways, Engineering & Project Delivery",Capital Expenditure,Marketing / Advertising,THE MIDLAND NEWS ASSOCIATION LTD,19/09/2023,261.31
Prosperity & Investment,Development Management,Supplies & Services,Advertising,THE MIDLAND NEWS ASSOCIATION LTD,21/09/2023,261.31
Prosperity & Investment,Development Management,Supplies & Services,Advertising,THE MIDLAND NEWS ASSOCIATION LTD,21/09/2023,261.31
Prosperity & Investment,Development Management,Supplies & Services,Legal Expenses,THE MIDLAND NEWS ASSOCIATION LTD,21/09/2023,261.31
Education & Skills,SEND (0-25),Supplies & Services,Materials,GL Education Group,27/09/2023,261.10
Adult Social Care,Prevention & Independence - Older Adults & Disability,Supplies & Services,Adaptations,WB Building Services Limited,06/09/2023,261.02
"Communities, Customer & Commercial Services",Sport & Leisure,Supplies & Services,Provisions,BIKOLD,21/09/2023,260.10
Prosperity & Investment,BiT,Premises-Related Expenditure,R&M -Buildings DLO Charge,A1 Glass & Glazing Limited,04/09/2023,260.00
Education & Skills,SEND (0-25),Third Party Payments,DSG - High Needs Block,HRP Education,22/09/2023,260.00
"Communities, Customer & Commercial Services",Sport & Leisure,Supplies & Services,Crockery/Hardware/Light Equip,PLANGLOW LTD,19/09/2023,259.60
"Communities, Customer & Commercial Services",Sport & Leisure,Supplies & Services,Crockery/Hardware/Light Equip,PLANGLOW LTD,28/09/2023,259.60
Prosperity & Investment,Regeneration & Investment,Supplies & Services,Security Services,BUSINESS WATCH GUARDING LIMITED,12/09/2023,259.38
Prosperity & Investment,BiT,Premises-Related Expenditure,Electricity,West Mercia Energy (WME),20/09/2023,259.29
"Communities, Customer & Commercial Services",Sport & Leisure,Supplies & Services,Provisions,BIKOLD,21/09/2023,259.24
"Communities, Customer & Commercial Services",Culture & Events,Transport-Related Expenditure,Outside Hire,Enterprise Flexi Rent,06/09/2023,258.96
Adult Social Care,Prevention & Independence - Older Adults & Disability,Supplies & Services,Aids & Appliances,Nottingham Rehab Ltd,19/09/2023,258.87
Children�s Safeguarding & Family Support,Safeguarding Advisory,Premises-Related Expenditure,Hire Of Rooms,MEETING POINT TRUST LTD,12/09/2023,258.50
Prosperity & Investment,BiT,Premises-Related Expenditure,R&M -Buildings DLO Charge,JCE & SONS LTD,15/09/2023,257.82
Education & Skills,Pupil Support Services,Third Party Payments,Misc. Education Payments to T&W Schools (incl Academies),Kickstart Academy,25/09/2023,257.12
Health & Wellbeing,Health Improvement,Premises-Related Expenditure,Hire Of Rooms,DONNINGTON PARTNERSHIP,04/09/2023,257.00
Prosperity & Investment,BiT,Premises-Related Expenditure,R&M -Buildings DLO Charge,JCE & SONS LTD,13/09/2023,256.75
Prosperity & Investment,BiT,Premises-Related Expenditure,Electricity,West Mercia Energy (WME),20/09/2023,256.50
"Communities, Customer & Commercial Services",Sport & Leisure,Supplies & Services,Provisions,BIKOLD,14/09/2023,256.47
"Communities, Customer & Commercial Services",Sport & Leisure,Premises-Related Expenditure,Clean Mats & Toilet Requisites,Border Janitorial Supplies Limited,28/09/2023,256.19
"Communities, Customer & Commercial Services",Sport & Leisure,Supplies & Services,Provisions,BIKOLD,08/09/2023,255.96
Adult Social Care,Prevention & Independence - Older Adults & Disability,Supplies & Services,Aids & Appliances,Alert-it Care Alarms,29/09/2023,255.78
"Communities, Customer & Commercial Services",Sport & Leisure,Supplies & Services,Provisions,BIKOLD,21/09/2023,255.28
Prosperity & Investment,Regeneration & Investment,Capital Expenditure,Legal Fees,FREETHS LLP,21/09/2023,254.80
Prosperity & Investment,BiT,Premises-Related Expenditure,R&M -Buildings DLO Charge,TAYLORS MECHANICAL H & P SERVICES LTD,20/09/2023,254.50
"Communities, Customer & Commercial Services",Sport & Leisure,Supplies & Services,Provisions,On A Roll,13/09/2023,254.25
"Communities, Customer & Commercial Services",Sport & Leisure,Supplies & Services,Provisions,BIKOLD,28/09/2023,254.17
"Communities, Customer & Commercial Services",Sport & Leisure,Supplies & Services,Provisions,BIKOLD,08/09/2023,253.93
"Communities, Customer & Commercial Services",Sport & Leisure,Premises-Related Expenditure,Clean Mats & Toilet Requisites,Border Janitorial Supplies Limited,13/09/2023,253.69
Neighbourhood & Enforcement Services,Strategic Transport & Highway Network Management,Transport-Related Expenditure,Outside Hire,Enterprise Flexi Rent,15/09/2023,253.56
"Communities, Customer & Commercial Services",Culture & Events,Supplies & Services,Wet Resale Provision,MOLSON COORS BREWING COMPANY UK LTD,05/09/2023,252.54
"Communities, Customer & Commercial Services",Culture & Events,Supplies & Services,Wet Resale Provision,MOLSON COORS BREWING COMPANY UK LTD,20/09/2023,252.54
Prosperity & Investment,BiT,Premises-Related Expenditure,R&M -Buildings DLO Charge,JCE & SONS LTD,26/09/2023,252.48
Prosperity & Investment,Development Management,Employees,Professional Subs,Institute of Ecology and Environmental Management,21/09/2023,252.40
"Communities, Customer & Commercial Services",Sport & Leisure,Supplies & Services,Provisions,T FOOD SERVICE LTD,21/09/2023,252.09
"Communities, Customer & Commercial Services",ICT,Supplies & Services,Comp Software (Purch / Hire),PHOENIX SOFTWARE LTD,14/09/2023,252.00
Neighbourhood & Enforcement Services,Neighbourhood & Environmental Services,Premises-Related Expenditure,Grounds Maint - Playgrounds,PLAYSAFETY LTD,29/09/2023,252.00
"Communities, Customer & Commercial Services",Sport & Leisure,Supplies & Services,Provisions,BIKOLD,08/09/2023,251.62
"Communities, Customer & Commercial Services",Sport & Leisure,Supplies & Services,Provisions,BIKOLD,08/09/2023,251.56
Prosperity & Investment,Regeneration & Investment,Premises-Related Expenditure,Dilapidations,Security Wise Ltd,25/09/2023,251.50
"Communities, Customer & Commercial Services",Sport & Leisure,Supplies & Services,Crockery/Hardware/Light Equip,Elygra Limited,28/09/2023,251.23
Children�s Safeguarding & Family Support,Child Protection & Family Support,Supplies & Services,Other Services,T Nursing Services,01/09/2023,251.18
"Communities, Customer & Commercial Services",Sport & Leisure,Supplies & Services,Provisions,BIKOLD,28/09/2023,250.97
Prosperity & Investment,BiT,Premises-Related Expenditure,R&M -Buildings DLO Charge,WB Building Services Limited,15/09/2023,250.97
Prosperity & Investment,BiT,Premises-Related Expenditure,R&M -Buildings DLO Charge,JCE & SONS LTD,15/09/2023,250.50
"Communities, Customer & Commercial Services",Sport & Leisure,Supplies & Services,Provisions,BIKOLD,14/09/2023,250.28
Prosperity & Investment,BiT,Premises-Related Expenditure,R&M -Building Other,GRANVILLE CONSTRUCTION & MAINTENANCE LTD,13/09/2023,250.20
Adult Social Care,My Options,Supplies & Services,Equipment - Purchase,ASLES LTD,11/09/2023,250.00
"Housing, Employment & Infrastructure",Inward Investment & Business Support,Employees,Training Expenses,Connect Consultancy Limited,08/09/2023,250.00
Neighbourhood & Enforcement Services,Strategic Transport & Highway Network Management,Transport-Related Expenditure,Servicing & Repairs V&P,FURROWS OF TELFORD,15/09/2023,250.00
Neighbourhood & Enforcement Services,Safer & Stronger Communities,Supplies & Services,Other Services,LAWLEY & OVERDALE PARISH COUNCIL,27/09/2023,250.00
"Communities, Customer & Commercial Services",Sport & Leisure,Supplies & Services,Equipment - Purchase,RLSS UK Enterprises Ltd,13/09/2023,250.00
Neighbourhood & Enforcement Services,"Highways, Engineering & Project Delivery",Capital Expenditure,Payments to Contractor,Smart Video & Sensing Ltd,14/09/2023,250.00
Neighbourhood & Enforcement Services,"Highways, Engineering & Project Delivery",Capital Expenditure,Payments to Contractor,Smart Video & Sensing Ltd,14/09/2023,250.00
Prosperity & Investment,BiT,Capital Expenditure,Payments to Contractor,Strive AV Ltd,19/09/2023,250.00
Prosperity & Investment,BiT,Capital Expenditure,Payments to Contractor,Strive AV Ltd,19/09/2023,250.00
"Communities, Customer & Commercial Services",Sport & Leisure,Supplies & Services,Provisions,BIKOLD,08/09/2023,249.89
"Communities, Customer & Commercial Services",Sport & Leisure,Premises-Related Expenditure,Clean Mats & Toilet Requisites,Border Janitorial Supplies Limited,11/09/2023,249.64
"Communities, Customer & Commercial Services",Sport & Leisure,Supplies & Services,Provisions,BIKOLD,21/09/2023,249.06
Education & Skills,SEND (0-25),Supplies & Services,Equipment - Purchase,OTICON LIMITED,04/09/2023,249.00
"Communities, Customer & Commercial Services",Customer Relationships & Welfare Services,Transfer Payments,Crisis Assistance Awards,PayPoint Network Limited,04/09/2023,249.00
Finance & Human Resources,Revenues,Supplies & Services,Stationery,PREMIER PAPER GROUP LTD,26/09/2023,248.39
"Communities, Customer & Commercial Services",Sport & Leisure,Supplies & Services,Provisions,BIKOLD,08/09/2023,248.24
Prosperity & Investment,BiT,Premises-Related Expenditure,Electricity,Smartestenergy Limited,21/09/2023,248.08
Prosperity & Investment,BiT,Premises-Related Expenditure,R&M -Buildings DLO Charge,TAYLORS MECHANICAL H & P SERVICES LTD,18/09/2023,247.50
"Communities, Customer & Commercial Services",Sport & Leisure,Supplies & Services,Provisions,BIKOLD,28/09/2023,246.99
"Communities, Customer & Commercial Services",Sport & Leisure,Supplies & Services,Provisions,BIKOLD,14/09/2023,246.77
"Communities, Customer & Commercial Services",Sport & Leisure,Supplies & Services,Provisions,BIKOLD,28/09/2023,246.67
Prosperity & Investment,BiT,Premises-Related Expenditure,Electricity,West Mercia Energy (WME),20/09/2023,246.57
Health & Wellbeing,Health Improvement,Supplies & Services,Libraries Book Fund,ULVERSCROFT LARGE PRINT BOOKS LIMITED,01/09/2023,246.50
Health & Wellbeing,Health Improvement,Supplies & Services,Libraries Book Fund,P LTD,29/09/2023,246.35
Children�s Safeguarding & Family Support,Family Connect & Childrens Centres,Premises-Related Expenditure,R&M -Building Other,JCE & SONS LTD,26/09/2023,246.28
Prosperity & Investment,BiT,Premises-Related Expenditure,R&M -Buildings DLO Charge,WB Building Services Limited,15/09/2023,246.20
"Communities, Customer & Commercial Services",Sport & Leisure,Supplies & Services,Provisions,BIKOLD,14/09/2023,245.31
"Communities, Customer & Commercial Services",ICT,Supplies & Services,Stationery,PREMIER PAPER GROUP LTD,20/09/2023,245.25
Prosperity & Investment,Regeneration & Investment,Premises-Related Expenditure,Grounds Maintenance - L&CS,VEOLIA ES LTD ,06/09/2023,244.43
"Communities, Customer & Commercial Services",Sport & Leisure,Supplies & Services,Provisions,BIKOLD,21/09/2023,244.35
"Communities, Customer & Commercial Services","Communities, Customer & Commercial Services",Supplies & Services,Fees,APSE ,25/09/2023,244.00
Neighbourhood & Enforcement Services,"Highways, Engineering & Project Delivery",Premises-Related Expenditure,Lift Maintenance,STANNAH LIFT SERVICES LTD,28/09/2023,243.75
Prosperity & Investment,BiT,Premises-Related Expenditure,Electricity,West Mercia Energy (WME),20/09/2023,243.24
"Communities, Customer & Commercial Services",Sport & Leisure,Transport-Related Expenditure,District Council Vehicles,J O Groundcare,20/09/2023,243.05
Health & Wellbeing,Consultant in Public Health,Supplies & Services,Sub Contractors,Cambridgeshire Community Services NHS Trust,06/09/2023,243.00
"Communities, Customer & Commercial Services",Sport & Leisure,Supplies & Services,Provisions,R & COMPANY,25/09/2023,242.49
"Communities, Customer & Commercial Services",Sport & Leisure,Supplies & Services,Provisions,J S Catering Butchers,25/09/2023,242.38
"Communities, Customer & Commercial Services",Sport & Leisure,Supplies & Services,Provisions,BIKOLD,14/09/2023,242.25
"Communities, Customer & Commercial Services",Sport & Leisure,Supplies & Services,Sub Contractors,Prosep filter systems ltd,13/09/2023,241.00
Health & Wellbeing,Health Improvement,Supplies & Services,Libraries Book Fund,P LTD,13/09/2023,240.90
"Communities, Customer & Commercial Services",Sport & Leisure,Supplies & Services,Provisions,BIKOLD,21/09/2023,240.75
"Communities, Customer & Commercial Services",Sport & Leisure,Supplies & Services,Provisions,BIKOLD,08/09/2023,240.62
"Communities, Customer & Commercial Services",Sport & Leisure,Supplies & Services,Provisions,BIKOLD,21/09/2023,240.29
Prosperity & Investment,BiT,Premises-Related Expenditure,R&M -Buildings DLO Charge,A1 Glass & Glazing Limited,26/09/2023,240.00
Prosperity & Investment,Regeneration & Investment,Premises-Related Expenditure,Lift Maintenance,Belvidere Lifts Ltd,06/09/2023,240.00
Policy & Governance,Governance & Legal Services,Premises-Related Expenditure,Hire Of Rooms,ST GEORGES & PRIORSLEE PARISH COUNCIL,12/09/2023,240.00
Prosperity & Investment,BiT,Premises-Related Expenditure,R&M -Buildings DLO Charge,TAYLORS MECHANICAL H & P SERVICES LTD,25/09/2023,240.00
Policy & Governance,Organisational Development & Delivery,Employees,Staff Training,West Midlands Employers,25/09/2023,240.00
Prosperity & Investment,BiT,Premises-Related Expenditure,R&M -Buildings DLO Charge,WB Building Services Limited,26/09/2023,239.64
"Communities, Customer & Commercial Services",Sport & Leisure,Supplies & Services,Provisions,BIKOLD,28/09/2023,239.28
"Communities, Customer & Commercial Services",Sport & Leisure,Supplies & Services,Provisions,BIKOLD,21/09/2023,238.98
"Communities, Customer & Commercial Services",Sport & Leisure,Supplies & Services,Provisions,BIKOLD,28/09/2023,238.87
Education & Skills,Skills,Premises-Related Expenditure,Hire Of Rooms,RAMADA TELFORD IRONBRIDGE,20/09/2023,238.75
"Communities, Customer & Commercial Services",Sport & Leisure,Supplies & Services,Provisions,BIKOLD,08/09/2023,238.31
"Communities, Customer & Commercial Services",Sport & Leisure,Premises-Related Expenditure,Clean Mats & Toilet Requisites,Border Janitorial Supplies Limited,07/09/2023,238.13
